Workbook

Sheet POSTS-MA (hidden)
B2: STRUCTURAL DETAILS FOR SIGNAL MAST ARM MOUNTED SIGNS
B3: HEIGHT | C3: LENGTH | D3: STIFFENER
B4: INCH | D4: QTY | E4: SPACING
B5: 24 | C5: 24 | D5: 2 | E5: =IF(D5="X","X",mastarmspace(C5,D5)) -> 12 | F5: =(C5-((D5-1)*E5))/2 -> 6 | J5: 2 | K5: =J5+1 -> 3 | L5: 4 | M5: 5 | N5: 6 | O5: 7 | P5: 8 | Q5: 9 | R5: 10 | S5: 11 | T5: 12 | U5: 13 | V5: 14
B6: 24 | C6: =C5+6 -> 30 | D6: 2 | E6: 18 | F6: 6 | I6: 2 | J6: =mastarmposts($I6*12,J$5*12,MAH,MAW,MAQ) -> 2 | K6: =mastarmposts($I6*12,K$5*12,MAH,MAW,MAQ) -> 2 | L6: 2 | M6: 3 | N6: 3 | O6: 3 | P6: 4 | Q6: 4 | R6: 4 | S6: 5 | T6: 5 | U6: 5 | V6: 5
B7: 24 | C7: 36 | D7: 2 | E7: 24 | F7: 6 | I7: 3 | J7: 2 | K7: 2 | L7: 2 | M7: 3 | N7: 3 | O7: 3 | P7: 4 | Q7: 4 | R7: 5 | S7: 5 | T7: 5 | U7: 5 | V7: 5
B8: 24 | C8: 42 | D8: 2 | E8: 30 | F8: 6 | I8: 4 | J8: 2 | K8: 2 | L8: 2 | M8: 3 | N8: 3 | O8: 3 | P8: 4 | Q8: 4 | R8: 5 | S8: 5 | T8: 5 | U8: 5 | V8: 6
B9: 24 | C9: 48 | D9: 2 | E9: 36 | F9: 6 | I9: 5 | J9: 2 | K9: 2 | L9: 2 | M9: 3 | N9: 4 | O9: 4 | P9: 5 | Q9: 5 | R9: 5 | S9: 5 | T9: 5 | U9: 5 | V9: 6
B10: 24 | C10: 54 | D10: 3 | E10: 21 | F10: 6 | I10: 6 | J10: X | K10: X | L10: 2 | M10: 3 | N10: 4 | O10: 4 | P10: 5 | Q10: 5 | R10: 5 | S10: 5 | T10: 5 | U10: 5 | V10: 6
B11: 24 | C11: 60 | D11: 3 | E11: 24 | F11: 6 | I11: 7 | J11: X | K11: X | L11: X | M11: 4 | N11: 4 | O11: 5 | P11: 5 | Q11: 5 | R11: 5 | S11: 5 | T11: 5 | U11: 5 | V11: 6
B12: 24 | C12: 66 | D12: 3 | E12: 27 | F12: 6
B13: 24 | C13: 72 | D13: 3 | E13: 30 | F13: 6 | J13: 2 | K13: =J13+1 -> 3 | L13: 4 | M13: 5 | N13: 6 | O13: 7 | P13: 8 | Q13: 9 | R13: 10 | S13: 11 | T13: 12 | U13: 13 | V13: 14
B14: 24 | C14: 78 | D14: 3 | E14: 33 | F14: 6 | I14: 2 | J14: =mastarmposts($I14*12,J$5*12,MAH,MAW,MAS) -> 12 | K14: 24 | L14: 36 | M14: 24 | N14: 30 | O14: 36 | P14: 27 | Q14: 30 | R14: 36 | S14: 30 | T14: 33 | U14: 36 | V14: 36
B15: 24 | C15: 84 | D15: 3 | E15: 36 | F15: 6 | I15: 3 | J15: 12 | K15: 24 | L15: 36 | M15: 24 | N15: 30 | O15: 36 | P15: 27 | Q15: 30 | R15: 27 | S15: 30 | T15: 33 | U15: 36 | V15: 36
B16: 24 | C16: 90 | D16: 4 | E16: 24 | F16: 9 | I16: 4 | J16: 12 | K16: 24 | L16: 36 | M16: 24 | N16: 30 | O16: 36 | P16: 27 | Q16: 30 | R16: 27 | S16: 30 | T16: 33 | U16: 36 | V16: 30
B17: 24 | C17: 96 | D17: 4 | E17: 27 | F17: 7.5 | I17: 5 | J17: 12 | K17: 24 | L17: 36 | M17: 24 | N17: 18 | O17: 24 | P17: 21 | Q17: 24 | R17: 27 | S17: 30 | T17: 33 | U17: 36 | V17: 30
B18: 24 | C18: 102 | D18: 4 | E18: 30 | F18: 6 | I18: 6 | J18: X | K18: X | L18: 36 | M18: 24 | N18: 18 | O18: 24 | P18: 21 | Q18: 24 | R18: 27 | S18: 30 | T18: 33 | U18: 36 | V18: 30
B19: 24 | C19: 108 | D19: 4 | E19: 30 | F19: 9 | I19: 7 | J19: X | K19: X | L19: X | M19: 15 | N19: 18 | O19: 18 | P19: 21 | Q19: 24 | R19: 27 | S19: 30 | T19: 33 | U19: 36 | V19: 30
B20: 24 | C20: 114 | D20: 4 | E20: 33 | F20: 7.5
B21: 24 | C21: 120 | D21: 4 | E21: 36 | F21: 6
B22: 24 | C22: 126 | D22: 5 | E22: 27 | F22: 9
B23: 24 | C23: 132 | D23: 5 | E23: 30 | F23: 6
B24: 24 | C24: 138 | D24: 5 | E24: 30 | F24: 9
B25: 24 | C25: 144 | D25: 5 | E25: 33 | F25: 6
B26: 24 | C26: 150 | D26: 5 | E26: 33 | F26: 9
B27: 24 | C27: 156 | D27: 5 | E27: 36 | F27: 6
B28: 24 | C28: 162 | D28: 5 | E28: 36 | F28: 9
B29: 24 | C29: 168 | D29: 5 | E29: 36 | F29: 12
B30: 30 | C30: 24 | D30: 2 | E30: 12 | F30: 6
B31: 30 | C31: =C30+6 -> 30 | D31: 2 | E31: 18 | F31: 6
B32: 30 | C32: 36 | D32: 2 | E32: 24 | F32: 6
B33: 30 | C33: 42 | D33: 2 | E33: 30 | F33: 6
B34: 30 | C34: 48 | D34: 2 | E34: 36 | F34: 6
B35: 30 | C35: 54 | D35: 3 | E35: 21 | F35: 6
B36: 30 | C36: 60 | D36: 3 | E36: 24 | F36: 6
B37: 30 | C37: 66 | D37: 3 | E37: 27 | F37: 6
B38: 30 | C38: 72 | D38: 3 | E38: 30 | F38: 6
B39: 30 | C39: 78 | D39: 3 | E39: 33 | F39: 6
B40: 30 | C40: 84 | D40: 3 | E40: 36 | F40: 6
B41: 30 | C41: 90 | D41: 4 | E41: 24 | F41: 9
B42: 30 | C42: 96 | D42: 4 | E42: 27 | F42: 7.5
B43: 30 | C43: 102 | D43: 4 | E43: 30 | F43: 6
B44: 30 | C44: 108 | D44: 4 | E44: 30 | F44: 9
B45: 30 | C45: 114 | D45: 5 | E45: 24 | F45: 9
B46: 30 | C46: 120 | D46: 5 | E46: 27 | F46: 6
B47: 30 | C47: 126 | D47: 5 | E47: 27 | F47: 9
B48: 30 | C48: 132 | D48: 5 | E48: 30 | F48: 6
B49: 30 | C49: 138 | D49: 5 | E49: 30 | F49: 9
B50: 30 | C50: 144 | D50: 5 | E50: 33 | F50: 6
B51: 30 | C51: 150 | D51: 5 | E51: 33 | F51: 9
B52: 30 | C52: 156 | D52: 5 | E52: 36 | F52: 6
B53: 30 | C53: 162 | D53: 5 | E53: 36 | F53: 9
B54: 30 | C54: 168 | D54: 5 | E54: 36 | F54: 12
B55: 36 | C55: 24 | D55: 2 | E55: 12 | F55: 6
B56: 36 | C56: =C55+6 -> 30 | D56: 2 | E56: 18 | F56: 6
B57: 36 | C57: 36 | D57: 2 | E57: 24 | F57: 6
B58: 36 | C58: 42 | D58: 2 | E58: 30 | F58: 6
B59: 36 | C59: 48 | D59: 2 | E59: 36 | F59: 6
B60: 36 | C60: 54 | D60: 3 | E60: 21 | F60: 6
B61: 36 | C61: 60 | D61: 3 | E61: 24 | F61: 6
B62: 36 | C62: 66 | D62: 3 | E62: 27 | F62: 6
B63: 36 | C63: 72 | D63: 3 | E63: 30 | F63: 6
B64: 36 | C64: 78 | D64: 3 | E64: 33 | F64: 6
B65: 36 | C65: 84 | D65: 3 | E65: 36 | F65: 6
B66: 36 | C66: 90 | D66: 4 | E66: 24 | F66: 9
B67: 36 | C67: 96 | D67: 4 | E67: 27 | F67: 7.5
B68: 36 | C68: 102 | D68: 4 | E68: 30 | F68: 6
B69: 36 | C69: 108 | D69: 4 | E69: =IF(D69="X","X",mastarmspace(C69,D69)) -> 30 | F69: =(C69-((D69-1)*E69))/2 -> 9
B70: 36 | C70: 114 | D70: 5 | E70: 24 | F70: 9
B71: 36 | C71: 120 | D71: 5 | E71: 27 | F71: 6
B72: 36 | C72: 126 | D72: 5 | E72: 27 | F72: 9
B73: 36 | C73: 132 | D73: 5 | E73: 30 | F73: 6
B74: 36 | C74: 138 | D74: 5 | E74: 30 | F74: 9
B75: 36 | C75: 144 | D75: 5 | E75: 33 | F75: 6
B76: 36 | C76: 150 | D76: 5 | E76: 33 | F76: 9
B77: 36 | C77: 156 | D77: 5 | E77: 36 | F77: 6
B78: 36 | C78: 162 | D78: 5 | E78: 36 | F78: 9
B79: 36 | C79: 168 | D79: 5 | E79: 36 | F79: 12
B80: 42 | C80: 24 | D80: 2 | E80: 12 | F80: 6
B81: 42 | C81: =C80+6 -> 30 | D81: 2 | E81: 18 | F81: 6
B82: 42 | C82: 36 | D82: 2 | E82: 24 | F82: 6
B83: 42 | C83: 42 | D83: 2 | E83: 30 | F83: 6
B84: 42 | C84: 48 | D84: 2 | E84: 36 | F84: 6
B85: 42 | C85: 54 | D85: 3 | E85: 21 | F85: 6
B86: 42 | C86: 60 | D86: 3 | E86: 24 | F86: 6
B87: 42 | C87: 66 | D87: 3 | E87: 27 | F87: 6
B88: 42 | C88: 72 | D88: 3 | E88: 30 | F88: 6
B89: 42 | C89: 78 | D89: 3 | E89: 33 | F89: 6
B90: 42 | C90: 84 | D90: 3 | E90: 36 | F90: 6
B91: 42 | C91: 90 | D91: 4 | E91: 24 | F91: 9
B92: 42 | C92: 96 | D92: 4 | E92: 27 | F92: 7.5
B93: 42 | C93: 102 | D93: 4 | E93: 30 | F93: 6
B94: 42 | C94: 108 | D94: 4 | E94: 30 | F94: 9
B95: 42 | C95: 114 | D95: 5 | E95: 24 | F95: 9
B96: 42 | C96: 120 | D96: 5 | E96: 27 | F96: 6
B97: 42 | C97: 126 | D97: 5 | E97: 27 | F97: 9
B98: 42 | C98: 132 | D98: 5 | E98: 30 | F98: 6
B99: 42 | C99: 138 | D99: 5 | E99: 30 | F99: 9
B100: 42 | C100: 144 | D100: 5 | E100: 33 | F100: 6
B101: 42 | C101: 150 | D101: 5 | E101: 33 | F101: 9
B102: 42 | C102: 156 | D102: 5 | E102: 36 | F102: 6
B103: 42 | C103: 162 | D103: 6 | E103: 30 | F103: 6
B104: 42 | C104: 168 | D104: 6 | E104: 30 | F104: 9
B105: 48 | C105: 24 | D105: 2 | E105: 12 | F105: 6
B106: 48 | C106: =C105+6 -> 30 | D106: 2 | E106: 18 | F106: 6
B107: 48 | C107: 36 | D107: 2 | E107: 24 | F107: 6
B108: 48 | C108: 42 | D108: 2 | E108: 30 | F108: 6
B109: 48 | C109: 48 | D109: 2 | E109: 36 | F109: 6
B110: 48 | C110: 54 | D110: 3 | E110: 21 | F110: 6
B111: 48 | C111: 60 | D111: 3 | E111: 24 | F111: 6
B112: 48 | C112: 66 | D112: 3 | E112: 27 | F112: 6
B113: 48 | C113: 72 | D113: 3 | E113: 30 | F113: 6
B114: 48 | C114: 78 | D114: 3 | E114: 33 | F114: 6
B115: 48 | C115: 84 | D115: 3 | E115: 36 | F115: 6
B116: 48 | C116: 90 | D116: 4 | E116: 24 | F116: 9
B117: 48 | C117: 96 | D117: 4 | E117: 27 | F117: 7.5
B118: 48 | C118: 102 | D118: 4 | E118: 30 | F118: 6
B119: 48 | C119: 108 | D119: 4 | E119: 30 | F119: 9
B120: 48 | C120: 114 | D120: 5 | E120: 24 | F120: 9
B121: 48 | C121: 120 | D121: 5 | E121: 27 | F121: 6
B122: 48 | C122: 126 | D122: 5 | E122: 27 | F122: 9
B123: 48 | C123: 132 | D123: 5 | E123: 30 | F123: 6
B124: 48 | C124: 138 | D124: 5 | E124: 30 | F124: 9
B125: 48 | C125: 144 | D125: 5 | E125: 33 | F125: 6
B126: 48 | C126: 150 | D126: 5 | E126: 33 | F126: 9
B127: 48 | C127: 156 | D127: 5 | E127: 36 | F127: 6
B128: 48 | C128: 162 | D128: 6 | E128: 30 | F128: 6
B129: 48 | C129: 168 | D129: 6 | E129: 30 | F129: 9
B130: 54 | C130: 24 | D130: 2 | E130: 12 | F130: 6
B131: 54 | C131: =C130+6 -> 30 | D131: 2 | E131: 18 | F131: 6
B132: 54 | C132: 36 | D132: 2 | E132: 24 | F132: 6
B133: 54 | C133: 42 | D133: 2 | E133: =IF(D133="X","X",mastarmspace(C133,D133)) -> 30 | F133: =(C133-((D133-1)*E133))/2 -> 6
B134: 54 | C134: 48 | D134: 2 | E134: 36 | F134: 6
B135: 54 | C135: 54 | D135: 3 | E135: 21 | F135: 6
B136: 54 | C136: 60 | D136: 3 | E136: 24 | F136: 6
B137: 54 | C137: 66 | D137: 4 | E137: 18 | F137: 6
B138: 54 | C138: 72 | D138: 4 | E138: 18 | F138: 9
B139: 54 | C139: 78 | D139: 4 | E139: 21 | F139: 7.5
B140: 54 | C140: 84 | D140: 4 | E140: 24 | F140: 6
B141: 54 | C141: 90 | D141: 5 | E141: 18 | F141: 9
B142: 54 | C142: 96 | D142: 5 | E142: 21 | F142: 6
B143: 54 | C143: 102 | D143: 5 | E143: 21 | F143: 9
B144: 54 | C144: 108 | D144: 5 | E144: 24 | F144: 6
B145: 54 | C145: 114 | D145: 5 | E145: 24 | F145: 9
B146: 54 | C146: 120 | D146: 5 | E146: 27 | F146: 6
B147: 54 | C147: 126 | D147: 5 | E147: 27 | F147: 9
B148: 54 | C148: 132 | D148: 5 | E148: 30 | F148: 6
B149: 54 | C149: 138 | D149: 5 | E149: 30 | F149: 9
B150: 54 | C150: 144 | D150: 5 | E150: 33 | F150: 6
B151: 54 | C151: 150 | D151: 5 | E151: 33 | F151: 9
B152: 54 | C152: 156 | D152: 5 | E152: 36 | F152: 6
B153: 54 | C153: 162 | D153: 6 | E153: 30 | F153: 6
B154: 54 | C154: 168 | D154: 6 | E154: 30 | F154: 9
B155: 60 | C155: 24 | D155: 2 | E155: 12 | F155: 6
B156: 60 | C156: =C155+6 -> 30 | D156: 2 | E156: 18 | F156: 6
B157: 60 | C157: 36 | D157: 2 | E157: 24 | F157: 6
B158: 60 | C158: 42 | D158: 2 | E158: 30 | F158: 6
B159: 60 | C159: 48 | D159: 2 | E159: 36 | F159: 6
B160: 60 | C160: 54 | D160: 3 | E160: 21 | F160: 6
B161: 60 | C161: 60 | D161: 3 | E161: 24 | F161: 6
B162: 60 | C162: 66 | D162: 4 | E162: 18 | F162: 6
B163: 60 | C163: 72 | D163: 4 | E163: 18 | F163: 9
B164: 60 | C164: 78 | D164: 4 | E164: 21 | F164: 7.5
B165: 60 | C165: 84 | D165: 4 | E165: 24 | F165: 6
B166: 60 | C166: 90 | D166: 5 | E166: 18 | F166: 9
B167: 60 | C167: 96 | D167: 5 | E167: 21 | F167: 6
B168: 60 | C168: 102 | D168: 5 | E168: 21 | F168: 9
B169: 60 | C169: 108 | D169: 5 | E169: 24 | F169: 6
B170: 60 | C170: 114 | D170: 5 | E170: 24 | F170: 9
B171: 60 | C171: 120 | D171: 5 | E171: 27 | F171: 6
B172: 60 | C172: 126 | D172: 5 | E172: 27 | F172: 9
B173: 60 | C173: 132 | D173: 5 | E173: 30 | F173: 6
B174: 60 | C174: 138 | D174: 5 | E174: 30 | F174: 9
B175: 60 | C175: 144 | D175: 5 | E175: 33 | F175: 6
B176: 60 | C176: 150 | D176: 5 | E176: 33 | F176: 9
B177: 60 | C177: 156 | D177: 5 | E177: 36 | F177: 6
B178: 60 | C178: 162 | D178: 6 | E178: 30 | F178: 6
B179: 60 | C179: 168 | D179: 6 | E179: 30 | F179: 9
B180: 66 | C180: 24 | D180: X | E180: X
B181: 66 | C181: =C180+6 -> 30 | D181: X | E181: X
B182: 66 | C182: 36 | D182: X | E182: X
B183: 66 | C183: 42 | D183: 2 | E183: 30 | F183: 6
B184: 66 | C184: 48 | D184: 2 | E184: 36 | F184: 6
B185: 66 | C185: 54 | D185: 3 | E185: 21 | F185: 6
B186: 66 | C186: 60 | D186: 3 | E186: 24 | F186: 6
B187: 66 | C187: 66 | D187: 4 | E187: 18 | F187: 6
B188: 66 | C188: 72 | D188: 4 | E188: 18 | F188: 9
B189: 66 | C189: 78 | D189: 4 | E189: 21 | F189: 7.5
B190: 66 | C190: 84 | D190: 4 | E190: 24 | F190: 6
B191: 66 | C191: 90 | D191: 5 | E191: 18 | F191: 9
B192: 66 | C192: 96 | D192: 5 | E192: 21 | F192: 6
B193: 66 | C193: 102 | D193: 5 | E193: 21 | F193: 9
B194: 66 | C194: 108 | D194: 5 | E194: 24 | F194: 6
B195: 66 | C195: 114 | D195: 5 | E195: 24 | F195: 9
B196: 66 | C196: 120 | D196: 5 | E196: 27 | F196: 6
B197: 66 | C197: 126 | D197: 5 | E197: =IF(D197="X","X",mastarmspace(C197,D197)) -> 27 | F197: =(C197-((D197-1)*E197))/2 -> 9
B198: 66 | C198: 132 | D198: 5 | E198: 30 | F198: 6
B199: 66 | C199: 138 | D199: 5 | E199: 30 | F199: 9
B200: 66 | C200: 144 | D200: 5 | E200: 33 | F200: 6
B201: 66 | C201: 150 | D201: 5 | E201: 33 | F201: 9
... 78 more rows

Sheet SEQ-PSTAB
B1: =IF(F1="X","Choose one---","") ->  | E1: =IF(F1="X","------->","") ->  | G1: STATEMENT OF ESTIMATED QUANTITIES | I1: <------- | J1: Use this chart title if you are preparing a complete state project plan set.
B2: =IF(F2="X","Choose one---","") -> Choose one--- | E2: =IF(F2="X","------->","") -> -------> | F2: x | G2: PERMANENT SIGNING TABULATION | I2: <------- | J2: Use this chart title if your plan sheet set is part of a larger state project.
B3: =IF(F3="X","Choose one---","") ->  | E3: =IF(F3="X","------->","") ->  | G3: Custom Title - Type Here | I3: <------- | J3: Use this chart title if your plan sheet set is part of a larger state project.
B5: =IF(F1<>"",G1,IF(F2<>"",G2,G3)) -> PERMANENT SIGNING TABULATION | J5: X | L5: Include
C6: SHEET NO | J6: TOTAL | L6: x
B7: TAB | D7: ITEM NO | G7: ITEM | I7: UNIT | J7: =IF(F1<>"","ESTIMATED",IF(F2<>"","SIGNING","SIGNING")) -> SIGNING | L7: x
J8: QUANTITIES | L8: x
B9: AA | D9: 2011.601 | G9: AS BUILT | I9: LUMP SUM | J9: 0 | L9: SIGNING
D10: 2021.501 | G10: MOBILIZATION | I10: LUMP SUM | L10: SIGNING
D11: 2104.502 | G11: REMOVE DELINEATOR | I11: EACH | J11: 0 | L11: SIGNING
D12: 2104.502 | G12: REMOVE MARKER | I12: EACH | J12: 0 | L12: SIGNING
D13: 2104.502 | G13: REMOVE REFERENCE LOCATION SIGN | I13: EACH | L13: SIGNING
D14: 2104.502 | G14: REMOVE SIGN | I14: EACH | L14: SIGNING
D15: 2104.502 | G15: REMOVE SIGN TYPE A | I15: EACH | J15: =AREM!C2 -> 0 | L15: SIGNING
D16: 2104.502 | G16: REMOVE SIGN TYPE C | I16: EACH | J16: 17 | L16: SIGNING
D17: 2104.502 | G17: REMOVE SIGN TYPE D | I17: EACH | J17: =DREM!C15 -> 3 | L17: SIGNING
D18: 2104.502 | G18: REMOVE SIGN TYPE EA | I18: EACH | J18: =EAREM!C14 -> 0 | L18: SIGNING
D19: 2104.502 | G19: REMOVE SIGN TYPE EO | I19: EACH | J19: =EOREM!C14 -> 0 | L19: SIGNING
D20: 2104.502 | G20: REMOVE SIGN TYPE OH (BRIDGE MOUNTED) | I20: EACH | J20: ='OH REM'!F15 -> 0 | L20: SIGNING
D21: 2104.502 | G21: REMOVE SIGN TYPE OH | I21: EACH | J21: ='OH REM'!F14 -> 1 | L21: SIGNING
D22: 2104.502 | G22: REMOVE SIGN TYPE SPECIAL | I22: EACH | J22: 0 | L22: SIGNING
D23: 2104.502 | G23: REMOVE SIGN PANEL OVERLAY TYPE A | I23: EACH | J23: 0 | L23: SIGNING
D24: 2104.502 | G24: REMOVE SIGN PANEL OVERLAY TYPE EA | I24: EACH | J24: =EAOL!K15 -> 0 | L24: SIGNING
D25: 2104.502 | G25: REMOVE SIGN PANEL OVERLAY TYPE EO | I25: EACH | J25: =EOOL!K15 -> 0 | L25: SIGNING
D26: 2104.502 | G26: REMOVE SIGN PANEL OVERLAY TYPE OH | I26: EACH | J26: 0 | L26: SIGNING
D27: 2104.502 | G27: REMOVE SIGN LIGHTING SYSTEM | I27: EACH | J27: ='OH REM LT SYS'!C15 -> 1 | L27: SIGNING
D28: 2104.502 | G28: REMOVE SIGN PANEL TYPE A | I28: EACH | J28: 0 | L28: SIGNING
D29: 2104.502 | G29: REMOVE SIGN PANEL TYPE C | I29: EACH | J29: 0 | L29: SIGNING
D30: 2104.502 | G30: REMOVE SIGN PANEL TYPE D | I30: EACH | J30: ='D REM PANEL'!C15 -> 0 | L30: SIGNING
D31: 2104.502 | G31: REMOVE SIGN PANEL TYPE OH | I31: EACH | J31: ='OH REMPAN'!G14 -> 4 | L31: SIGNING
D32: 2104.502 | G32: REMOVE SIGN FOOTING - TYPE A | I32: EACH | J32: ='A REM FOOT'!C19 -> 2 | L32: SIGNING
D33: 2104.502 | G33: REMOVE SIGN FOOTING - TYPE OH | I33: EACH | J33: ='OH REM FOOT'!C15 -> 1 | L33: SIGNING
D34: 2104.502 | G34: SALVAGE DELINEATOR | I34: EACH | J34: ='DELS&I'!E13 -> 14 | L34: SIGNING
D35: 2104.502 | G35: SALVAGE MARKER | I35: EACH | J35: ='DELS&I'!D13 -> 2 | L35: SIGNING
D36: 2104.502 | G36: SALVAGE REFERENCE LOCATION SIGN | I36: EACH | J36: ='SAL REF SIGN'!C11 -> 3 | L36: SIGNING
D37: 2104.502 | G37: SALVAGE SIGN PANEL TYPE A | I37: EACH | J37: 0 | L37: SIGNING
D38: 2104.502 | G38: SALVAGE SIGN PANEL TYPE C | I38: EACH | J38: 0 | L38: SIGNING
D39: 2104.502 | G39: SALVAGE SIGN PANEL TYPE D | I39: EACH | J39: 0 | L39: SIGNING
D40: 2104.502 | G40: SALVAGE SIGN PANEL TYPE EA | I40: EACH | J40: 0 | L40: SIGNING
D41: 2104.502 | G41: SALVAGE SIGN PANEL TYPE EO | I41: EACH | J41: =ESALINS!C38 -> 0 | L41: SIGNING
D42: 2104.502 | G42: SALVAGE SIGN PANEL TYPE OH | I42: EACH | J42: 0 | L42: SIGNING
D43: 2104.502 | G43: SALVAGE SIGN TYPE A | I43: EACH | J43: 0 | L43: SIGNING
D44: 2104.502 | G44: SALVAGE SIGN TYPE C | I44: EACH | J44: ='CS&I'!C11+CSAL!C15 -> 1 | L44: SIGNING
D45: 2104.502 | G45: SALVAGE SIGN TYPE D | I45: EACH | J45: ='DS&I'!C969 -> 0 | L45: SIGNING
D46: 2104.502 | G46: SALVAGE SIGN TYPE EA | I46: EACH | J46: 0 | L46: SIGNING
D47: 2104.502 | G47: SALVAGE SIGN TYPE EO | I47: EACH | J47: =ESALINS!C38 -> 0 | L47: SIGNING
D48: 2104.502 | G48: SALVAGE SIGN TYPE OH | I48: EACH | J48: 0 | L48: SIGNING
D49: 2104.502 | G49: SALVAGE SIGN TYPE OH (BR MOUNTED) | I49: EACH | J49: 0 | L49: SIGNING
D50: 2104.502 | G50: SALVAGE SIGN TYPE SPECIAL | I50: EACH | J50: 0 | L50: SIGNING
D51: 2104.502 | G51: SALVAGE SIGN SUPPORT OH | I51: EACH | J51: 0 | L51: SIGNING
D52: 2104.503 | G52: REMOVE SIGN WALKWAY | I52: LIN FT | J52: ='OH REM WKWY'!D7 -> 0 | L52: SIGNING
D53: 2104.523 | G53: SALVAGE SIGN | I53: EACH | J53: ='OH REM WKWY'!D8 -> 0 | L53: SIGNING
D54: 2545.516 | G54: SIGN LIGHTING SYSTEM | I54: SYSTEM | J54: ='OH REM WKWY'!D9 -> 0 | L54: SIGNING
D55: 2545.516 | G55: SIGN LIGHTING SYSTEM BRIDGE MOUNTED | I55: SYSTEM | J55: ='OH REM WKWY'!D10 -> 0 | L55: SIGNING
D56: 2545.616 | G56: MODIFY SIGN LIGHTING SYSTEM | I56: SYSTEM | J56: ='OH REM WKWY'!D10 -> 0 | L56: SIGNING
D57: 2563.601 | G57: TRAFFIC CONTROL | I57: LUMP SUM | J57: ='OH REM WKWY'!D11 -> 0 | L57: SIGNING
D58: 2564.502 | G58: MEDIAN BARRIER FOOTING | I58: EACH | J58: 0 | L58: SIGNING
D59: 2564.502 | G59: SIGN SUPPORT SIGN BRIDGE | I59: EACH | J59: ='OH SIGN SUP BRIDGE'!C18 -> 1 | L59: SIGNING
B60: AA | D60: 2564.502 | G60: SIGN SUPPORT CANTILEVER | I60: EACH | J60: ='OH SGN SUP CANT'!B14 -> 1 | L60: SIGNING
B61: BB | D61: 2564.502 | G61: MODIFY POST | I61: EACH | J61: 0 | L61: SIGNING
D62: 2564.502 | G62: INSTALL DELINEATOR | I62: EACH | J62: ='DELS&I'!E13 -> 14 | L62: SIGNING
D63: 2564.502 | G63: INSTALL MARKER | I63: EACH | J63: ='DELS&I'!D13 -> 2 | L63: SIGNING
D64: 2564.502 | G64: INSTALL REFERENCE LOCATION SIGN | I64: EACH | J64: 0 | L64: SIGNING
D65: 2564.502 | G65: INSTALL SIGN PANEL | I65: EACH | J65: 0 | L65: SIGNING
D66: 2564.502 | G66: INSTALL SIGN PANEL TYPE A | I66: EACH | J66: =ASPNLIN!C12 -> 0 | L66: SIGNING
D67: 2564.502 | G67: INSTALL SIGN PANEL TYPE C | I67: EACH | J67: ='CS&I'!C11 -> 1 | L67: SIGNING
D68: 2564.502 | G68: INSTALL SIGN PANEL TYPE D | I68: EACH | J68: 0 | L68: SIGNING
D69: 2564.502 | G69: INSTALL SIGN PANEL TYPE EO | I69: EACH | J69: =ESALINS!C38 -> 0 | L69: SIGNING
D70: 2564.502 | G70: INSTALL SIGN PANEL TYPE OH | I70: EACH | J70: 0 | L70: SIGNING
D71: 2564.502 | G71: INSTALL SIGN PANEL TYPE SPECIAL | I71: EACH | J71: 0 | L71: SIGNING
D72: 2564.502 | G72: INSTALL SIGN PANEL TYPE OVERLAY | I72: EACH | J72: 0 | L72: SIGNING
D73: 2564.502 | G73: INSTALL SIGN TYPE A | I73: EACH | J73: 0 | L73: SIGNING
D74: 2564.502 | G74: INSTALL SIGN TYPE C | I74: EACH | J74: ='CS&I'!C11 -> 1 | L74: SIGNING
D75: 2564.502 | G75: INSTALL SIGN TYPE D | I75: EACH | J75: ='DS&I'!C12+DINS!C16 -> 5 | L75: SIGNING
D76: 2564.502 | G76: INSTALL SIGN TYPE EA | I76: EACH | J76: 0 | L76: SIGNING
D77: 2564.502 | G77: INSTALL SIGN TYPE EO | I77: EACH | J77: =ESALINS!C38 -> 0 | L77: SIGNING
D78: 2564.502 | G78: INSTALL SIGN TYPE OH | I78: EACH | J78: 0 | L78: SIGNING
D79: 2564.502 | G79: INSTALL SIGN TYPE OH (BR MOUNT) | I79: EACH | J79: 0 | L79: SIGNING
D80: 2564.502 | G80: OVERHEAD SIGN IDENTIFICATION PLATE | I80: EACH | J80: ='OH ID '!C14 -> 0 | L80: SIGNING
D81: 2564.502 | G81: LIGHTING SYSTEM IDENTIFICATION PLATE | I81: EACH | L81: SIGNING
D82: 2564.502 | G82: EXTEND WALKWAY SUPPORT | I82: EACH | J82: 0 | L82: SIGNING
D83: 2564.502 | G83: FRICTION FUSE | I83: EACH | J83: 0 | L83: SIGNING
D84: 2564.502 | G84: KEEPER PLATE | I84: EACH | J84: 0 | L84: SIGNING
D85: 2564.502 | G85: DELINEATOR | I85: EACH | J85: 0 | L85: SIGNING
D86: 2564.502 | G86: DELINEATOR TYPE X4-6 | I86: EACH | J86: =DELINEATOR!E7 -> 0 | L86: SIGNING
D87: 2564.502 | G87: DELINEATOR TYPE X4-8 | I87: EACH | J87: =DELINEATOR!E8 -> 0 | L87: SIGNING
D88: 2564.502 | G88: DELINEATOR TYPE X4-13 | I88: EACH | J88: =DELINEATOR!E9 -> 0 | L88: SIGNING
D89: 2564.502 | G89: DELINEATOR TYPE RECOVERABLE | I89: EACH | L89: SIGNING
D90: 2564.502 | G90: DELINEATOR TYPE SPECIAL | I90: EACH | J90: 0 | L90: SIGNING
D91: 2564.502 | G91: BRIDGE NUMBER MARKER X4-12A | I91: EACH | J91: ='BRIDGE NO'!C7 -> 4 | L91: SIGNING
D92: 2564.502 | G92: INFILTRATION AREA MARKER X3-6A | I92: EACH | J92: 0 | L92: SIGNING
D93: 2564.502 | G93: REFERENCE LOCATION SIGN | I93: EACH | J93: ='REF SIGN'!C967 -> 0 | L93: SIGNING
D94: 2564.502 | G94: RIGHT OF WAY MARKER TYPE X3-1 | I94: EACH | J94: =DELINEATOR!E6 -> 0 | L94: SIGNING
D95: 2564.502 | G95: OBJECT MARKER TYPE X4-2 | I95: EACH | J95: =MARKER!D19 -> 4 | L95: SIGNING
D96: 2564.502 | G96: OBJECT MARKER TYPE X4-3 | I96: EACH | J96: =MARKER!D20 -> 1 | L96: SIGNING
D97: 2564.502 | G97: OBJECT MARKER TYPE X4-4 | I97: EACH | J97: =MARKER!D21 -> 9 | L97: SIGNING
D98: 2564.502 | G98: OBJECT MARKER TYPE X4-5 | I98: EACH | J98: =MARKER!D22 -> 1 | L98: SIGNING
D99: 2564.502 | G99: OBJECT MARKER TYPE X4-11 | I99: EACH | J99: =MARKER!D23 -> 2 | L99: SIGNING
D100: 2564.503 | G100: SAW SIGN PANELS | I100: LIN FT | J100: 0 | L100: SIGNING
D101: 2564.503 | G101: SAW SIGN PANELS TYPE A | I101: LIN FT | J101: 0 | L101: SIGNING
D102: 2564.503 | G102: SAW SIGN PANELS TYPE EA | I102: LIN FT | J102: 0 | L102: SIGNING
D103: 2564.503 | G103: SAW SIGN PANELS TYPE EO | I103: LIN FT | J103: 0 | L103: SIGNING
D104: 2564.503 | G104: SAW SIGN PANELS TYPE OH | I104: LIN FT | J104: 0 | L104: SIGNING
D105: 2564.507 | G105: CONCRETE FOOTINGS | I105: CU YD | J105: 0 | L105: SIGNING
D106: 2564.507 | G106: CONCRETE FOOTINGS (TYPE A SIGNS) | I106: CU YD | J106: 0 | L106: SIGNING
D107: 2564.507 | G107: CONCRETE FOOTINGS (TYPE OH SHAFT) | I107: CU YD | J107: ='OH BTQ'!J12 -> 0 | L107: SIGNING
D108: 2564.507 | G108: CONCRETE FOOTINGS (TYPE OH SPREAD) | I108: CU YD | J108: ='OH BTQ'!J11 -> 0 | L108: SIGNING
B109: BB | D109: 2564.507 | G109: CONCRETE FOOTINGS (DESIGN SPECIAL) | I109: CU YD | J109: 0 | L109: SIGNING
B110: CC | D110: 2564.508 | G110: STRUCTURAL STEEL | I110: POUND | J110: 0 | L110: SIGNING
D111: 2564.508 | G111: STRUCT STEEL-POSTS FOR TYPE A SIGNS | H111: (P) | I111: POUND | J111: 0 | L111: SIGNING
D112: 2564.508 | G112: STRUCT STEEL-POSTS FOR OH SIGNS (A) | H112: (P) | I112: POUND | J112: 0 | L112: SIGNING
D113: 2564.508 | G113: STRUCT STEEL-POSTS FOR OH SIGNS (B) | H113: (P) | I113: POUND | J113: ='OH BTQ'!J6 -> 0 | L113: SIGNING
D114: 2564.508 | G114: STRUCT STEEL-POSTS FOR OH SIGNS (C) | H114: (P) | I114: POUND | L114: SIGNING
D115: 2564.508 | G115: STRUCT STEEL-POSTS FOR OH SIGNS (D) | H115: (P) | I115: POUND | L115: SIGNING
D116: 2564.508 | G116: STRUCT STEEL-TRUSSES FOR OH SIGNS (A) | H116: (P) | I116: POUND | J116: 0 | L116: SIGNING
D117: 2564.508 | G117: STRUCT STEEL-TRUSSES FOR OH SIGNS (B) | H117: (P) | I117: POUND | J117: ='OH BTQ'!J7 -> 0 | L117: SIGNING
D118: 2564.508 | G118: STRUCT STEEL-TRUSSES FOR OH SIGNS (C) | H118: (P) | I118: POUND | J118: ='OH BTQ'!J8 -> 0 | L118: SIGNING
D119: 2564.508 | G119: STRUCT STEEL-TRUSSES FOR OH SIGNS (D) | H119: (P) | I119: POUND | J119: ='OH BTQ'!J9 -> 0 | L119: SIGNING
D120: 2564.508 | G120: STR STEEL-TRUSSES FOR OH SIGNS BR MTD | H120: (P) | I120: POUND | J120: =BMST!D9 -> 0 | L120: SIGNING
D121: 2564.508 | G121: STR STEEL-WLKWY SPRT FOR OH SIGNS (B) | H121: (P) | I121: POUND | J121: 0 | L121: SIGNING
D122: 2564.508 | G122: STR STEEL-WLKWY SPRT FOR OH SIGNS (D) | H122: (P) | I122: POUND | J122: 0 | L122: SIGNING
D123: 2564.508 | G123: STR STEEL-WLKWY GRTNG FOR OH SIGNS (B) | H123: (P) | I123: POUND | J123: 0 | L123: SIGNING
D124: 2564.508 | G124: STR STEEL-WLKWY GRTNG FOR OH SIGNS (C) | H124: (P) | I124: POUND | J124: 0 | L124: SIGNING
D125: 2564.508 | G125: STR STEEL-WLKWY GRTNG FOR OH SIGNS (D) | H125: (P) | I125: POUND | J125: 0 | L125: SIGNING
D126: 2564.508 | G126: STR STEEL-WLKWY GRTNG FOR OH SIGNS (SPEC) | H126: (P) | I126: POUND | J126: 0 | L126: SIGNING
D127: 2564.508 | G127: STR STEEL-PANEL MT PST FOR OH SIGNS (A) | H127: (P) | I127: POUND | L127: SIGNING
D128: 2564.508 | G128: STR STEEL-PANEL MT PST FOR OH SIGNS (B) | H128: (P) | I128: POUND | J128: ='OH BTQ'!J10 -> 0 | L128: SIGNING
D129: 2564.508 | G129: STR STEEL-PANEL MT PST FOR OH SIGNS (C) | H129: (P) | I129: POUND | J129: ='OH BTQ'!J11 -> 0 | L129: SIGNING
D130: 2564.508 | G130: STR STEEL-PANEL MT PST FOR OH SIGNS (D) | H130: (P) | I130: POUND | J130: ='OH BTQ'!J12 -> 0 | L130: SIGNING
D131: 2564.518 | G131: OVERHEAD SIGN STRUCTURE REPAIR | I131: HOUR | J131: 0 | L131: SIGNING
D132: 2564.518 | G132: SIGN PANELS TYPE A | H132: (P) | I132: SQ FT | J132: ='SIGN PANELS TYPE A EXTRUDED'!H16+'SIGN PANELS TYPE A'!H18 -> 0 | L132: SIGNING
D133: 2564.518 | G133: SIGN PANELS TYPE C | I133: SQ FT | J133: =ROUNDUP(CSIGN!N985,0) -> 0 | L133: SIGNING
D134: 2564.518 | G134: SIGN PANELS TYPE D | I134: SQ FT | J134: =ROUNDUP(DSIGN!O975,0) -> 0 | L134: SIGNING
D135: 2564.518 | G135: SIGN PANELS TYPE EA | H135: (P) | I135: SQ FT | J135: =EA!J975+EAEXTFI!K9 -> 0 | L135: SIGNING
D136: 2564.518 | G136: SIGN PANELS TYPE EO | H136: (P) | I136: SQ FT | J136: =EO!J15+'EO EXT PAN SECT'!I20 -> 0 | L136: SIGNING
D137: 2564.518 | G137: SIGN PANELS TYPE OH | H137: (P) | I137: SQ FT | J137: ='SIGN PANELS TYPE OH'!P17+'SIGN PANELS TYPE OH (EXT PAN )'!G8 -> 0 | L137: SIGNING
D138: 2564.518 | G138: SIGN PANELS TYPE OVERLAY | I138: SQ FT | J138: =ROUNDUP(OL!J973,0) -> 0 | L138: SIGNING
D139: 2564.518 | G139: SIGN PANELS TYPE SPECIAL | I139: SQ FT | J139: 0 | L139: SIGNING
D140: 2564.518 | G140: SIGN PANEL OVERLAY TYPE A | H140: (P) | I140: SQ FT | J140: 0 | L140: SIGNING
D141: 2564.518 | G141: SIGN PANEL OVERLAY TYPE EA | H141: (P) | I141: SQ FT | J141: 0 | L141: SIGNING
D142: 2564.518 | G142: SIGN PANEL OVERLAY TYPE EO | H142: (P) | I142: SQ FT | J142: 0 | L142: SIGNING
D143: 2564.518 | G143: SIGN PANEL OVERLAY TYPE OH | H143: (P) | I143: SQ FT | J143: ='OH OL'!P17 -> 0 | L143: SIGNING
D144: 2564.518 | G144: FURNISH SIGN PANELS TYPE C | I144: SQ FT | J144: 0 | L144: SIGNING
D145: 2564.518 | G145: FURNISH SIGN PANELS TYPE D | I145: SQ FT | J145: 0 | L145: SIGNING
D146: 2564.518 | G146: FURNISH SIGN PANELS TYPE OH | I146: SQ FT | J146: 0 | L146: SIGNING
D147: 2564.518 | G147: FURNISH SIGN PANELS TYPE OVERLAY | I147: SQ FT | J147: 0 | L147: SIGNING
D148: 2013.603 | G148: SAFETY CABLE | I148: LIN FT | J148: ='safety cable'!E15 -> 96 | L148: SIGNING
D149: 2104.601 | G149: SALVAGE LIGHTING SYSTEM | I149: LUMP SUM | J149: 0 | L149: SIGNING
D150: 2564.602 | G150: INSTALL SIGN COLLAR | I150: EACH | J150: 0 | L150: SIGNING
D151: 2564.602 | G151: SIGN COLLAR | I151: EACH | J151: 0 | L151: SIGNING
D152: 2564.602 | G152: CONC PEDESTAL EXTENSION DES SPEC | I152: EACH | J152: 0 | L152: SIGNING
D153: 2564.602 | G153: INSTALL SIGN | I153: EACH | J153: 0 | L153: SIGNING
D154: 2564.602 | G154: INSTALL STEEL POST | I154: EACH | J154: 0 | L154: SIGNING
D155: 2564.602 | G155: FOUNDATION SPECIAL OH | I155: EACH | J155: 0 | L155: SIGNING
D156: 2564.602 | G156: MEDIAN SIGN POST ANCHOR | I156: EACH | J156: 0 | L156: SIGNING
D157: 2564.602 | G157: REPAIR SIGN TYPE OH | I157: EACH | J157: 0 | L157: SIGNING
D158: 2564.602 | G158: FURNISH & INSTALL TRAFFIC WARNING SIGN | I158: EACH | J158: 0 | L158: SIGNING
D159: 2564.602 | G159: INSTALL SIGN SUPPORT | I159: EACH | J159: 0 | L159: SIGNING
D160: 2564.602 | G160: REPOSITION SIGN PANEL TYPE OH | I160: EACH | J160: =OHREPOSPNL!P11 -> 4 | L160: SIGNING
B161: CC | D161: 2564.602 | G161: REPOSITION SIGN PANEL | I161: EACH | J161: 0 | L161: SIGNING
B162: DD | D162: 2564.602 | G162: HIGHWAY ADVISORY RADIO SIGN | I162: EACH | J162: 0 | L162: SIGNING
D163: 2564.602 | G163: MODIFY SIGN TYPE OH (BR MTD) | I163: EACH | J163: 0 | L163: SIGNING
D164: 2564.602 | G164: MODIFY SIGN TYPE OH | I164: EACH | J164: 0 | L164: SIGNING
D165: 2564.602 | G165: INSTALL SIGN TRUSS | I165: EACH | J165: 0 | L165: SIGNING
D166: 2564.602 | G166: RELOCATE SIGN | I166: EACH | J166: 0 | L166: SIGNING
D167: 2564.602 | G167: INSTALL SIGN TYPE SPECIAL | I167: EACH | J167: 0 | L167: SIGNING
D168: 2564.602 | G168: FURNISH DELINEATOR | I168: EACH | J168: 0 | L168: SIGNING
D169: 2564.602 | G169: FURNISH DELINEATOR TYPE RECOVERABLE | I169: EACH | L169: SIGNING
D170: 2564.602 | G170: FURNISH DELINEATOR/MARKER PANEL | I170: EACH | L170: SIGNING
D171: 2564.602 | G171: FURNISH MARKER | I171: EACH | J171: 0 | L171: SIGNING
D172: 2564.602 | G172: FURNISH TYPE C SIGN | I172: EACH | J172: 0 | L172: SIGNING
D173: 2564.602 | G173: FURNISH SIGN POSTS | I173: EACH | J173: 0 | L173: SIGNING
D174: 2564.602 | G174: CONCRETE FOOTINGS DESIGN SPECIAL | I174: EACH | J174: 0 | L174: SIGNING
D175: 2564.602 | G175: INTERNALLY ILLUMINATED SIGN | I175: EACH | J175: 0 | L175: SIGNING
D176: 2564.602 | G176: DELINEATOR/MARKER PANEL | I176: EACH | L176: SIGNING
D177: 2564.602 | G177: DELINEATOR/MARKER SIGN | I177: EACH | L177: SIGNING
D178: 2564.602 | G178: SIGN FRAME | I178: EACH | L178: SIGNING
D179: 2564.602 | G179: SUPPLEMENTAL DESCRIPTION | I179: EACH | J179: 0 | L179: SIGNING
D180: 2564.608 | G180: FURNISH STRUCTURAL STEEL 2.5# U-POST | I180: POUND | J180: 0 | L180: SIGNING
D181: 2564.608 | G181: FURNISH STRUCTURAL STEEL 3# U-POST | I181: POUND | J181: 0 | L181: SIGNING
D182: 2564.618 | G182: SIGN TYPE C | I182: SQ FT | J182: 0 | L182: SIGNING
B183: DD | D183: 2564.618 | G183: SIGN TYPE D | I183: SQ FT | J183: 0 | L183: SIGNING
L186: x
L187: x
B188: GENERAL NOTE:
B189: FOR SIGNS THAT ARE LOCATED ADJACENT TO A SIDEWALK OR TRAIL, A 4' MINIMUM (6' PREFERRED) UNOBSTRUCTED PAVED WALKWAY OR PATH
B191: (P) DENOTES PLAN QUANTITY | L191: High
B192: ="(3) OTHER NOTES." -> (3) OTHER NOTES. | L192: High
B193: ="(4) OTHER NOTES." -> (4) OTHER NOTES. | L193: High

Sheet SEQ-4Temp (hidden)
B5: =IF('SEQ-PSTAB'!F1<>"",'SEQ-PSTAB'!G1,IF('SEQ-PSTAB'!F2<>"",'SEQ-PSTAB'!G2,'SEQ-PSTAB'!G3)) -> PERMANENT SIGNING TABULATION | H5: X
C6: SHEET NO | H6: TOTAL
B7: TAB | D7: ITEM NO | F7: ITEM | G7: UNIT | H7: ESTIMATED
H8: QUANTITIES

Sheet TOC
B2: PAGE NO | C2: SHEET NAME
B3: ID PLATE (STANDARD SIGN DRAWINGS)
B4: 0 | C4: OH IDENTIFICATION PLATE
B5: 0 | C5: FEED POINT IDENTIFICATION PLATE
B6: PLACEMENT DETAILS
B7: ST13 | C7: SIGN PLACEMENT
B8: ST87 | C8: DELINEATORS AND MARKERS
B9: 58 | C9: FLANGED CHANNEL POST MOUNTED THROUGH SURFACED MEDIAN OR SIDEWALK
B10: A SIGN STRUCTURAL DETAILS
B11: 0 | C11: H-PILE FOOTINGS - SHEET 1
B12: 0 | C12: H-PILE FOOTINGS - SHEET 2
B14: 0 | C14: CONCRETE FOOTINGS - SHEET 1
B15: 0 | C15: CONCRETE FOOTINGS - SHEET 2
B17: 0 | C17: POST MODIFICATIONS
B18: C & D SIGN STRUCTURAL DETAILS
B19: ST23 | C19: SHEET 1 (MAIN)
B20: ST24 | C20: SHEET 2 (A-FRAME)
B21: ST25 | C21: SHEET 3 (PUNCH) * PUNCHING DETAILS ARE IN STANDARDS SIGN MANUAL PAGE 110.
B22: C SIGN: VARIOUS MOUNTING SHEETS
B23: 57 | C23: TYPE C SIGNS MOUNTED ON BRIDGE MEDIAN ISLAND
B24: 56 | C24: TYPE C SIGNS, DELINEATORES, & MARKERS IN CONCRETE
B25: 59 | C25: TYPC C SIGNS MOUNTED ON O-POSTS, OH SIGN POSTS, OR SIGNAL STANDARDS
B26: MOUNTED ON BRIDGE RAIL
B27: 32 | C27: 4 1/2" O-PIPE [A]
B28: 0 | C28: 6 5/8" O-PIPE
B29: 0 | C29: 4 1/2" O-PIPE [B]
B30: 0 | C30: WALL RAIL
B31: BRIDGE MOUNTED (D SIGNS ONLY)
B32: 36 | C32: DESIGN A1
B33: 0 | C33: DESIGN B4
B34: 0 | C34: DESIGN B3
B35: 0 | C35: DESIGN B2
B36: 0 | C36: DESIGN B1
B37: 0 | C37: DESIGN A2
B38: 0 | C38: DESIGN B5
B39: EA & EO SIGNS
B40: 94 | C40: STRUCTURAL DETAIL
B41: OH (OVERHEAD) SIGNS
B42: 0 | C42: PANEL MOUNTING POST MODIFICATION DETAILS
B43: 0 | C43: OH SIGN SUPPORTS
B44: 0 | C44: OH SIGN SAFETY CABLE - DESIGN A
B45: 0 | C45: OH SIGN SAFETY CABLE - DESIGN B
B46: 0 | C46: GENERAL ELEVATIONS AND NOTES (DRAWING ST-1)
B47: 0 | C47: CAMBER, POST IDENTIFICATION, AND ESTIMATED QUANTITIES (DRAWING ST-2)
B48: 0 | C48: FOUNDATIONS AND ANCHOR RODS (DRAWING ST-3)
B49: 0 | C49: TRUSS/POST CONNECTION & BASEPLATES (DRAWING ST-4)
B50: 0 | C50: SIGN TRUSS DETAILS - TRUSS TYPE A (DRAWING ST-5)
B51: 0 | C51: SIGN TRUSS DETAILS - TRUSS TYPE B (DRAWING ST-6)
B52: 0 | C52: SIGN TRUSS DETAILS - TRUSS TYPE C (DRAWING ST-7)
B53: 0 | C53: WALKWAY DETAILS (DRAWING ST-8)
B54: 0 | C54: FOLDING HANDRAIL (DRAWING ST-9)
B55: 0 | C55: SIGN PANEL AND PANEL MOUNTING POSTS DETAILS (DRAWING ST-10)
B56: 0 | C56: ELECTRICAL DETAILS (DRAWING ST-11)
B57: 0 | C57: ELECTRICAL DETAILS (DRAWING ST-12)
B58: 0 | C58: MODIFIED ELECTRICAL DETAILS (DRAWING ST-13) (INPLACE OF 12 UNLESS BOTH CMS & REG. OH)
C59: D PANELS
B60: ST81 | C60: FIRST PAGE OF TYPE D SIGN PANEL LAYOUTS
B61: ST94 | C61: LAST PAGE OF SIGN PANEL TYPE D LAYOUTS
C62: EO PANELS
B63: ST27 | C63: FIRST PAGE OF TYPE EO SIGN PANEL LAYOUTS
B64: ST47 | C64: LAST PAGE OF TYPE EO SIGN PANEL LAYOUTS
C65: OH PANELS
B66: ST67 | C66: FIRST PAGE OF TYPE OH SIGN PANEL LAYOUTS
B67: ST68 | C67: LAST PAGE OF TYPE OH SIGN PANEL LAYOUTS
C68: OH OVERLAY
B69: ST70 | C69: FIRST PAGE OF TYPE OH SIGN PANEL OVERLAY LAYOUTS
B70: ST71 | C70: LAST PAGE OF TYPE OH SIGN PANEL OVERLAY LAYOUTS

Sheet POSTS25 (hidden)
B2: 2.5# POSTS
B3: HEIGHT | C3: LENGTH | D3: V-POST | E3: K-POST
B4: INCH
B5: 12 | C5: 12 | D5: 1 | E5: 0
B6: =B5+6 -> 18 | C6: 12 | D6: 1 | E6: 0
B7: 24 | C7: 12 | D7: 1 | E7: 0
B8: 30 | C8: 12 | D8: 1 | E8: 0
B9: 36 | C9: 12 | D9: 2 | E9: 0
B10: 42 | C10: 12 | D10: 2 | E10: 0
B11: 48 | C11: 12 | D11: 2 | E11: 0
B12: 54 | C12: 12 | D12: 2 | E12: 0
B13: 60 | C13: 12 | D13: 2 | E13: 1
B14: 66 | C14: 12 | D14: 2 | E14: 1
B15: 72 | C15: 12 | D15: 2 | E15: 1
B16: 78 | C16: 12 | D16: 2 | E16: 1
B17: 84 | C17: 12 | D17: 2 | E17: 1
B18: 90 | C18: 12 | D18: 2 | E18: 1
B19: 96 | C19: 12 | D19: 2 | E19: 1
B20: 102 | C20: 12 | D20: 2 | E20: 1
B21: 108 | C21: 12 | D21: 2 | E21: 1
B22: 114 | C22: 12 | D22: 2 | E22: 1
B23: 120 | C23: 12 | D23: 2 | E23: 1
B24: 126 | C24: 12 | D24: 2 | E24: 1
B25: 132 | C25: 12 | D25: 2 | E25: 1
B26: 138 | C26: 12 | D26: 2 | E26: 1
B27: 144 | C27: 12 | D27: 2 | E27: 1
B28: 150 | C28: 12 | D28: 2 | E28: 1
B29: 12 | C29: 18 | D29: 1 | E29: 0
B30: =B29+6 -> 18 | C30: 18 | D30: 1 | E30: 0
B31: 24 | C31: 18 | D31: 2 | E31: 0
B32: 30 | C32: 18 | D32: 2 | E32: 0
B33: 36 | C33: 18 | D33: 2 | E33: 0
B34: 42 | C34: 18 | D34: 2 | E34: 1
B35: 48 | C35: 18 | D35: 2 | E35: 1
B36: 54 | C36: 18 | D36: 2 | E36: 1
B37: 60 | C37: 18 | D37: 2 | E37: 1
B38: 66 | C38: 18 | D38: 2 | E38: 1
B39: 72 | C39: 18 | D39: 2 | E39: 1
B40: 78 | C40: 18 | D40: 2 | E40: 1
B41: 84 | C41: 18 | D41: 2 | E41: 1
B42: 90 | C42: 18 | D42: 2 | E42: 1
B43: 96 | C43: 18 | D43: 2 | E43: 1
B44: 102 | C44: 18 | D44: 2 | E44: 1
B45: 108 | C45: 18 | D45: 2 | E45: 1
B46: 114 | C46: 18 | D46: 2 | E46: 1
B47: 120 | C47: 18 | D47: 2 | E47: 1
B48: 126 | C48: 18 | D48: 2 | E48: 1
B49: 132 | C49: 18 | D49: 2 | E49: 2
B50: 138 | C50: 18 | D50: 2 | E50: 2
B51: 144 | C51: 18 | D51: 2 | E51: 2
B52: 150 | C52: 18 | D52: 2 | E52: 2
B53: 12 | C53: 24 | D53: 1 | E53: 0
B54: =B53+6 -> 18 | C54: 24 | D54: 2 | E54: 0
B55: 24 | C55: 24 | D55: 2 | E55: 0
B56: 30 | C56: 24 | D56: 2 | E56: 0
B57: 36 | C57: 24 | D57: 2 | E57: 1
B58: 42 | C58: 24 | D58: 2 | E58: 1
B59: 48 | C59: 24 | D59: 2 | E59: 1
B60: 54 | C60: 24 | D60: 2 | E60: 1
B61: 60 | C61: 24 | D61: 2 | E61: 1
B62: 66 | C62: 24 | D62: 2 | E62: 1
B63: 72 | C63: 24 | D63: 2 | E63: 1
B64: 78 | C64: 24 | D64: 2 | E64: 1
B65: 84 | C65: 24 | D65: 2 | E65: 1
B66: 90 | C66: 24 | D66: 2 | E66: 1
B67: 96 | C67: 24 | D67: 2 | E67: 1
B68: 102 | C68: 24 | D68: 2 | E68: 1
B69: 108 | C69: 24 | D69: 2 | E69: 1
B70: 114 | C70: 24 | D70: 2 | E70: 2
B71: 120 | C71: 24 | D71: 2 | E71: 2
B72: 126 | C72: 24 | D72: 2 | E72: 2
B73: 132 | C73: 24 | D73: 2 | E73: 2
B74: 138 | C74: 24 | D74: 2 | E74: 2
B75: 144 | C75: 24 | D75: 2 | E75: 2
B76: 150 | C76: 24 | D76: 2 | E76: 2
B77: 12 | C77: 30 | D77: 1 | E77: 0
B78: =B77+6 -> 18 | C78: 30 | D78: 2 | E78: 0
B79: 24 | C79: 30 | D79: 2 | E79: 0
B80: 30 | C80: 30 | D80: 2 | E80: 1
B81: 36 | C81: 30 | D81: 2 | E81: 1
B82: 42 | C82: 30 | D82: 2 | E82: 1
B83: 48 | C83: 30 | D83: 2 | E83: 1
B84: 54 | C84: 30 | D84: 2 | E84: 1
B85: 60 | C85: 30 | D85: 2 | E85: 1
B86: 66 | C86: 30 | D86: 2 | E86: 1
B87: 72 | C87: 30 | D87: 2 | E87: 1
B88: 78 | C88: 30 | D88: 2 | E88: 1
B89: 84 | C89: 30 | D89: 2 | E89: 1
B90: 90 | C90: 30 | D90: 2 | E90: 1
B91: 96 | C91: 30 | D91: 2 | E91: 1
B92: 102 | C92: 30 | D92: 2 | E92: 2
B93: 108 | C93: 30 | D93: 2 | E93: 2
B94: 114 | C94: 30 | D94: 2 | E94: 2
B95: 120 | C95: 30 | D95: 2 | E95: 2
B96: 126 | C96: 30 | D96: 2 | E96: 2
B97: 132 | C97: 30 | D97: 2 | E97: 2
B98: 138 | C98: 30 | D98: 2 | E98: 2
B99: 12 | C99: 36 | D99: 2 | E99: 0
B100: =B99+6 -> 18 | C100: 36 | D100: 2 | E100: 0
B101: 24 | C101: 36 | D101: 2 | E101: 1
B102: 30 | C102: 36 | D102: 2 | E102: 1
B103: 36 | C103: 36 | D103: 2 | E103: 1
B104: 42 | C104: 36 | D104: 2 | E104: 1
B105: 48 | C105: 36 | D105: 2 | E105: 1
B106: 54 | C106: 36 | D106: 2 | E106: 1
B107: 60 | C107: 36 | D107: 2 | E107: 1
B108: 66 | C108: 36 | D108: 2 | E108: 1
B109: 72 | C109: 36 | D109: 2 | E109: 1
B110: 78 | C110: 36 | D110: 2 | E110: 1
B111: 84 | C111: 36 | D111: 2 | E111: 1
B112: 90 | C112: 36 | D112: 2 | E112: 2
B113: 96 | C113: 36 | D113: 2 | E113: 2
B114: 102 | C114: 36 | D114: 2 | E114: 2
B115: 108 | C115: 36 | D115: 2 | E115: 2
B116: 114 | C116: 36 | D116: 2 | E116: 2
B117: 120 | C117: 36 | D117: 2 | E117: 2
B118: 12 | C118: 42 | D118: 2 | E118: 0
B119: =B118+6 -> 18 | C119: 42 | D119: 2 | E119: 0
B120: 24 | C120: 42 | D120: 2 | E120: 1
B121: 30 | C121: 42 | D121: 2 | E121: 1
B122: 36 | C122: 42 | D122: 2 | E122: 1
B123: 42 | C123: 42 | D123: 2 | E123: 1
B124: 48 | C124: 42 | D124: 2 | E124: 1
B125: 54 | C125: 42 | D125: 2 | E125: 1
B126: 60 | C126: 42 | D126: 2 | E126: 1
B127: 66 | C127: 42 | D127: 2 | E127: 1
B128: 72 | C128: 42 | D128: 2 | E128: 1
B129: 78 | C129: 42 | D129: 2 | E129: 2
B130: 84 | C130: 42 | D130: 2 | E130: 2
B131: 90 | C131: 42 | D131: 2 | E131: 2
B132: 96 | C132: 42 | D132: 2 | E132: 2
B133: 102 | C133: 42 | D133: 2 | E133: 2
B134: 108 | C134: 42 | D134: 2 | E134: 2
B135: 114 | C135: 42 | D135: 2 | E135: 2
B136: 120 | C136: 42 | D136: 2 | E136: 2
B137: 12 | C137: 48 | D137: 2 | E137: 0
B138: =B137+6 -> 18 | C138: 48 | D138: 2 | E138: 1
B139: 24 | C139: 48 | D139: 2 | E139: 1
B140: 30 | C140: 48 | D140: 2 | E140: 1
B141: 36 | C141: 48 | D141: 2 | E141: 1
B142: 42 | C142: 48 | D142: 2 | E142: 1
B143: 48 | C143: 48 | D143: 2 | E143: 1
B144: 54 | C144: 48 | D144: 2 | E144: 1
B145: 60 | C145: 48 | D145: 2 | E145: 1
B146: 66 | C146: 48 | D146: 2 | E146: 1
B147: 72 | C147: 48 | D147: 2 | E147: 2
B148: 78 | C148: 48 | D148: 2 | E148: 2
B149: 84 | C149: 48 | D149: 2 | E149: 2
B150: 90 | C150: 48 | D150: 2 | E150: 2
B151: 96 | C151: 48 | D151: 2 | E151: 2
B152: 102 | C152: 48 | D152: 2 | E152: 2
B153: 108 | C153: 48 | D153: 2 | E153: 2
B154: 12 | C154: 54 | D154: 1 | E154: 0
B155: =B154+6 -> 18 | C155: 54 | D155: 2 | E155: 1
B156: 24 | C156: 54 | D156: 2 | E156: 1
B157: 30 | C157: 54 | D157: 2 | E157: 1
B158: 36 | C158: 54 | D158: 2 | E158: 1
B159: 42 | C159: 54 | D159: 2 | E159: 1
B160: 48 | C160: 54 | D160: 2 | E160: 1
B161: 54 | C161: 54 | D161: 2 | E161: 1
B162: 60 | C162: 54 | D162: 2 | E162: 1
B163: 66 | C163: 54 | D163: 2 | E163: 2
B164: 72 | C164: 54 | D164: 2 | E164: 2
B165: 78 | C165: 54 | D165: 2 | E165: 2
B166: 84 | C166: 54 | D166: 2 | E166: 2
B167: 90 | C167: 54 | D167: 2 | E167: 2
B168: 96 | C168: 54 | D168: 2 | E168: 2
B169: 12 | C169: 60 | D169: 1 | E169: 0
B170: =B169+6 -> 18 | C170: 60 | D170: 2 | E170: 1
B171: 24 | C171: 60 | D171: 2 | E171: 1
B172: 30 | C172: 60 | D172: 2 | E172: 1
B173: 36 | C173: 60 | D173: 2 | E173: 1
B174: 42 | C174: 60 | D174: 2 | E174: 1
B175: 48 | C175: 60 | D175: 2 | E175: 1
B176: 54 | C176: 60 | D176: 2 | E176: 1
B177: 60 | C177: 60 | D177: 2 | E177: 2
B178: 66 | C178: 60 | D178: 2 | E178: 2
B179: 72 | C179: 60 | D179: 2 | E179: 2
B180: 78 | C180: 60 | D180: 2 | E180: 2
B181: 84 | C181: 60 | D181: 2 | E181: 2
B182: 90 | C182: 60 | D182: 2 | E182: 2
B183: 12 | C183: 66 | D183: 1 | E183: 0
B184: =B183+6 -> 18 | C184: 66 | D184: 2 | E184: 2
B185: 24 | C185: 66 | D185: 2 | E185: 2
B186: 30 | C186: 66 | D186: 2 | E186: 2
B187: 36 | C187: 66 | D187: 2 | E187: 2
B188: 42 | C188: 66 | D188: 2 | E188: 2
B189: 48 | C189: 66 | D189: 2 | E189: 2
B190: 54 | C190: 66 | D190: 2 | E190: 2
B191: 60 | C191: 66 | D191: 2 | E191: 2
B192: 66 | C192: 66 | D192: 2 | E192: 2
B193: 72 | C193: 66 | D193: 2 | E193: 2
B194: 78 | C194: 66 | D194: 2 | E194: 2
B195: 84 | C195: 66 | D195: 2 | E195: 2
B196: 90 | C196: 66 | D196: 2 | E196: 2
B197: 12 | C197: 72 | D197: 2 | E197: 2
B198: =B197+6 -> 18 | C198: 72 | D198: 2 | E198: 2
B199: 24 | C199: 72 | D199: 2 | E199: 2
B200: 30 | C200: 72 | D200: 2 | E200: 2
B201: 36 | C201: 72 | D201: 2 | E201: 2
... 211 more rows

Sheet POSTS30 (hidden)
B2: 3.0# POSTS
B3: HEIGHT | C3: LENGTH | D3: V-POST | E3: K-POST
B4: INCH
B5: 12 | C5: 12 | D5: 1 | E5: 0
B6: 18 | C6: 12 | D6: 1 | E6: 0
B7: 24 | C7: 12 | D7: 1 | E7: 0
B8: 30 | C8: 12 | D8: 1 | E8: 0
B9: 36 | C9: 12 | D9: 2 | E9: 0
B10: 42 | C10: 12 | D10: 2 | E10: 0
B11: 48 | C11: 12 | D11: 2 | E11: 0
B12: 54 | C12: 12 | D12: 2 | E12: 0
B13: 60 | C13: 12 | D13: 2 | E13: 0
B14: 66 | C14: 12 | D14: 2 | E14: 0
B15: 72 | C15: 12 | D15: 2 | E15: 1
B16: 78 | C16: 12 | D16: 2 | E16: 1
B17: 84 | C17: 12 | D17: 2 | E17: 1
B18: 90 | C18: 12 | D18: 2 | E18: 1
B19: 96 | C19: 12 | D19: 2 | E19: 1
B20: 102 | C20: 12 | D20: 2 | E20: 1
B21: 108 | C21: 12 | D21: 2 | E21: 1
B22: 114 | C22: 12 | D22: 2 | E22: 1
B23: 120 | C23: 12 | D23: 2 | E23: 1
B24: 126 | C24: 12 | D24: 2 | E24: 1
B25: 132 | C25: 12 | D25: 2 | E25: 1
B26: 138 | C26: 12 | D26: 2 | E26: 1
B27: 144 | C27: 12 | D27: 2 | E27: 1
B28: 150 | C28: 12 | D28: 2 | E28: 1
B29: 12 | C29: 18 | D29: 1 | E29: 0
B30: 18 | C30: 18 | D30: 1 | E30: 0
B31: 24 | C31: 18 | D31: 1 | E31: 0
B32: 30 | C32: 18 | D32: 2 | E32: 0
B33: 36 | C33: 18 | D33: 2 | E33: 0
B34: 42 | C34: 18 | D34: 2 | E34: 0
B35: 48 | C35: 18 | D35: 2 | E35: 1
B36: 54 | C36: 18 | D36: 2 | E36: 1
B37: 60 | C37: 18 | D37: 2 | E37: 1
B38: 66 | C38: 18 | D38: 2 | E38: 1
B39: 72 | C39: 18 | D39: 2 | E39: 1
B40: 78 | C40: 18 | D40: 2 | E40: 1
B41: 84 | C41: 18 | D41: 2 | E41: 1
B42: 90 | C42: 18 | D42: 2 | E42: 1
B43: 96 | C43: 18 | D43: 2 | E43: 1
B44: 102 | C44: 18 | D44: 2 | E44: 1
B45: 108 | C45: 18 | D45: 2 | E45: 1
B46: 114 | C46: 18 | D46: 2 | E46: 1
B47: 120 | C47: 18 | D47: 2 | E47: 1
B48: 126 | C48: 18 | D48: 2 | E48: 1
B49: 132 | C49: 18 | D49: 2 | E49: 1
B50: 138 | C50: 18 | D50: 2 | E50: 2
B51: 144 | C51: 18 | D51: 2 | E51: 2
B52: 150 | C52: 18 | D52: 2 | E52: 2
B53: 12 | C53: 24 | D53: 1 | E53: 0
B54: 18 | C54: 24 | D54: 1 | E54: 0
B55: 24 | C55: 24 | D55: 2 | E55: 0
B56: 30 | C56: 24 | D56: 2 | E56: 0
B57: 36 | C57: 24 | D57: 2 | E57: 0
B58: 42 | C58: 24 | D58: 2 | E58: 1
B59: 48 | C59: 24 | D59: 2 | E59: 1
B60: 54 | C60: 24 | D60: 2 | E60: 1
B61: 60 | C61: 24 | D61: 2 | E61: 1
B62: 66 | C62: 24 | D62: 2 | E62: 1
B63: 72 | C63: 24 | D63: 2 | E63: 1
B64: 78 | C64: 24 | D64: 2 | E64: 1
B65: 84 | C65: 24 | D65: 2 | E65: 1
B66: 90 | C66: 24 | D66: 2 | E66: 1
B67: 96 | C67: 24 | D67: 2 | E67: 1
B68: 102 | C68: 24 | D68: 2 | E68: 1
B69: 108 | C69: 24 | D69: 2 | E69: 1
B70: 114 | C70: 24 | D70: 2 | E70: 2
B71: 120 | C71: 24 | D71: 2 | E71: 2
B72: 126 | C72: 24 | D72: 2 | E72: 2
B73: 132 | C73: 24 | D73: 2 | E73: 2
B74: 138 | C74: 24 | D74: 2 | E74: 2
B75: 144 | C75: 24 | D75: 2 | E75: 2
B76: 150 | C76: 24 | D76: 2 | E76: 2
B77: 12 | C77: 30 | D77: 1 | E77: 0
B78: 18 | C78: 30 | D78: 2 | E78: 0
B79: 24 | C79: 30 | D79: 2 | E79: 0
B80: 30 | C80: 30 | D80: 2 | E80: 0
B81: 36 | C81: 30 | D81: 2 | E81: 1
B82: 42 | C82: 30 | D82: 2 | E82: 1
B83: 48 | C83: 30 | D83: 2 | E83: 1
B84: 54 | C84: 30 | D84: 2 | E84: 1
B85: 60 | C85: 30 | D85: 2 | E85: 1
B86: 66 | C86: 30 | D86: 2 | E86: 1
B87: 72 | C87: 30 | D87: 2 | E87: 1
B88: 78 | C88: 30 | D88: 2 | E88: 1
B89: 84 | C89: 30 | D89: 2 | E89: 1
B90: 90 | C90: 30 | D90: 2 | E90: 1
B91: 96 | C91: 30 | D91: 2 | E91: 1
B92: 102 | C92: 30 | D92: 2 | E92: 2
B93: 108 | C93: 30 | D93: 2 | E93: 2
B94: 114 | C94: 30 | D94: 2 | E94: 2
B95: 120 | C95: 30 | D95: 2 | E95: 2
B96: 126 | C96: 30 | D96: 2 | E96: 2
B97: 132 | C97: 30 | D97: 2 | E97: 2
B98: 138 | C98: 30 | D98: 2 | E98: 2
B99: 144 | C99: 30 | D99: 2 | E99: 2
B100: 12 | C100: 36 | D100: 2 | E100: 0
B101: 18 | C101: 36 | D101: 2 | E101: 0
B102: 24 | C102: 36 | D102: 2 | E102: 0
B103: 30 | C103: 36 | D103: 2 | E103: 1
B104: 36 | C104: 36 | D104: 2 | E104: 1
B105: 42 | C105: 36 | D105: 2 | E105: 1
B106: 48 | C106: 36 | D106: 2 | E106: 1
B107: 54 | C107: 36 | D107: 2 | E107: 1
B108: 60 | C108: 36 | D108: 2 | E108: 1
B109: 66 | C109: 36 | D109: 2 | E109: 1
B110: 72 | C110: 36 | D110: 2 | E110: 1
B111: 78 | C111: 36 | D111: 2 | E111: 1
B112: 84 | C112: 36 | D112: 2 | E112: 1
B113: 90 | C113: 36 | D113: 2 | E113: 2
B114: 96 | C114: 36 | D114: 2 | E114: 2
B115: 102 | C115: 36 | D115: 2 | E115: 2
B116: 108 | C116: 36 | D116: 2 | E116: 2
B117: 114 | C117: 36 | D117: 2 | E117: 2
B118: 120 | C118: 36 | D118: 2 | E118: 2
B119: 126 | C119: 36 | D119: 2 | E119: 2
B120: 132 | C120: 36 | D120: 2 | E120: 2
B121: 12 | C121: 42 | D121: 2 | E121: 0
B122: 18 | C122: 42 | D122: 2 | E122: 0
B123: 24 | C123: 42 | D123: 2 | E123: 1
B124: 30 | C124: 42 | D124: 2 | E124: 1
B125: 36 | C125: 42 | D125: 2 | E125: 1
B126: 42 | C126: 42 | D126: 2 | E126: 1
B127: 48 | C127: 42 | D127: 2 | E127: 1
B128: 54 | C128: 42 | D128: 2 | E128: 1
B129: 60 | C129: 42 | D129: 2 | E129: 1
B130: 66 | C130: 42 | D130: 2 | E130: 1
B131: 72 | C131: 42 | D131: 2 | E131: 1
B132: 78 | C132: 42 | D132: 2 | E132: 1
B133: 84 | C133: 42 | D133: 2 | E133: 2
B134: 90 | C134: 42 | D134: 2 | E134: 2
B135: 96 | C135: 42 | D135: 2 | E135: 2
B136: 102 | C136: 42 | D136: 2 | E136: 2
B137: 108 | C137: 42 | D137: 2 | E137: 2
B138: 114 | C138: 42 | D138: 2 | E138: 2
B139: 120 | C139: 42 | D139: 2 | E139: 2
B140: 12 | C140: 48 | D140: 2 | E140: 0
B141: 18 | C141: 48 | D141: 2 | E141: 0
B142: 24 | C142: 48 | D142: 2 | E142: 1
B143: 30 | C143: 48 | D143: 2 | E143: 1
B144: 36 | C144: 48 | D144: 2 | E144: 1
B145: 42 | C145: 48 | D145: 2 | E145: 1
B146: 48 | C146: 48 | D146: 2 | E146: 1
B147: 54 | C147: 48 | D147: 2 | E147: 1
B148: 60 | C148: 48 | D148: 2 | E148: 1
B149: 66 | C149: 48 | D149: 2 | E149: 1
B150: 72 | C150: 48 | D150: 2 | E150: 1
B151: 78 | C151: 48 | D151: 2 | E151: 2
B152: 84 | C152: 48 | D152: 2 | E152: 2
B153: 90 | C153: 48 | D153: 2 | E153: 2
B154: 96 | C154: 48 | D154: 2 | E154: 2
B155: 102 | C155: 48 | D155: 2 | E155: 2
B156: 108 | C156: 48 | D156: 2 | E156: 2
B157: 12 | C157: 54 | D157: 2 | E157: 0
B158: 18 | C158: 54 | D158: 2 | E158: 1
B159: 24 | C159: 54 | D159: 2 | E159: 1
B160: 30 | C160: 54 | D160: 2 | E160: 1
B161: 36 | C161: 54 | D161: 2 | E161: 1
B162: 42 | C162: 54 | D162: 2 | E162: 1
B163: 48 | C163: 54 | D163: 2 | E163: 1
B164: 54 | C164: 54 | D164: 2 | E164: 1
B165: 60 | C165: 54 | D165: 2 | E165: 1
B166: 66 | C166: 54 | D166: 2 | E166: 1
B167: 72 | C167: 54 | D167: 2 | E167: 2
B168: 78 | C168: 54 | D168: 2 | E168: 2
B169: 84 | C169: 54 | D169: 2 | E169: 2
B170: 90 | C170: 54 | D170: 2 | E170: 2
B171: 96 | C171: 54 | D171: 2 | E171: 2
B172: 102 | C172: 54 | D172: 2 | E172: 2
B173: 12 | C173: 60 | D173: 2 | E173: 0
B174: 18 | C174: 60 | D174: 2 | E174: 1
B175: 24 | C175: 60 | D175: 2 | E175: 1
B176: 30 | C176: 60 | D176: 2 | E176: 1
B177: 36 | C177: 60 | D177: 2 | E177: 1
B178: 42 | C178: 60 | D178: 2 | E178: 1
B179: 48 | C179: 60 | D179: 2 | E179: 1
B180: 54 | C180: 60 | D180: 2 | E180: 1
B181: 60 | C181: 60 | D181: 2 | E181: 1
B182: 66 | C182: 60 | D182: 2 | E182: 2
B183: 72 | C183: 60 | D183: 2 | E183: 2
B184: 78 | C184: 60 | D184: 2 | E184: 2
B185: 84 | C185: 60 | D185: 2 | E185: 2
B186: 90 | C186: 60 | D186: 2 | E186: 2
B187: 96 | C187: 60 | D187: 2 | E187: 2
B188: 12 | C188: 66 | D188: 3 | E188: 0
B189: 18 | C189: 66 | D189: 2 | E189: 2
B190: 24 | C190: 66 | D190: 2 | E190: 2
B191: 30 | C191: 66 | D191: 2 | E191: 2
B192: 36 | C192: 66 | D192: 2 | E192: 2
B193: 42 | C193: 66 | D193: 2 | E193: 2
B194: 48 | C194: 66 | D194: 2 | E194: 2
B195: 54 | C195: 66 | D195: 2 | E195: 2
B196: 60 | C196: 66 | D196: 2 | E196: 2
B197: 66 | C197: 66 | D197: 2 | E197: 2
B198: 72 | C198: 66 | D198: 2 | E198: 2
B199: 78 | C199: 66 | D199: 2 | E199: 2
B200: 84 | C200: 66 | D200: 2 | E200: 2
B201: 90 | C201: 66 | D201: 2 | E201: 2
... 231 more rows

Sheet ESGNPOSTS (hidden)
B2: E SIGN POST SPACING
B3: WIDTH | C3: 2 POSTS | D3: 3 POSTS | E3: 4 POSTS
B4: INCH
B5: 48 | C5: 30
B6: =B5+6 -> 54 | C6: 30
B7: =B6+6 -> 60 | C7: 36
B8: 66 | C8: 36
B9: 72 | C9: 42
B10: 78 | C10: 48
B11: 84 | C11: 48
B12: 90 | C12: 54
B13: 96 | C13: 54
B14: 102 | D14: 36
B15: 108 | D15: 36
B16: 114 | D16: 42
B17: 120 | D17: 42
B18: 126 | D18: 42
B19: 132 | D19: 48
B20: 138 | D20: 48
B21: 144 | D21: 54
B22: 150 | E22: 42
B23: 156 | E23: 42
B24: 162 | E24: 42
B25: 168 | E25: 42
B26: 174 | E26: 48
B27: 180 | E27: 48

Sheet POSTSPACING (hidden)
B2: SIGN POST SPACING
B3: WIDTH | C3: 2 POSTS | D3: 3 POSTS | E3: 4 POSTS
B4: INCH
B5: 36 | C5: 24
B6: =B5+6 -> 42 | C6: 30
B7: 48 | C7: 30
B8: 54 | C8: 30
B9: 60 | C9: 36
B10: 66 | C10: 42
B11: 72 | C11: 42
B12: 78 | C12: 54
B13: 84 | C13: 54
B14: 90 | C14: 54
B15: 96 | C15: 54
B16: 102 | C16: 60 | D16: 45
B17: 108 | C17: 66 | D17: 45
B18: 114 | C18: 66 | D18: 45
B19: 120 | C19: 72 | D19: 45
B20: 126 | C20: 78 | D20: 45
B21: 132 | C21: 78 | D21: 45
B22: 138 | C22: 78 | D22: 48
B23: 144 | C23: 90 | D23: 51 | E23: 45
B24: 150 | C24: 90 | D24: 54 | E24: 45
B25: 156 | C25: 90 | D25: 54 | E25: 45
B26: 162 | C26: 96 | D26: 57 | E26: 48
B27: 168 | C27: 96 | D27: 60 | E27: 48
B28: 174 | C28: 102 | D28: 63 | E28: 54
B29: 180 | C29: 108 | D29: 63 | E29: 54

Sheet PICILINKS (hidden)
A1: Rev | B1: Item_Number | C1: Short_Description | D1: Units_Code
B2: 2102.501/00010 | C2: PAVEMENT MARKING REMOVAL | D2: S F
A3: F | B3: 2104.509/00170 | C3: REMOVE DELINEATOR | D3: EACH | E3: DELREM
A4: F | B4: 2104.509/00180 | C4: REMOVE MARKER | D4: EACH
B5: 2104.509/00199 | C5: REMOVE SIGN | D5: EACH
B6: 2104.509/00200 | C6: REMOVE SIGN TYPE A (BRIDGE MOUNTED) | D6: EACH
A7: x | B7: 2104.509/00201 | C7: REMOVE SIGN TYPE A | D7: EACH | E7: AREM | F7: ABASRM
A8: F | B8: 2104.509/00203 | C8: REMOVE SIGN TYPE C | D8: EACH
A9: F | B9: 2104.509/00205 | C9: REMOVE SIGN TYPE D | D9: EACH | E9: DREM
B10: 2104.509/00206 | C10: REMOVE SIGN TYPE EA | D10: EACH
B11: 2104.509/00207 | C11: REMOVE SIGN TYPE EO | D11: EACH
B12: 2104.509/00208 | C12: REMOVE SIGN TYPE OH (BRIDGE MOUNTED) | D12: EACH
B13: 2104.509/00209 | C13: REMOVE SIGN TYPE OH | D13: EACH
B14: 2104.509/00210 | C14: REMOVE SIGN TYPE D (BRIDGE MOUNTED) | D14: EACH
B15: 2104.509/00220 | C15: REMOVE SIGN TYPE SPECIAL | D15: EACH | E15: AEXTRM
B16: 2104.509/00250 | C16: REMOVE SIGN PANEL OVERLAY TYPE A | D16: EACH
B17: 2104.509/00251 | C17: REMOVE SIGN PANEL OVERLAY TYPE OH | D17: EACH
B18: 2104.509/00252 | C18: REMOVE SIGN PANEL OVERLAY TYPE EA | D18: EACH
B19: 2104.509/00253 | C19: REMOVE SIGN PANEL OVERLAY TYPE EO | D19: EACH
B20: 2104.509/00410 | C20: REMOVE SIGN BASE | D20: EACH
B21: 2104.509/00411 | C21: REMOVE SIGN BASE-TYPE OH | D21: EACH
B22: 2104.509/00412 | C22: REMOVE SIGN BASE-TYPE A | D22: EACH | E22: ABASRM
B23: 2104.509/00497 | C23: REMOVE SIGN PANEL TYPE C | D23: EACH
B24: 2104.509/00498 | C24: REMOVE SIGN PANEL TYPE D | D24: EACH
B25: 2104.509/00499 | C25: REMOVE SIGN PANEL TYPE A | D25: EACH | F25: AEXTRM
B26: 2104.509/00500 | C26: REMOVE SIGN PANEL TYPE OH | D26: EACH
B27: 2104.509/00660 | C27: REMOVE HISTORIC PLAQUE | D27: EACH
B28: 2104.509/00700 | C28: REMOVE WOOD INFORMATION SIGN | D28: EACH
B29: 2104.523/00067 | C29: SALVAGE HISTORIC MARKER | D29: EACH
B30: 2104.523/00068 | C30: SALVAGE HISTORIC PLAQUE | D30: EACH
B31: 2104.523/00069 | C31: SALVAGE DEDICATION PLAQUE | D31: EACH
A32: F | B32: 2104.523/00072 | C32: SALVAGE MARKER | D32: EACH | E32: DELS&I
A33: F | B33: 2104.523/00075 | C33: SALVAGE DELINEATOR | D33: EACH | E33: DELS&I
B34: 2104.523/00078 | C34: SALVAGE GUIDE POST TYPE A | D34: EACH
B35: 2104.523/00080 | C35: SALVAGE GUIDE POST TYPE B | D35: EACH
B36: 2104.523/00475 | C36: SALVAGE PED PUSH BUTTON AND SIGN | D36: EACH
B37: 2104.523/00530 | C37: SALVAGE R10-10 SIGN | D37: EACH
B38: 2104.523/00531 | C38: SALVAGE R11-2 SIGN | D38: EACH
B39: 2104.523/00537 | C39: SALVAGE SIGN SUPPORT | D39: EACH
B40: 2104.523/00538 | C40: SALVAGE COMMERCIAL SIGN | D40: EACH
B41: 2104.523/00539 | C41: SALVAGE SIGN | D41: EACH
A42: x | B42: 2104.523/00540 | C42: SALVAGE SIGN TYPE A | D42: EACH | E42: ASAL | F42: AS&IHP
A43: x | B43: 2104.523/00543 | C43: SALVAGE SIGN TYPE C | D43: EACH | E43: CS&I | F43: CSAL
A44: x | B44: 2104.523/00544 | C44: SALVAGE SIGN TYPE D | D44: EACH | E44: DS&I | F44: DSAL
B45: 2104.523/00547 | C45: SALVAGE SIGN TYPE EA | D45: EACH
B46: 2104.523/00548 | C46: SALVAGE SIGN TYPE EO | D46: EACH
B47: 2104.523/00549 | C47: SALVAGE SIGN TYPE OH (BR MOUNTED) | D47: EACH
B48: 2104.523/00550 | C48: SALVAGE SIGN TYPE OH | D48: EACH
B49: 2104.523/00560 | C49: SALVAGE SIGN TYPE SPECIAL | D49: EACH
B50: 2104.523/00593 | C50: SALVAGE SIGN PANEL TYPE A | D50: EACH | E50: ASPNLSAL | F50: ASPNLIN | G50: ASPNLSAL
B51: 2104.523/00594 | C51: SALVAGE SIGN PANEL TYPE A (EXTRUD) | D51: EACH | E51: AEXTSA | F51: AEXTRM | G51: ASPNLSAL
B52: 2104.523/00595 | C52: SALVAGE SIGN PANEL TYPE A (FLT SHT) | D52: EACH
B53: 2104.523/00598 | C53: SALVAGE SIGN PANEL TYPE EA | D53: EACH
B54: 2104.523/00600 | C54: SALVAGE SIGN PANEL TYPE EO | D54: EACH
B55: 2104.523/00601 | C55: SALVAGE SIGN PANEL TYPE OH | D55: EACH
B56: 2104.523/00605 | C56: SALVAGE SIGN PANEL TP OH (FLT SHT) | D56: EACH
B57: 2104.523/00606 | C57: SALVAGE SIGN PANEL TYPE C | D57: EACH
B58: 2104.523/00608 | C58: SALVAGE SIGN PANEL TYPE D | D58: EACH
B59: 2104.523/00610 | C59: SALVAGE SIGN PANEL TYPE D (BR MTD) | D59: EACH
B60: 2104.523/00652 | C60: SALVAGE SIGN POST TYPE B | D60: EACH
B61: 2104.602/00025 | C61: RELOCATE COMMERCIAL SIGN | D61: EACH
B62: 2232.602/00010 | C62: MILLED RUMBLE STRIPS | D62: EACH
B63: 2232.603/00025 | C63: MILLED RUMBLE STRIPS | D63: L F
B64: 2232.603/00030 | C64: MILLED RUMBLE STRIPS-INTERMITTENT | D64: L F
B65: 2232.603/00035 | C65: MILLED RUMBLE STRIPS-CENTERLINE | D65: L F
B66: 2554.602/00080 | C66: REPLACE DELINEATOR TYPE SPEC (NEW) | D66: EACH
B67: 2554.602/00081 | C67: REPLACE DELINEATOR TYPE SPEC(SALV) | D67: EACH
B68: 2563.601/00210 | C68: STOP SIGN RELOCATION | D68: LS
B69: 2563.601/00220 | C69: SIGN REMOVAL | D69: LS
B70: 2563.613/01200 | C70: SIGNS BY SQUARE INCH | D70: UDAY
B71: 2563.613/01220 | C71: 24"X24" SIGN | D71: UDAY
B72: 2563.613/01221 | C72: 24"X24" SIGN WITH SUPPORTS | D72: UDAY
B73: 2563.613/01441 | C73: 4'X4' SIGN WITH SUPPORTS | D73: UDAY
B74: 2563.618/00011 | C74: CONSTRUCTION SIGN-SPECIAL | D74: S F
B75: 2563.618/00024 | C75: FURNISH, INSTALL & REMOVE TYPE D SIGNS | D75: S F
B76: 2563.618/00030 | C76: SIGN PANEL COVER | D76: S F
B77: 2564.511/00010 | C77: CONCRETE FOOTINGS (TYPE OH SPREAD) | D77: C Y
B78: 2564.511/00011 | C78: CONCRETE FOOTINGS (TYPE A SIGNS) | D78: C Y
B79: 2564.511/00012 | C79: CONCRETE FOOTINGS (TYPE OH SHAFT) | D79: C Y
B80: 2564.511/00013 | C80: CONCRETE FOOTINGS DESIGN SPECIAL | D80: C Y
B81: 2564.515/00010 | C81: SIGN SUPPORT | D81: EACH
B82: 2564.515/00011 | C82: SIGN SUPPORT TYPE A | D82: EACH
B83: 2564.515/00020 | C83: SIGN SUPPORT SIGN OH | D83: EACH
B84: 2564.515/00030 | C84: SIGN SUPPORT CANTILEVER | D84: EACH
A85: x | B85: 2564.522/00111 | C85: STRUCT STEEL-POSTS FOR TYPE A SIGNS | D85: LB | E85: AS&IHP | F85: ASIGNHP
B86: 2564.522/00121 | C86: STRUCT STEEL-POSTS FOR OH SIGNS (A) | D86: LB
B87: 2564.522/00122 | C87: STRUCT STEEL-POSTS FOR OH SIGNS (B) | D87: LB
B88: 2564.522/00221 | C88: STRUCT STEEL-TRUSSES FOR OH SIGNS (A) | D88: LB
B89: 2564.522/00222 | C89: STRUCT STEEL-TRUSSES FOR OH SIGNS (B) | D89: LB
B90: 2564.522/00225 | C90: STR STEEL-TRUSSES FOR OH SIGNS BR MTD | D90: LB
B91: 2564.522/00226 | C91: STR STEEL-TRUS FOR OH SIGNS (A) BR MTD | D91: LB
B92: 2564.522/00228 | C92: STR STEEL-TRUSSES FOR A SIGNS BR MTD | D92: LB
B93: 2564.522/00251 | C93: STR STEEL-SIGN CMS 100 A (BR MTD) | D93: LB
B94: 2564.522/00322 | C94: STR STEEL-WLKWY SPRT FOR OH SIGNS (B) | D94: LB
B95: 2564.522/00422 | C95: STR STEEL-WLKWY GRTNG FOR OH SIGNS (B) | D95: LB
B96: 2564.522/00522 | C96: STR STEEL-PANEL MT PST FOR OH SIGNS (B) | D96: LB
B97: 2564.522/00530 | C97: STR STEEL-SIGN BRKT OH SIGNS (B) | D97: LB
A98: x | B98: 2564.524/00010 | C98: MODIFY POST | D98: EACH | E98: APSTMOD
B99: 2564.531/00105 | C99: SIGN PANELS TYPE SPECIAL | D99: S F
A100: x | B100: 2564.531/00110 | C100: SIGN PANELS TYPE A | D100: S F | E100: ASPNL | F100: OL | G100: AEXT | H100: ASIGNHP
A101: x | B101: 2564.531/00111 | C101: SIGN PANELS TYPE A (EXTRUDED) | D101: S F
A102: x | B102: 2564.531/00112 | C102: SIGN PANELS TYPE A (FLAT SHEET) | D102: S F
A103: x | B103: 2564.531/00130 | C103: SIGN PANELS TYPE C | D103: S F | E103: CSIGN
A104: x | B104: 2564.531/00140 | C104: SIGN PANELS TYPE D | D104: S F | E104: DSIGN | F104: OL
B105: 2564.531/00141 | C105: SIGN PANELS TYPE D-SIGNALS | D105: S F
B106: 2564.531/00142 | C106: SIGN PANELS TYPE D-SIGNAL SYS A | D106: S F
B107: 2564.531/00143 | C107: SIGN PANELS TYPE D-SIGNAL SYS B | D107: S F
B108: 2564.531/00144 | C108: SIGN PANELS TYPE D-SIGNAL SYS C | D108: S F
B109: 2564.531/00145 | C109: SIGN PANELS TYPE D-SIGNAL SYS D | D109: S F
B110: 2564.531/00146 | C110: SIGN PANELS TYPE D-SIGNAL SYS E | D110: S F
B111: 2564.531/00149 | C111: SIGN PANELS TYPE D-SIGNAL SYS I | D111: S F
B112: 2564.531/00151 | C112: SIGN PANELS TYPE EA | D112: S F
B113: 2564.531/00158 | C113: SIGN PANELS TYPE EO | D113: S F
B114: 2564.531/00159 | C114: SIGN PANELS TYPE EO (EXTRUDED) | D114: S F
B115: 2564.531/00160 | C115: SIGN PANELS TYPE EO (LOUVERED) | D115: S F
B116: 2564.531/00189 | C116: SIGN PANELS TYPE OVERLAY | D116: S F | E116: OL | F116: APSTCLP
B117: 2564.531/00190 | C117: SIGN PANELS TYPE OH | D117: S F | E117: OL
B118: 2564.531/00191 | C118: SIGN PANELS TYPE OH (EXTRUDED) | D118: S F
B119: 2564.531/00192 | C119: SIGN PANELS TYPE OH (LOUVERED) | D119: S F
B120: 2564.531/00193 | C120: SIGN PANELS TYPE OH (FLAT SHEET) | D120: S F
B121: 2564.533/00130 | C121: FURNISH SIGN PANELS TYPE C | D121: S F
B122: 2564.533/00140 | C122: FURNISH SIGN PANELS TYPE D | D122: S F
B123: 2564.533/00190 | C123: FURNISH SIGN PANELS TYPE OVERLAY | D123: S F
B124: 2564.533/00195 | C124: FURNISH SIGN PANELS TYPE OH | D124: S F
A125: x | B125: 2564.534/00010 | C125: SAW SIGN PANELS | D125: L F
B126: 2564.534/00011 | C126: SAW SIGN PANELS TYPE A | D126: L F | E126: ASPNLSAW
B127: 2564.534/00016 | C127: SAW SIGN PANELS TYPE OH | D127: L F
A128: x | B128: 2564.534/00017 | C128: SAW SIGN PANELS TYPE OH (EXTRUDED) | D128: L F
A129: x | B129: 2564.535/00010 | C129: SIGN PANEL OVERLAY TYPE A | D129: S F | E129: ASPNLOL | F129: APSTCLP | G129: APSTMOD | H129: OL
B130: 2564.535/00100 | C130: SIGN PANEL OVERLAY TYPE OH | D130: S F | E130: OL
B131: 2564.535/00110 | C131: SIGN PANEL OVERLAY TYPE EO | D131: S F
B132: 2564.535/00120 | C132: SIGN PANEL OVERLAY TYPE EA | D132: S F
B133: 2564.536/00010 | C133: INSTALL SIGN PANEL | D133: EACH
A134: x | B134: 2564.536/00011 | C134: INSTALL SIGN PANEL TYPE A | D134: EACH | E134: ASPNLIN
A135: x | B135: 2564.536/00013 | C135: INSTALL SIGN PANEL TYPE C | D135: EACH
B136: 2564.536/00014 | C136: INSTALL SIGN PANEL TYPE D | D136: EACH
B137: 2564.536/00020 | C137: INSTALL SIGN PANEL TYPE OH | D137: EACH
B138: 2564.536/00030 | C138: INSTALL SIGN PANEL TYPE EO | D138: EACH
A139: x | B139: 2564.537/00010 | C139: INSTALL SIGN TYPE A | D139: EACH | E139: AS&IHP
A140: x | B140: 2564.537/00013 | C140: INSTALL SIGN TYPE C | D140: EACH | E140: CS&I | F140: CINS
A141: x | B141: 2564.537/00014 | C141: INSTALL SIGN TYPE D | D141: EACH | E141: DS&I | F141: DINS
B142: 2564.537/00020 | C142: INSTALL SIGN TYPE OH | D142: EACH
B143: 2564.537/00021 | C143: INSTALL SIGN TYPE OH (BR MOUNT) | D143: EACH
B144: 2564.537/00022 | C144: INSTALL SIGN TYPE CMS (BR MOUNT) | D144: EACH
B145: 2564.537/00030 | C145: INSTALL SIGN TYPE SPECIAL | D145: EACH
B146: 2564.537/00040 | C146: INSTALL SIGN TYPE EO | D146: EACH
B147: 2564.537/00045 | C147: INSTALL SIGN TYPE EA | D147: EACH
B148: 2564.538/00009 | C148: SIGN LEGEND REVISION | D148: EACH
B149: 2564.538/00010 | C149: SIGN LEGEND REVISION TYPE EA | D149: EACH
B150: 2564.538/00015 | C150: SIGN LEGEND REVISION TYPE EO | D150: EACH
B151: 2564.538/00020 | C151: SIGN LEGEND REVISION TYPE OH | D151: EACH
B152: 2564.538/00021 | C152: SIGN LEGEND REVISION TYPE OH-SPECIAL | D152: EACH
B153: 2564.538/00031 | C153: SIGN LEGEND REVISION TYPE A | D153: EACH | E153: ALGNDREV
B154: 2564.538/00034 | C154: SIGN LEGEND REVISION TYPE D | D154: EACH
B155: 2564.539/00010 | C155: OVERHEAD SIGN IDENTIFICATION PLATE | D155: EACH
B156: 2564.540/00010 | C156: EXTEND WALKWAY SUPPORT | D156: EACH
B157: 2564.540/00011 | C157: EXTEND WALKWAY SUPPORT (A) | D157: EACH
B158: 2564.540/00012 | C158: EXTEND WALK SUPPORT (B) | D158: EACH
A159: x | B159: 2564.550/00010 | C159: DELINEATOR | D159: EACH | E159: DELIN
A160: x | B160: 2564.550/00011 | C160: DELINEATOR TYPE SPECIAL | D160: EACH | E160: DELIN
A161: x | B161: 2564.550/00020 | C161: DELINEATOR TYPE ONE TENTH MILE | D161: EACH | E161: DELIN
A162: x | B162: 2564.550/00030 | C162: DELINEATOR TYPE CYLINDER STYLE | D162: EACH | E162: DELIN
A163: x | B163: 2564.550/00040 | C163: DELINEATOR TYPE ALIGNMENT | D163: EACH | E163: DELIN
A164: x | B164: 2564.550/00111 | C164: DELINEATOR TYPE X4-6 | D164: EACH | E164: DELIN
A165: x | B165: 2564.551/00010 | C165: REFERENCE POST MARKER | D165: EACH | E165: RPM
A166: x | B166: 2564.552/00010 | C166: HAZARD MARKER X4-2 | D166: EACH | E166: DELIN
A167: x | B167: 2564.553/00010 | C167: CLEARANCE MARKER X4-4 | D167: EACH | E167: DELIN
A168: x | B168: 2564.554/00010 | C168: SNOW PLOW MARKER X4-5 | D168: EACH | E168: DELIN
A169: x | B169: 2564.555/00010 | C169: END OF ROADWAY MARKER X4-11 | D169: EACH | E169: DELIN
B170: 2564.601/00100 | C170: INTERNALLY LIT SIGNING OH | D170: LS
B171: 2564.601/00101 | C171: INTERNALLY LIT SIGNING OH A | D171: LS
B172: 2564.601/00102 | C172: INTERNALLY LIT SIGNING OH B | D172: LS
B173: 2564.601/00103 | C173: INTERNALLY LIT SIGNING OH C | D173: LS
B174: 2564.601/00104 | C174: INTERNALLY LIT SIGNING OH D | D174: LS
B175: 2564.601/00105 | C175: INTERNALLY LIT SIGNING OH E | D175: LS
B176: 2564.601/00106 | C176: INTERNALLY LIT SIGNING OH F | D176: LS
B177: 2564.601/00107 | C177: INTERNALLY LIT SIGNING OH G | D177: LS
B178: 2564.601/00108 | C178: INTERNALLY LIT SIGNING OH H | D178: LS
B179: 2564.601/00109 | C179: INTERNALLY LIT SIGNING OH I | D179: LS
B180: 2564.601/00110 | C180: INTERNALLY LIT SIGNING OH J | D180: LS
B181: 2564.601/00111 | C181: INTERNALLY LIT SIGNING OH K | D181: LS
B182: 2564.601/00112 | C182: INTERNALLY LIT SIGNING OH L | D182: LS
B183: 2564.602/00001 | C183: INSTALL SIGN COLLAR | D183: EACH
B184: 2564.602/00005 | C184: SIGN COLLAR | D184: EACH
B185: 2564.602/00008 | C185: CONC PEDESTAL EXTENSION DES SPEC | D185: EACH
A186: x | B186: 2564.602/00010 | C186: INSTALL DELINEATOR | D186: EACH | E186: DELS&I
B187: 2564.602/00015 | C187: INSTALL SIGN | D187: EACH
B188: 2564.602/00018 | C188: INSTALL STEEL POST | D188: EACH
B189: 2564.602/00023 | C189: SALV & INST WILDLIFE WARNING REFLECTER | D189: EACH
B190: 2564.602/00024 | C190: SALVAGE AND INSTALL OH SIGNS | D190: EACH
B191: 2564.602/00025 | C191: SALVAGE, MOD & REINSTALL OH SIGN | D191: EACH
B192: 2564.602/00026 | C192: SALVAGE AND REINSTALL OH SIGN | D192: EACH
B193: 2564.602/00027 | C193: SALVAGE, MOD & REINSTALL TYPE A SIGN | D193: EACH | F193: ABASRM | G193: AEXTSA | H193: AEXTRM
B194: 2564.602/00031 | C194: FOUNDATION SPECIAL OH | D194: EACH
B195: 2564.602/00033 | C195: MEDIAN SIGN POST ANCHOR | D195: EACH
B196: 2564.602/00035 | C196: REPAIR SIGN TYPE OH | D196: EACH
B197: 2564.602/00036 | C197: REPAIR SIGN TYPE OH | D197: EACH
B198: 2564.602/00037 | C198: SHORTEN PANEL MOUNTING POST | D198: EACH
B199: 2564.602/00038 | C199: SHORTEN TYPE A SIGN POST | D199: EACH | E199: APSTMOD
B200: 2564.602/00042 | C200: EXTEND TYPE A SIGN POST | D200: EACH | E200: APSTMOD
... 94 more rows

Sheet ACTIVITIES
B2: IN PLAN | C2: ACTIVITY NO | D2: ACTIVITY DESCRIPTION
B3: x | C3: 1 | D3: FURNISH & INSTALL
B4: x | C4: 2 | D4: INPLACE
C5: 3 | D5: SALVAGE
B6: x | C6: 4 | D6: REMOVE
B7: x | C7: 5 | D7: REMOVE SIGN TYPE C
B8: x | C8: 6 | D8: INSTALL
B9: x | C9: =SUBTOTAL(3,$D$9:D9)+6 -> 7 | D9: F & I SIGN PANEL OVERLAY(S)
B10: x | C10: =SUBTOTAL(3,$D$9:D10)+6 -> 8 | D10: F & I SIGN PANEL(S)
C11: =SUBTOTAL(3,$D$9:D11)+6 -> 9 | D11: F & I LEFT SIGN PANEL
C12: =SUBTOTAL(3,$D$9:D12)+6 -> 10 | D12: F & I MIDDLE SIGN PANEL
C13: =SUBTOTAL(3,$D$9:D13)+6 -> 11 | D13: F & I RIGHT SIGN PANEL
C14: =SUBTOTAL(3,$D$9:D14)+6 -> 12 | D14: F & I SIGN PANEL(S) AND PANEL MOUNTING POSTS
B15: x | C15: =SUBTOTAL(3,$D$9:D15)+6 -> 13 | D15: F & I LEFT SIGN PANEL AND PANEL MOUNTING POSTS
C16: =SUBTOTAL(3,$D$9:D16)+6 -> 14 | D16: F & I MIDDLE SIGN PANEL AND PANEL MOUNTING POSTS
C17: =SUBTOTAL(3,$D$9:D17)+6 -> 15 | D17: F & I RIGHT SIGN PANEL AND PANEL MOUNTING POSTS
B18: x | C18: =SUBTOTAL(3,$D$9:D18)+6 -> 16 | D18: F & I SIGN PANEL OVERLAY(S)
C19: =SUBTOTAL(3,$D$9:D19)+6 -> 17 | D19: F & I SIGN PANEL OVERLAY LEFT SIGN PANEL
B20: x | C20: =SUBTOTAL(3,$D$9:D20)+6 -> 18 | D20: F & I SIGN PANEL OVERLAY MIDDLE SIGN PANEL
C21: =SUBTOTAL(3,$D$9:D21)+6 -> 19 | D21: F & I SIGN PANEL OVERLAY RIGHT SIGN PANEL
C22: =SUBTOTAL(3,$D$9:D22)+6 -> 20 | D22: SIGN LEGEND REVISION
C23: =SUBTOTAL(3,$D$9:D23)+6 -> 21 | D23: SIGN LEGEND REVISION LEFT SIGN PANEL
C24: =SUBTOTAL(3,$D$9:D24)+6 -> 22 | D24: SIGN LEGEND REVISION MIDDLE SIGN PANEL
C25: =SUBTOTAL(3,$D$9:D25)+6 -> 23 | D25: SIGN LEGEND REVISION RIGHT SIGN PANEL
C26: =SUBTOTAL(3,$D$9:D26)+6 -> 24 | D26: SALVAGE SIGN PANEL(S)
C27: =SUBTOTAL(3,$D$9:D27)+6 -> 25 | D27: SALVAGE LEFT SIGN PANEL
C28: =SUBTOTAL(3,$D$9:D28)+6 -> 26 | D28: SALVAGE MIDDLE SIGN PANEL
C29: =SUBTOTAL(3,$D$9:D29)+6 -> 27 | D29: SALVAGE RIGHT SIGN PANEL
C30: =SUBTOTAL(3,$D$9:D30)+6 -> 28 | D30: REMOVE SIGN PANEL(S)
C31: =SUBTOTAL(3,$D$9:D31)+6 -> 29 | D31: REMOVE LEFT SIGN PANEL
C32: =SUBTOTAL(3,$D$9:D32)+6 -> 30 | D32: REMOVE MIDDLE SIGN PANEL
C33: =SUBTOTAL(3,$D$9:D33)+6 -> 31 | D33: REMOVE RIGHT SIGN PANEL
C34: =SUBTOTAL(3,$D$9:D34)+6 -> 32 | D34: MODIFY PANEL MOUNTING POSTS
C35: =SUBTOTAL(3,$D$9:D35)+6 -> 33 | D35: MODIFY PANEL MOUNTING POSTS LEFT SIGN PANEL
C36: =SUBTOTAL(3,$D$9:D36)+6 -> 34 | D36: MODIFY PANEL MOUNTING POSTS MIDDLE SIGN PANEL
C37: =SUBTOTAL(3,$D$9:D37)+6 -> 35 | D37: MODIFY PANEL MOUNTING POSTS RIGHT SIGN PANEL
C38: =SUBTOTAL(3,$D$9:D38)+6 -> 36 | D38: F & I EXTRUDED PANEL SECTION(S)
C39: =SUBTOTAL(3,$D$9:D39)+6 -> 37 | D39: F & I EXTRUDED PANEL SECTION(S) LEFT SIGN PANEL
C40: =SUBTOTAL(3,$D$9:D40)+6 -> 38 | D40: F & I EXTRUDED PANEL SECTION(S) MIDDLE SIGN PANEL
C41: =SUBTOTAL(3,$D$9:D41)+6 -> 39 | D41: F & I EXTRUDED PANEL SECTION(S) RIGHT SIGN PANEL
C42: =SUBTOTAL(3,$D$9:D42)+6 -> 40 | D42: REMOVE EXTRUDED PANEL SECTION(S)
C43: =SUBTOTAL(3,$D$9:D43)+6 -> 41 | D43: REMOVE EXTRUDED PANEL SECTION(S) LEFT SIGN PANEL
C44: =SUBTOTAL(3,$D$9:D44)+6 -> 42 | D44: REMOVE EXTRUDED PANEL SECTION(S) MIDDLE SIGN PANEL
C45: =SUBTOTAL(3,$D$9:D45)+6 -> 43 | D45: REMOVE EXTRUDED PANEL SECTION(S) RIGHT SIGN PANEL
C46: =SUBTOTAL(3,$D$9:D46)+6 -> 44 | D46: SAW SIGN PANEL(S)
C47: =SUBTOTAL(3,$D$9:D47)+6 -> 45 | D47: SAW LEFT SIGN PANEL
C48: =SUBTOTAL(3,$D$9:D48)+6 -> 46 | D48: SAW MIDDLE SIGN PANEL
C49: =SUBTOTAL(3,$D$9:D49)+6 -> 47 | D49: SAW RIGHT SIGN PANEL
C50: =SUBTOTAL(3,$D$9:D50)+6 -> 48 | D50: MODIFY SIGN STRUCTURE
C51: =SUBTOTAL(3,$D$9:D51)+6 -> 49 | D51: REPOSITION LEFT SIGN PANEL
C52: =SUBTOTAL(3,$D$9:D52)+6 -> 50 | D52: REPOSITION MIDDLE SIGN PANEL
C53: =SUBTOTAL(3,$D$9:D53)+6 -> 51 | D53: REPOSITION RIGHT SIGN PANEL
C54: =SUBTOTAL(3,$D$9:D54)+6 -> 52 | D54: RAISE SIGN PANEL(S) 8"
C55: =SUBTOTAL(3,$D$9:D55)+6 -> 53 | D55: MODIFY SIGN LIGHTING SYSTEM
C56: =SUBTOTAL(3,$D$9:D56)+6 -> 54 | D56: INSTALL SIGN PANEL(S)
C57: =SUBTOTAL(3,$D$9:D57)+6 -> 55 | D57: INSTALL LEFT SIGN PANEL
C58: =SUBTOTAL(3,$D$9:D58)+6 -> 56 | D58: INSTALL MIDDLE SIGN PANEL
C59: =SUBTOTAL(3,$D$9:D59)+6 -> 57 | D59: INSTALL RIGHT SIGN PANEL
C60: =SUBTOTAL(3,$D$9:D60)+6 -> 58 | D60: MODIFY POSTS
C61: =SUBTOTAL(3,$D$9:D61)+6 -> 59 | D61: F & I OVERHEAD SIGN IDENTIFICATION PLATE
C62: =SUBTOTAL(3,$D$9:D62)+6 -> 60 | D62: F & I FEED POINT IDENTIFICATION PLATE
C63: =SUBTOTAL(3,$D$9:D63)+6 -> 61 | D63: F & I NEW POST CLIPS ON ALL SIGN PANELS
C64: =SUBTOTAL(3,$D$9:D64)+6 -> 62 | D64: REMOVE SIGN WALKWAY
C65: =SUBTOTAL(3,$D$9:D65)+6 -> 63 | D65: REMOVE SIGN LIGHTING SYSTEM

Sheet CS&I
C2: SALVAGE & INSTALL SIGN TYPE C | M2: STA
C3: QTY | D3: POSTS | G3: MTG | H3: PANEL
B4: SIGN | D4: NO | E4: KNEE | F4: LENGTH | G4: HT | H4: SIZE | L4: PANEL
B5: NO | D5: & | E5: BRACES | G5: (1) | L5: LEGEND | Q5: DEFAULT VALUES
C6: EACH | D6: TYPE | E6: QTY | F6: FEET | G6: FEET | H6: INCH | Q6: POST LB | R6: POST TYPE
B7: C-201 | C7: 1 | D7: =postnumb(H7,J7,Q7,R7) -> 2-U | F7: =ROUNDUP((J7/12)+G7+3.5+2,0) -> 16 | G7: 7 | H7: 36 | I7: x | J7: 36 | L7: NO U TURN | Q7: 2.5 | R7: U
G8: 7 | H8: 36 | I8: x | J8: 36 | L8: NO U TURN | Q8: 2.5 | R8: U
B9: C-203 | C9: 1 | D9: =postnumb(MAX(H9,H10),J9+J10,Q9,R9) -> 2-U | E9: =postknee(MAX(H9,H10),J9+J10,Q9,R9) -> 1 | F9: =ROUNDUP((SUM(J9:J10)/12)+G9+3.5+2,0) -> 17 | G9: 7 | H9: 30 | I9: x | J9: 15 | L9: NORTH | Q9: 3 | R9: U
H10: 36 | I10: x | J10: 36 | L10: INTERSTATE 35 | Q10: 3 | R10: U
B11: TOTAL | C11: =SUM(C9:C10) -> 1
B13: SPECIFIC NOTES:
B14: ="(1) MOUNTING HEIGHT IS MINIMUM (WITH A +6 INCH TOLERANCE) SEE SHEET " & TEXT(TOC!$B$20,"0") & " FOR TYPICAL MOUNTING." -> (1) MOUNTING HEIGHT IS MINIMUM (WITH A +6 INCH TOLERANCE) SEE SHEET ST24 FOR TYPICAL MOUNTING.
B15: (2) FOR PUNCHING AND MOUNTING DETAILS, SEE MNDOT STANDARD SIGNS AND MARKINGS MANUAL PAGE 110.
B16: (3) MOUNT BACK TO BACK.
B17: ="(4) MOUNT IN CONCRETE, SEE SHEET NO. " & TEXT(TOC!B12,"0") & "." -> (4) MOUNT IN CONCRETE, SEE SHEET NO. 0.
B18: ="(6) MOUNT IN CONCRETE ON BRIDGE, SEE SHEET NO. " & TEXT(TOC!B9, "0") & "." -> (6) MOUNT IN CONCRETE ON BRIDGE, SEE SHEET NO. 58.
B20: GENERAL NOTES:
B21: 1. POST LENGTHS ARE APPROXIMATE AND INCLUDE EMBEDMENT, BUT DO NOT INCLUDE
B22: ADDITIONAL LENGTH REQUIRED FOR SPLICE.
B23: ="2. SEE SHEET " & TEXT(TOC!B7,"0") & " FOR SIGN PLACEMENT DETAILS." -> 2. SEE SHEET ST13 FOR SIGN PLACEMENT DETAILS.
B24: ="3. SEE SHEETS " & TEXT(TOC!$B$19,"0") & " TO " & TEXT(TOC!$B$21,"0") & " FOR STRUCTURAL DETAILS." -> 3. SEE SHEETS ST23 TO ST25 FOR STRUCTURAL DETAILS.
B25: 4. SEE MNDOT STANDARD SIGNS AND MARKINGS MANUAL FOR PUNCHING CODE AND DETAILED DRAWINGS
B26: OF TYPE C SIGN PANELS.

Sheet CSIGN
C2: SIGN PANELS TYPE C | R2: ='SEQ-PSTAB'!#REF! -> 
C3: QTY | D3: POSTS | G3: MTG | H3: PANEL
B4: SIGN | D4: NO & TYPE | E4: KNEE | F4: LENGTH | G4: HT | H4: SIZE | L4: AREA | N4: TOTAL | P4: CODE NO | Q4: PANEL
B5: NO | D5: & | E5: BRACES | G5: (1) | N5: AREA | P5: NO | Q5: LEGEND | W5: DEFAULT VALUES
D6: TYPE | E6: QTY | F6: FEET | G6: FEET | H6: INCH | L6: SQ FT | N6: SQ FT | W6: POST # | X6: POST TYPE
B7: C-0 | C7: 2 | D7: 2-U | E7: 1 | F7: =ROUNDUP((J7/12)+G7+3.5+2,0) -> 13 | G7: 7 | H7: 48 x 48 x 48 | L7: 6.93 | N7: =L7*C7 -> 13.86 | P7: R1-2 | Q7: =IF(P7<>"",IF(COUNTIF(Table2[CODE NO],CSIGN!P7)>0,LOOKUP(CSIGN!P7,Table2[CODE NO],Table2[PANEL LEGEND]),"NOT FOUND"),"") -> YIELD | W7: 2.5 | X7: U
A8: (5) | B8: C-0 | C8: 3 | D8: 1-ST | F8: 13 | G8: 7 | H8: 48 | I8: x | J8: 48 | L8: =(H8*J8)/144 -> 16 | N8: 48 | P8: W4-1R | Q8: MERGE | W8: 2.5 | X8: U
B9: C-0 | C9: 2 | D9: =postnumb(H9,J9,W9,X9) -> 2-U | E9: =postknee(H9,J9,W9,X9) -> 1 | F9: =ROUNDUP((J9/12)+G9+3.5+2,0) -> 15 | G9: 7 | H9: 36 | I9: x | J9: 30 | L9: 7.5 | N9: 15 | P9: R3-30GA | Q9: =IF(P9<>"",IF(COUNTIF(Table2[CODE NO],CSIGN!P9)>0,LOOKUP(CSIGN!P9,Table2[CODE NO],Table2[PANEL LEGEND]),"NOT FOUND"),"") -> LTR-R | W9: 2.5 | X9: U
A10: (4) | B10: C-0 | C10: 1 | D10: 1-ST | F10: 12 | G10: 7 | H10: 24 | I10: x | J10: 30 | L10: 5 | N10: 5 | P10: R4-7 | Q10: =IF(P10<>"",IF(COUNTIF(Table2[CODE NO],CSIGN!P10)>0,LOOKUP(CSIGN!P10,Table2[CODE NO],Table2[PANEL LEGEND]),"NOT FOUND"),"") -> KEEP RIGHT | W10: 2.5 | X10: U
B11: C-0 | C11: 1 | D11: =postnumb(H11,J11,W11,X11) -> 2-U | E11: =postknee(H11,J11,W11,X11) -> 1 | F11: =ROUNDUP((J11/12)+G11+3.5+2,0) -> 14 | G11: 7 | H11: 54 | I11: x | J11: 18 | L11: =(H11*J11)/144 -> 6.75 | N11: 6.75 | P11: R6-1L | Q11: =IF(P11<>"",IF(COUNTIF(Table2[CODE NO],CSIGN!P11)>0,LOOKUP(CSIGN!P11,Table2[CODE NO],Table2[PANEL LEGEND]),"NOT FOUND"),"") -> ONE WAY LEFT | S11: (2) | W11: 2.5 | X11: U
B12: C-0 | C12: 1 | D12: =postnumb(MAX(H12,H13),J12+J13,W12,X12) -> 2-U | E12: =postknee(H12,J12,W12,X12) -> 1 | F12: =ROUNDUP((J12/12)+(J13/12)+G12+3.5+2,0) -> 18 | G12: 7 | H12: 36 | I12: x | J12: 36 | L12: 9 | N12: 9 | P12: W1-1R | Q12: =IF(P12<>"",IF(COUNTIF(Table2[CODE NO],CSIGN!P12)>0,LOOKUP(CSIGN!P12,Table2[CODE NO],Table2[PANEL LEGEND]),"NOT FOUND"),"") -> TURN RIGHT | W12: 2.5 | X12: U
H13: 24 | I13: x | J13: 24 | L13: 4 | N13: =L13*C12 -> 4 | P13: W13-1P | Q13: 35 MPH | W13: 2.5 | X13: U
B14: C-0 | C14: 1 | D14: =postnumb(MAX(H14,H15,H16),J14+J15+J16,W16,X16) -> 2-U | E14: =postknee(H14,J14,W14,X14) -> 1 | F14: =ROUNDUP((J14/12)+(J15/12)+(J16/12)+G14+3.5+2,0) -> 19 | G14: 7 | H14: 54 | I14: x | J14: 18 | L14: 6.75 | N14: =L14*C14 -> 6.75 | P14: R6-1L | Q14: =IF(P14<>"",IF(COUNTIF(Table2[CODE NO],CSIGN!P14)>0,LOOKUP(CSIGN!P14,Table2[CODE NO],Table2[PANEL LEGEND]),"NOT FOUND"),"") -> ONE WAY LEFT | S14: (2) | W14: 2.5 | X14: U
H15: 36 | I15: x | J15: 36 | L15: 9 | N15: =L15*C14 -> 9 | P15: R1-1 | Q15: =IF(P15<>"",IF(COUNTIF(Table2[CODE NO],CSIGN!P15)>0,LOOKUP(CSIGN!P15,Table2[CODE NO],Table2[PANEL LEGEND]),"NOT FOUND"),"") -> STOP | W15: 2.5 | X15: U
H16: 30 | I16: x | J16: 24 | L16: 5 | N16: =L16*C14 -> 5 | P16: R6-3 | Q16: =IF(P16<>"",IF(COUNTIF(Table2[CODE NO],CSIGN!P16)>0,LOOKUP(CSIGN!P16,Table2[CODE NO],Table2[PANEL LEGEND]),"NOT FOUND"),"") -> DIVIDED HIGHWAY | W16: 2.5 | X16: U
B17: C-1 | C17: 1 | D17: 1-U | E17: 1 | F17: =ROUNDUP((J17/12)+(J18/12)+G17+3.5+2,0) -> 16 | G17: 7 | H17: 24 | I17: x | J17: 12 | L17: 2 | N17: =L17*C17 -> 2 | P17: M3-2A | Q17: =IF(P17<>"",IF(COUNTIF(Table2[CODE NO],CSIGN!P17)>0,LOOKUP(CSIGN!P17,Table2[CODE NO],Table2[PANEL LEGEND]),"NOT FOUND"),"") -> EAST (BLUE) | W17: 2.5 | X17: U
H18: 24 | I18: x | J18: 24 | L18: 4 | N18: =L18*C17 -> 4 | P18: M1-5A | Q18: 55 | W18: 2.5 | X18: U
B19: C-2 | C19: 1 | D19: 1-U | F19: =ROUNDUP((J19/12)+(J20/12)+G19+3.5+2,0) -> 16 | G19: 7 | H19: 24 | I19: x | J19: 12 | L19: 2 | N19: =L19*C19 -> 2 | P19: M3-3A | Q19: =IF(P19<>"",IF(COUNTIF(Table2[CODE NO],CSIGN!P19)>0,LOOKUP(CSIGN!P19,Table2[CODE NO],Table2[PANEL LEGEND]),"NOT FOUND"),"") -> SOUTH (BLUE) | W19: 2.5 | X19: U
H20: 24 | I20: x | J20: 24 | L20: 4 | N20: =L20*C19 -> 4 | P20: M1-5A | Q20: 149 NO],CSIGN!P15)>0,LOOKUP(CSIGN!P15,Table2[CODE NO],Table2[PANEL LEGEND]),"NOT FOUND"),"") | W20: 2.5 | X20: U
Q21: =IF(P21<>"",IF(COUNTIF(Table2[CODE NO],CSIGN!P21)>0,LOOKUP(CSIGN!P21,Table2[CODE NO],Table2[PANEL LEGEND]),"NOT FOUND"),"") ->  | W21: 2.5 | X21: U
Q22: =IF(P22<>"",IF(COUNTIF(Table2[CODE NO],CSIGN!P22)>0,LOOKUP(CSIGN!P22,Table2[CODE NO],Table2[PANEL LEGEND]),"NOT FOUND"),"") ->  | W22: 2.5 | X22: U
L23: TOTAL | N23: =SUM(N7:N13) -> 101.61
B25: SPECIFIC NOTES:
B26: ="(1) MOUNTING HEIGHT IS MINIMUM (WITH A +6 INCH TOLERANCE) SEE SHEET NO. " & TEXT(TOC!$B$20,"0") & " FOR TYPICAL MOUNTING." -> (1) MOUNTING HEIGHT IS MINIMUM (WITH A +6 INCH TOLERANCE) SEE SHEET NO. ST24 FOR TYPICAL MOUNTING.
B27: (2) FOR PUNCHING AND MOUNTING DETAILS, SEE MNDOT STANDARD SIGNS AND MARKING MANUAL PAGE 110.
B28: (3) MOUNT BACK TO BACK.
B29: ="(4) MOUNT IN CONCRETE, SEE SHEET NO. " & TEXT(TOC!B24,"0") & "." -> (4) MOUNT IN CONCRETE, SEE SHEET NO. 56.
B30: (5) PLACE PER MANUFACTURER'S DETAIL USING A 10 GAUGE, 2-1/2" x 2-1/2" PRE-PUNCHED, GALVANIZED STEEL,
B31: SQUARE TUBE POST WITH A 10 GAUGE, 2-3/16" x 2-3/16" x 8', PRE-PUNCHED GALVANIZED STEEL INTERNAL SQUARE
B32: TUBE INSERT. THIS ASSEMBLY REQUIRES STRINGERS AND SLIP BASES.
B33: ="(6) MOUNT IN CONCRETE ON BRIDGE, SEE SHEET NO. " & TEXT(TOC!B23, "0") & "." -> (6) MOUNT IN CONCRETE ON BRIDGE, SEE SHEET NO. 57.
B34: (7) MOUNT ON WALL, SEE SHEET NO.
B36: GENERAL NOTES:
B37: 1. POST LENGTHS ARE APPROXIMATE AND INCLUDE EMBEDMENT, BUT DO NOT INCLUDE
B38: ADDITIONAL LENGTH REQUIRED FOR SPLICE.
B39: ="2. SEE SHEET " & TEXT(TOC!B7,"0") & " FOR SIGN PLACEMENT DETAILS." -> 2. SEE SHEET ST13 FOR SIGN PLACEMENT DETAILS.
B40: ="3. SEE SHEETS " & TEXT(TOC!$B$19,"0") & " TO " & TEXT(TOC!$B$21,"0") & " FOR STRUCTURAL DETAILS." -> 3. SEE SHEETS ST23 TO ST25 FOR STRUCTURAL DETAILS.
B41: 4. SEE MNDOT STANDARD SIGNS AND MARKINGS MANUAL FOR PUNCHING CODE AND DETAILED DRAWINGS
B42: OF TYPE C SIGN PANELS.
B51: C- | C51: 1 | D51: =postnumb(H51,J51,W51,X51) ->  | E51: =postknee(H51,J51,W51,X51) ->  | F51: =ROUNDUP((J51/12)+G51+3.5+2,0) -> 13 | G51: 7 | H51: 0 | I51: x | J51: 0 | L51: =(H51*J51)/144 -> 0 | N51: =L51*C51 -> 0 | P51: example | Q51: peds | W51: 3 | X51: U
B52: C-4 | C52: 1 | D52: =postnumb(H52,J52,W52,X52) -> 2-U | E52: =postknee(H52,J52,W52,X52) -> 1 | F52: =ROUNDUP((J52/12)+G52+3.5+2,0) -> 15 | G52: 7 | H52: 48 | I52: x | J52: 30 | L52: =(H52*J52)/144 -> 10 | N52: =L52*C52 -> 10 | P52: R5-10b | Q52: peds | W52: 3 | X52: U
B53: C-41 | C53: 2 | D53: =postnumb(H53,J53,W53,X53) -> 1-O | E53: =postknee(H53,J53,W53,X53) ->  | F53: =ROUNDUP((J53/12)+G53+3.5+2,0) -> 21 | G53: 7 | H53: 12 | I53: x | J53: 102 | L53: =(H53*J53)/144 -> 8.5 | N53: =L53*C53 -> 17 | P53: R5-1a | Q53: WRONG WAY | W53: 2.5 | X53: O

Sheet CINS
C2: INSTALL SIGN TYPE C | M2: ='SEQ-PSTAB'!B74 -> 0
C3: QTY | D3: POSTS | G3: MTG | H3: PANEL
B4: SIGN | D4: NO & TYPE | E4: KNEE | F4: LENGTH | G4: HT | H4: SIZE | L4: PANEL
B5: NO | D5: & | E5: BRACES | G5: (1) | L5: LEGEND | P5: DEFAULT VALUES
C6: EACH | D6: TYPE | E6: QTY | F6: FEET | G6: FEET | H6: INCH | P6: POST # | Q6: POST TYPE
B7: C-301 | C7: 1 | D7: =postnumb(H7,J7,P7,Q7) -> 2-U | E7: =postknee(H7,J7,P7,Q7) -> 1 | F7: =ROUNDUP((J7/12)+G7+3.5+2,0) -> 18 | G7: 7 | H7: 48 | I7: x | J7: 60 | L7: EXIT 40 MPH | P7: 2.5 | Q7: U
B8: C-302 | C8: 2 | D8: =postnumb(H8,J8,P8,Q8) -> 2-U | E8: =postknee(H8,J8,P8,Q8) -> 1 | F8: =ROUNDUP((J8/12)+G8+3.5+2,0) -> 18 | G8: 7 | H8: 48 | I8: x | J8: 60 | L8: EXIT 25 MPH | P8: 2.5 | Q8: U
B9: C-303 | C9: 1 | D9: =postnumb(MAX(H9,H10),J9+J10,P9,Q9) -> 2-U | E9: =postknee(MAX(H9,H10),J9+J10,P9,Q9) -> 1 | F9: =ROUNDUP((SUM(J9:J10)/12)+G9+3.5+2,0) -> 16 | G9: 7 | H9: 24 | I9: x | J9: 15 | L9: NORTH | P9: 2.5 | Q9: U
H10: 24 | I10: x | J10: 24 | L10: INTERSTATE 35 | P10: 2.5 | Q10: U
D11: =postnumb(H11,J11,P11,Q11) ->  | E11: =postknee(H11,J11,P11,Q11) ->  | F11: =ROUNDUP((J11/12)+G11+3.5+2,0) -> 6 | I11: x | P11: 2.5 | Q11: U
D12: =postnumb(H12,J12,P12,Q12) ->  | E12: =postknee(H12,J12,P12,Q12) ->  | F12: =ROUNDUP((J12/12)+G12+3.5+2,0) -> 6 | I12: x | P12: 2.5 | Q12: U
D13: =postnumb(H13,J13,P13,Q13) ->  | E13: =postknee(H13,J13,P13,Q13) ->  | F13: =ROUNDUP((J13/12)+G13+3.5+2,0) -> 6 | I13: x | P13: 2.5 | Q13: U
D14: =postnumb(H14,J14,P14,Q14) ->  | E14: =postknee(H14,J14,P14,Q14) ->  | F14: =ROUNDUP((J14/12)+G14+3.5+2,0) -> 6 | I14: x | P14: 2.5 | Q14: U
B15: TOTAL | C15: =SUM(C7:C14) -> 4
B17: SPECIFIC NOTES:
B18: ="(1) MOUNTING HEIGHT IS MINIMUM (WITH A +6 INCH TOLERANCE) SEE SHEET " & TEXT(TOC!$B$20,"0") & " FOR TYPICAL MOUNTING." -> (1) MOUNTING HEIGHT IS MINIMUM (WITH A +6 INCH TOLERANCE) SEE SHEET ST24 FOR TYPICAL MOUNTING.
B19: (2) FOR PUNCHING AND MOUNTING DETAILS, SEE MNDOT STANDARD SIGNS AND MARKINGS MANUAL PAGE 110.
B20: (3) MOUNT BACK TO BACK.
B21: ="(4) MOUNT IN CONCRETE, SEE SHEET " & TEXT(TOC!$B$9,"0") & "." -> (4) MOUNT IN CONCRETE, SEE SHEET 58.
B22: (5) MOUNT ON WALL, SEE SHEET
B23: ="(6) MOUNT IN CONCRETE ON BRIDGE, SEE SHEET " & TEXT(TOC!B25, "0") & "." -> (6) MOUNT IN CONCRETE ON BRIDGE, SEE SHEET 59.
B25: GENERAL NOTES:
B26: 1. POST LENGTHS ARE APPROXIMATE AND INCLUDE EMBEDMENT, BUT DO NOT INCLUDE
B27: ADDITIONAL LENGTH REQUIRED FOR SPLICE.
B28: ="2. SEE SHEET " & TEXT(TOC!$B7,"0") & " FOR SIGN PLACEMENT DETAILS." -> 2. SEE SHEET ST13 FOR SIGN PLACEMENT DETAILS.
B29: ="3. SEE SHEETS " & TEXT(TOC!$B$19,"0") & " TO " & TEXT(TOC!$B$21,"0") & " FOR STRUCTURAL DETAILS." -> 3. SEE SHEETS ST23 TO ST25 FOR STRUCTURAL DETAILS.
B30: 4. SEE MNDOT STANDARD SIGNS AND MARKINGS MANUAL FOR PUNCHING CODE AND DETAILED DRAWINGS
B31: OF TYPE C SIGN PANELS.
D38: LEN | F38: LENGTH

Sheet CSAL
C2: SALVAGE SIGN TYPE C | K2: ='SEQ-PSTAB'!B44 -> 0
C3: QTY | D3: POSTS | F3: PANEL
B4: SIGN | D4: NO | E4: KNEE | F4: SIZE | J4: PANEL
B5: NO | D5: & | E5: BRACES | J5: LEGEND | N5: DEFAULT VALUES
C6: EACH | D6: TYPE | E6: QTY | F6: INCH | N6: POST # | O6: POST TYPE
B7: C-101 | C7: 0 | D7: =postnumb(F7,H7,N7,O7) -> 2-U | E7: =postknee(F7,H7,N7,O7) -> 1 | F7: 48 | G7: x | H7: 60 | J7: EXIT 40 MPH | N7: 3 | O7: U
B8: C-102 | C8: 0 | D8: =postnumb(MAX(F8,F9),H8+H9,N8,O8) -> 2-U | E8: =postknee(MAX(F8,F9),H8+H9,N8,O8) -> 1 | F8: 24 | G8: x | H8: 15 | J8: NORTH | N8: 3 | O8: U
F9: 24 | G9: x | H9: 24 | J9: INTERSTATE 35 | N9: 3 | O9: U
D10: =postnumb(F10,H10,N10,O10) ->  | E10: =postknee(F10,H10,N10,O10) ->  | G10: x | N10: 3 | O10: U
D11: =postnumb(F11,H11,N11,O11) ->  | E11: =postknee(F11,H11,N11,O11) ->  | G11: x | N11: 3 | O11: U
D12: =postnumb(F12,H12,N12,O12) ->  | E12: =postknee(F12,H12,N12,O12) ->  | G12: x | N12: 3 | O12: U
D13: =postnumb(F13,H13,N13,O13) ->  | E13: =postknee(F13,H13,N13,O13) ->  | G13: x | N13: 3 | O13: U
D14: =postnumb(F14,H14,N14,O14) ->  | E14: =postknee(F14,H14,N14,O14) ->  | G14: x | N14: 3 | O14: U
B15: TOTAL | C15: =SUM(C7:C14) -> 0
B17: SPECIFIC NOTES:
B18: (1) SIGN PANELS ARE TO BE SALVAGED AND RETURNED TO <County Name>.
B19: PLEASE CONTACT <Name> AT <Phone Number> TO SCHEDULE PICKUP.

Sheet CREM
B2: ='SEQ-PSTAB'!#REF! ->  | C2: REMOVE SIGN TYPE C
C3: QTY | D3: POSTS | F3: PANEL
B4: SIGN | D4: NO | E4: KNEE | F4: SIZE | J4: PANEL
B5: NO | D5: & | E5: BRACES | J5: LEGEND | N5: DEFAULT VALUES
D6: TYPE | E6: QTY | F6: INCH | N6: POST # | O6: POST TYPE
B7: C-101 | C7: 1 | D7: =postnumb(F7,H7,N7,O7) -> 2-U | E7: =postknee(F7,H7,N7,O7) -> 1 | F7: 48 | G7: x | H7: 60 | J7: EXIT 40 MPH | N7: 3 | O7: U
B8: C-102 | C8: 2 | D8: =postnumb(MAX(F8,F9),H8+H9,N9,O9) -> 2-U | E8: =postknee(MAX(F8,F9),H8+H9,N9,O9) -> 1 | F8: 24 | G8: x | H8: 15 | J8: NORTH | N8: 3 | O8: U
F9: 36 | G9: x | H9: 36 | J9: INTERSTATE 35 | N9: 3 | O9: U
D10: =postnumb(F10,H10,N10,O10) ->  | E10: =postknee(F10,H10,N10,O10) ->  | G10: x | N10: 3 | O10: U
D11: =postnumb(F11,H11,N11,O11) ->  | E11: =postknee(F11,H11,N11,O11) ->  | G11: x | N11: 3 | O11: U
D12: =postnumb(F12,H12,N12,O12) ->  | E12: =postknee(F12,H12,N12,O12) ->  | G12: x | N12: 3 | O12: U
D13: =postnumb(F13,H13,N13,O13) ->  | E13: =postknee(F13,H13,N13,O13) ->  | G13: x | N13: 3 | O13: U
D14: =postnumb(F14,H14,N14,O14) ->  | E14: =postknee(F14,H14,N14,O14) ->  | G14: x | N14: 3 | O14: U
B15: TOTAL | C15: =SUM(C7:C14) -> 3
D23: AS OF 2003 WE NO LONGER USE THIS CHART

Sheet DREM
C2: REMOVE SIGN TYPE D | K2: ='SEQ-PSTAB'!#REF! -> 
C3: QTY | D3: POSTS | F3: PANEL
B4: SIGN | D4: NO | E4: KNEE | F4: SIZE | J4: PANEL
B5: NO | D5: & | E5: BRACES | F5: (1) | J5: LEGEND | N5: DEFAULT VALUES
C6: EACH | D6: TYPE | E6: QTY | F6: INCH | N6: POST # | O6: POST TYPE
B7: D-101 | C7: 1 | D7: =postnumb(F7,H7,N7,O7) -> 2-U | E7: =postknee(F7,H7,N7,O7) -> 1 | F7: 48 | G7: x | H7: 60 | J7: EXIT 35B | N7: 2.5 | O7: U
B8: D-102 | C8: 2 | D8: =postnumb(MAX(F8,F9),H8+H9,N8,O8) -> 2-U | E8: =postknee(MAX(F8,F9),H8+H9,N8,O8) -> 1 | F8: 24 | G8: x | H8: 15 | J8: NORTH | N8: 2.5 | O8: U
F9: 24 | G9: x | H9: 24 | J9: INTERSTATE 35 | N9: 2.5 | O9: U
D10: =postnumb(F10,H10,N10,O10) ->  | E10: =postknee(F10,H10,N10,O10) ->  | G10: x | N10: 2.5 | O10: U
D11: =postnumb(F11,H11,N11,O11) ->  | E11: =postknee(F11,H11,N11,O11) ->  | G11: x | N11: 2.5 | O11: U
D12: =postnumb(F12,H12,N12,O12) ->  | E12: =postknee(F12,H12,N12,O12) ->  | G12: x | N12: 2.5 | O12: U
D13: =postnumb(F13,H13,N13,O13) ->  | E13: =postknee(F13,H13,N13,O13) ->  | G13: x | N13: 2.5 | O13: U
D14: =postnumb(F14,H14,N14,O14) ->  | E14: =postknee(F14,H14,N14,O14) ->  | G14: x | N14: 2.5 | O14: U
B15: TOTAL | C15: =SUM(C7:C14) -> 3
B18: SPECIFIC NOTE:
B19: (1) SIZES ARE APPROXIMATE

Sheet D REM PANEL
B1: DREMPAN
B2: REMOVE SIGN PANEL TYPE D | H2: ='SEQ-PSTAB'!B30 -> 0
B3: SIGN NO | C3: QTY | D3: PANEL | G3: PANEL LEGEND
D4: SIZE
D5: (1)
C6: EACH | D6: INCHES
B7: D-101 | C7: 0 | D7: 72 | E7: x | F7: 60
B8: D-102 | C8: 0 | D8: 174 | E8: x | F8: 84
B9: D-103 | C9: 0 | D9: 114 | E9: x | F9: 48
B10: D-104 | C10: 0 | D10: 90 | E10: x | F10: 54
B11: D-105 | C11: 0 | D11: 72 | E11: x | F11: 72
B12: D-106 | C12: 0 | D12: 54 | E12: x | F12: 66
B13: D-107 | C13: 0 | D13: 54 | E13: x | F13: 66
B14: D-108 | C14: 0 | D14: 72 | E14: x | F14: 72
B15: TOTAL | C15: =SUM(C7:C14) -> 0
B18: SPECIFIC NOTE:
B19: (1) SIZES ARE APPROXIMATE

Sheet DSIGN
C2: SIGN PANELS TYPE D | R2: ='SEQ-PSTAB'!#REF! -> 
C3: QTY | D3: POSTS | H3: MTG | I3: PANEL
B4: SIGN | D4: NO & TYPE | E4: KNEE | F4: LENGTH | G4: SPACING | H4: HT | I4: SIZE | M4: AREA | O4: TOTAL | Q4: PANEL
B5: NO | D5: & | E5: BRACES | H5: (1) | O5: AREA | Q5: LEGEND | V5: DEFAULT VALUES
D6: TYPE | E6: QTY | F6: FEET | G6: INCH | H6: FEET | I6: INCH | M6: SQ FT | O6: SQ FT | V6: POST # | W6: POST TYPE
B7: D-1 | C7: 2 | D7: =postnumb(I7,K7,V7,W7) -> 2-U | E7: =postknee(I7,K7,V7,W7) -> 2 | F7: =ROUNDUP((K7/12)+H7+3.5+2,0) -> 15 | G7: =postspace(I7,K7,V7,W7) -> 90 | H7: 7 | I7: 144 | J7: x | K7: 24 | M7: =(I7*K7)/144 -> 24 | O7: =M7*C7 -> 48 | V7: 2.5 | W7: U
B8: D-2 | C8: 1 | D8: =postnumb(I8,K8,V8,W8) -> 2-U | E8: 2 | F8: =ROUNDUP((K8/12)+H8+3.5+2,0) -> 20 | G8: 42 | H8: 7 | I8: 72 | J8: x | K8: 84 | M8: =(I8*K8)/144 -> 42 | O8: =M8*C8 -> 42 | V8: 2.5 | W8: U
B9: D-3 | C9: 3 | D9: =postnumb(I9,K9,V9,W9) -> 2-U | E9: 2 | F9: 20 | G9: 42 | H9: 7 | I9: 72 | J9: x | K9: 84 | M9: 42 | O9: 126 | V9: 2.5 | W9: U
B10: D-4 | C10: 1 | D10: =postnumb(I10,K10,V10,W10) -> 2-U | E10: 2 | F10: 20 | G10: 42 | H10: 7 | I10: 72 | J10: x | K10: 84 | M10: 42 | O10: 42 | V10: 2.5 | W10: U
B11: D-4 | C11: 1 | D11: =postnumb(I11,K11,V11,W11) -> 3-U | E11: 3 | F11: =ROUNDUP((K11/12)+H11+3.5+2,0) -> 18 | G11: 45 | H11: 7 | I11: 126 | J11: x | K11: 60 | M11: =(I11*K11)/144 -> 52.5 | O11: =M11*C11 -> 52.5 | V11: 2.5 | W11: U
F12: 6 | J12: x | M12: 0 | O12: 0 | V12: 2.5 | W12: U
F13: 6 | J13: x | M13: 0 | O13: 0 | V13: 2.5 | W13: U
F14: 6 | J14: x | M14: 0 | O14: 0 | V14: 2.5 | W14: U
F15: 6 | J15: x | M15: 0 | O15: 0 | V15: 2.5 | W15: U
M16: TOTAL | O16: =SUM(O7:O15) -> 310.5
B18: SPECIFIC NOTES:
B19: ="(1) MOUNTING HEIGHT IS MINIMUM (WITH A +6 INCH TOLERANCE) SEE SHEET " & TEXT(TOC!$B$20,"0") & " FOR TYPICAL MOUNTING." -> (1) MOUNTING HEIGHT IS MINIMUM (WITH A +6 INCH TOLERANCE) SEE SHEET ST24 FOR TYPICAL MOUNTING.
B20: (2) SEE MNDOT STANDARD SIGNS MANUAL (E5-1).
B21: ="(3) RAIL MOUNTED, SEE DETAIL SHEET " & TEXT(TOC!$B$27, "0") & "." -> (3) RAIL MOUNTED, SEE DETAIL SHEET 32.
B22: ="(4) BRIDGE MOUNTED, SEE DETAIL SHEET " & TEXT(TOC!$B$32, "0") & "." -> (4) BRIDGE MOUNTED, SEE DETAIL SHEET 36.
B23: (5) PLACE PER MANUFACTURER'S DETAIL USING A 10 GUAGE, 2-1/2" x 2-1/2" PRE-PUNCHED GALVANIZED STEEL,
B24: SQUARE TUBE POST WITH A 10 GAUGE, 2-3/16" x 2-3/16" x 8', PRE-PUNCHED GALVANIZED STEEL INTERNAL SQUARE
B25: TUBE INSERT. THIS ASSEMBLY REQUIRES STRINGERS AND SLIP BASES.
B27: GENERAL NOTES:
B28: 1. POST LENGTHS ARE APPROXIMATE AND INCLUDE EMBEDMENT, BUT DO NOT INCLUDE
B29: ADDITIONAL LENGTH REQUIRED FOR SPLICE.
B30: ="2. SEE SHEET " & TEXT(TOC!$B7, "0") & " FOR SIGN PLACEMENT DETAILS." -> 2. SEE SHEET ST13 FOR SIGN PLACEMENT DETAILS.
B31: ="3. SEE SHEETS " & TEXT(TOC!$B$19,"0") & " TO " & TEXT(TOC!$B$21,"0") & " FOR STRUCTURAL DETAILS." -> 3. SEE SHEETS ST23 TO ST25 FOR STRUCTURAL DETAILS.
B32: 4. SEE MNDOT STANDARD SIGNS AND MARKINGS MANUAL FOR TYPE D STRINGER AND PANEL JOINT DETAILS.
B33: ="5. SEE SHEETS " & TEXT(TOC!$B60,"0") & " TO " & TEXT(TOC!$B61,"0") & " FOR SIGN PANELS." -> 5. SEE SHEETS ST81 TO ST94 FOR SIGN PANELS.

Sheet DINS
C2: INSTALL SIGN TYPE D | M2: ='SEQ-PSTAB'!#REF! -> 
C3: QTY | D3: POSTS | G3: MTG | H3: PANEL
B4: SIGN | D4: NO & TYPE | E4: KNEE | F4: LENGTH | G4: HT | H4: SIZE | L4: PANEL
B5: NO | D5: & | E5: BRACES | G5: (1) | L5: LEGEND | P5: DEFAULT VALUES
C6: EACH | D6: TYPE | E6: QTY | F6: FEET | G6: FEET | H6: INCH | P6: POST # | Q6: POST TYPE
B7: D-301 | C7: 0 | D7: =postnumb(H7,J7,P7,Q7) -> 2-U | E7: =postknee(H7,J7,P7,Q7) -> 1 | F7: =ROUNDUP((J7/12)+G7+5.5,0) -> 18 | G7: 7 | H7: 48 | I7: x | J7: 60 | P7: 2.5 | Q7: U
B8: D-301 | C8: 0 | D8: =postnumb(H8,J8,P8,Q8) -> 2-U | E8: =postknee(H8,J8,P8,Q8) -> 1 | F8: =ROUNDUP((J8/12)+G8+5.5,0) -> 18 | G8: 7 | H8: 48 | I8: x | J8: 60 | P8: 2.5 | Q8: U
B9: D-302 | C9: 0 | D9: =postnumb(H9,J9,P9,Q9) -> 2-U | E9: =postknee(H9,J9,P9,Q9) -> 1 | F9: 18 | G9: 7 | H9: 48 | I9: x | J9: 60 | P9: 2.5 | Q9: U
B10: D-303 | C10: 0 | D10: =postnumb(MAX(H10,H11),J10+J11,P10,Q10) -> 2-U | E10: =postknee(MAX(H10,H11),J10+J11,P10,Q10) -> 1 | F10: 14 | G10: 7 | H10: 30 | I10: x | J10: 15 | P10: 2.5 | Q10: U
F11: 9 | H11: 36 | I11: x | J11: 36 | P11: 2.5 | Q11: U
C12: 0 | D12: =postnumb(H12,J12,P12,Q12) ->  | E12: =postknee(H12,J12,P12,Q12) ->  | F12: 6 | I12: x | P12: 2.5 | Q12: U
D13: =postnumb(H13,J13,P13,Q13) ->  | E13: =postknee(H13,J13,P13,Q13) ->  | F13: 6 | I13: x | P13: 2.5 | Q13: U
D14: =postnumb(H14,J14,P14,Q14) ->  | E14: =postknee(H14,J14,P14,Q14) ->  | F14: 6 | I14: x | P14: 2.5 | Q14: U
D15: =postnumb(H15,J15,P15,Q15) ->  | E15: =postknee(H15,J15,P15,Q15) ->  | F15: 6 | I15: x | P15: 2.5 | Q15: U
B16: TOTAL | C16: =SUM(C7:C15) -> 0
B18: SPECIFIC NOTES:
B19: ="(1) MOUNTING HEIGHT IS MINIMUM (WITH A +6 INCH TOLERANCE) SEE SHEET " & TEXT(TOC!$B$20,"0") & " FOR TYPICAL MOUNTING." -> (1) MOUNTING HEIGHT IS MINIMUM (WITH A +6 INCH TOLERANCE) SEE SHEET ST24 FOR TYPICAL MOUNTING.
B20: (2) SEE MNDOT STANDARD SIGNS MANUAL (E5-1).
B21: ="(3) RAIL MOUNTED, SEE DETAIL SHEET " & TEXT(TOC!$B$27, "0") & "." -> (3) RAIL MOUNTED, SEE DETAIL SHEET 32.
B22: ="(4) BRIDGE MOUNTED, SEE DETAIL SHEET " & TEXT(TOC!$B$32, "0") & "." -> (4) BRIDGE MOUNTED, SEE DETAIL SHEET 36.
B23: (5) 2-1/2" x 2-1/2" 10 GAUGE PRE-PUNCHED GALVANIZED STEEL SQUARE TUBE POST WITH A 2-3/16" x 2-3/16" 10 GAUGE
B24: PRE-PUNCHED GALVANIZED STEEL SQUARE TUBE INTERNAL POST. THIS ASSEMBLY REQUIRES STRINGERS AND SLIP BASES.
B25: INSTALL PER MANUFACTURER'S DETAIL.
B27: GENERAL NOTES:
B28: 1. POST LENGTHS ARE APPROXIMATE AND INCLUDE EMBEDMENT, BUT DO NOT INCLUDE
B29: ADDITIONAL LENGTH REQUIRED FOR SPLICE.
B30: ="2. SEE SHEETS " & TEXT(TOC!$B$19,"0") & " TO " & TEXT(TOC!$B$21,"0") & " FOR STRUCTURAL DETAILS." -> 2. SEE SHEETS ST23 TO ST25 FOR STRUCTURAL DETAILS.
B31: 3. SEE MNDOT STANDARD SIGNS AND MARKINGS MANUAL FOR TYPE D STRINGER AND PANEL JOINT DETAILS.
B32: ="4. SEE SHEETS " & TEXT(TOC!$B60,"0") & " TO " & TEXT(TOC!$B61,"0") & " FOR SIGN PANELS." -> 4. SEE SHEETS ST81 TO ST94 FOR SIGN PANELS.

Sheet DS&I
C2: SALVAGE & INSTALL SIGN TYPE D | N2: ='SEQ-PSTAB'!#REF! -> 
C3: QTY | D3: POSTS | H3: MTG | I3: PANEL
B4: SIGN | D4: NO | E4: KNEE | F4: SPACING | G4: LENGTH | H4: HT | I4: SIZE | M4: PANEL
B5: NO | D5: & | E5: BRACES | H5: (1) | M5: LEGEND | R5: DEFAULT VALUES
C6: EACH | D6: TYPE | E6: QTY | F6: INCH | G6: FEET | H6: FEET | I6: INCH | R6: POST # | S6: POST TYPE
B7: D-201 | C7: 1 | D7: =postnumb(I7,K7,R7,S7) -> 2-U | E7: =postknee(I7,K7,R7,S7) -> 1 | F7: =postspace(I7,K7,R7,S7) -> 30 | G7: =ROUNDUP((K7/12)+H7+5.5,0) -> 18 | H7: 7 | I7: 48 | J7: x | K7: 60 | M7: EXIT 40 MPH | R7: 2.5 | S7: U
B8: D-202 | C8: 2 | D8: =postnumb(I8,K8,R8,S8) -> 2-U | E8: =postknee(I8,K8,R8,S8) -> 1 | F8: =postspace(I8,K8,R8,S8) -> 30 | G8: =ROUNDUP((K8/12)+H8+5.5,0) -> 18 | H8: 7 | I8: 48 | J8: x | K8: 60 | M8: EXIT 25 MPH | R8: 2.5 | S8: U
B9: D-203 | C9: 1 | D9: =postnumb(MAX(I9,I10),K9+K10,R9,S9) -> 2-U | E9: =postknee(MAX(I9,I10),K9+K10,R9,S9) -> 1 | F9: =postspace(MAX(I9:I10),SUM(K9:K10),R9,S9) -> 24 | G9: =ROUNDUP((SUM(K9:K10)/12)+H9+5.5,0) -> 17 | H9: 7 | I9: 30 | J9: x | K9: 15 | M9: NORTH | R9: 2.5 | S9: U
I10: 36 | J10: x | K10: 36 | M10: INTERSTATE 35
A11: (2) | B11: D-204 | C11: 1 | D11: =postnumb(I11,K11,R11,S11) -> 2-U | E11: =postknee(I11,K11,R11,S11) -> 2 | F11: =postspace(I11,K11,R11,S11) -> 42 | G11: =ROUNDUP((K11/12)+H11+5.5,0) -> 18 | H11: 7 | I11: 72 | J11: x | K11: 60 | M11: Exit Panel 60 degree | R11: 2.5 | S11: U
B12: TOTAL | C12: =SUM(C7:C11) -> 5
B14: SPECIFIC NOTES:
B15: ="(1) MOUNTING HEIGHT IS MINIMUM (WITH A +6 INCH TOLERANCE) SEE SHEET " & TEXT(TOC!$B$20,"0") & " FOR TYPICAL MOUNTING." -> (1) MOUNTING HEIGHT IS MINIMUM (WITH A +6 INCH TOLERANCE) SEE SHEET ST24 FOR TYPICAL MOUNTING.
B16: (2) SEE STANDARD SIGNS MANUAL (E5-1).
B17: ="(3) RAIL MOUNTED, SEE DETAIL SHEET " & TEXT(TOC!$B$27, "0") & "." -> (3) RAIL MOUNTED, SEE DETAIL SHEET 32.
B18: ="(4) BRIDGE MOUNTED, SEE DETAIL SHEET " & TEXT(TOC!$B$32, "0") & "." -> (4) BRIDGE MOUNTED, SEE DETAIL SHEET 36.
B20: GENERAL NOTES:
B21: 1. POST LENGTHS ARE APPROXIMATE AND INCLUDE EMBEDMENT, BUT DO NOT INCLUDE
B22: ADDITIONAL LENGTH REQUIRED FOR SPLICE.
B23: ="2. SEE SHEETS " & TEXT(TOC!$B$19,"0") & " TO " & TEXT(TOC!$B$21,"0") & " FOR STRUCTURAL DETAILS." -> 2. SEE SHEETS ST23 TO ST25 FOR STRUCTURAL DETAILS.
B24: 3. SEE MNDOT STANDARD SIGNS AND MARKINGS MANUAL FOR TYPE D STRINGER AND PANEL JOINT DETAILS.
B25: ="4. SEE SHEETS " & TEXT(TOC!$B60,"0") & " TO " & TEXT(TOC!$B$61,"0") & " FOR SIGN PANELS." -> 4. SEE SHEETS ST81 TO ST94 FOR SIGN PANELS.

Sheet DSAL
C2: SALVAGE SIGN TYPE D | K2: ='SEQ-PSTAB'!#REF! -> 
C3: QTY | D3: POSTS | F3: PANEL
B4: SIGN | D4: NO | E4: KNEE | F4: SIZE | J4: PANEL
B5: NO | D5: & | E5: BRACES | J5: LEGEND | N5: DEFAULT VALUES
C6: EACH | D6: TYPE | E6: QTY | F6: INCH | N6: POST # | O6: POST TYPE
B7: D-101 | C7: 1 | D7: =postnumb(F7,H7,N7,O7) -> 2-U | E7: =postknee(F7,H7,N7,O7) -> 1 | F7: 48 | G7: x | H7: 60 | J7: EXIT 40 MPH | N7: 3 | O7: U
B8: D-102 | C8: 2 | D8: =postnumb(MAX(F8,F9),H8+H9,N8,O8) -> 2-U | E8: =postknee(MAX(F8,F9),H8+H9,N8,O8) -> 1 | F8: 24 | G8: x | H8: 15 | J8: NORTH | N8: 3 | O8: U
F9: 24 | G9: x | H9: 24 | J9: INTERSTATE 35 | N9: 3 | O9: U
D10: =postnumb(F10,H10,N10,O10) ->  | E10: =postknee(F10,H10,N10,O10) ->  | G10: x | N10: 3 | O10: U
D11: =postnumb(F11,H11,N11,O11) ->  | E11: =postknee(F11,H11,N11,O11) ->  | G11: x | N11: 3 | O11: U
D12: =postnumb(F12,H12,N12,O12) ->  | E12: =postknee(F12,H12,N12,O12) ->  | G12: x | N12: 3 | O12: U
D13: =postnumb(F13,H13,N13,O13) ->  | E13: =postknee(F13,H13,N13,O13) ->  | G13: x | N13: 3 | O13: U
D14: =postnumb(F14,H14,N14,O14) ->  | E14: =postknee(F14,H14,N14,O14) ->  | G14: x | N14: 3 | O14: U
B15: TOTAL | C15: =SUM(C7:C14) -> 3
B17: SPECIFIC NOTES:
B18: (1) SIGN PANELS ARE TO BE SALVAGED AND RETURNED TO <County Name>.
B19: PLEASE CONTACT <Name> AT <Phone Number> TO SCHEDULE PICKUP.

Sheet MASTARM
C2: MAST ARM MOUNTED SIGNS | R2: ='SEQ-PSTAB'!#REF! -> 
E3: QTY | G3: PANEL | O3: MOUNTING STIFFENERS
B4: SIGN | C4: SIGNAL | D4: POLE | F4: a | G4: SIZE | K4: AREA | M4: TOTAL | O4: NUMBER | Q4: PANEL
B5: NO | C5: SYSTEM | D5: NO | M5: AREA | P5: SPACING | Q5: LEGEND
F6: FEET | G6: INCH | K6: SQ FT | M6: SQ FT | P6: (1)
B7: R10-2 | C7: A | E7: 1 | G7: 24 | H7: x | I7: 24 | K7: =(G7*I7)/144 -> 4 | M7: =IF(E7<>"", K7*E7,"") -> 4 | O7: =mastarmposts(I7,G7,MAH,MAW,MAQ) -> 2 | P7: =mastarmposts(I7,G7,MAH,MAW,MAS) -> 12 | Q7: LEFT TURN YIELD ON GREEN
B8: D-1 | C8: A | E8: 1 | G8: 72 | H8: x | I8: 24 | K8: =(G8*I8)/144 -> 12 | M8: =IF(E8<>"", K8*E8,"") -> 12 | O8: =mastarmposts(I8,G8,MAH,MAW,MAQ) -> 3 | P8: =mastarmposts(I8,G8,MAH,MAW,MAS) -> 30 | Q8: MN101 LEFT ARROW
B9: D-2 | C9: B | E9: 1 | G9: 102 | H9: x | I9: 24 | K9: =(G9*I9)/144 -> 17 | M9: =IF(E9<>"", K9*E9,"") -> 17 | O9: =mastarmposts(I9,G9,MAH,MAW,MAQ) -> 4 | P9: =mastarmposts(I9,G9,MAH,MAW,MAS) -> 30 | Q9: MISSISSIPPI AVE
M10: =IF(E10<>"", K10*E10,"") ->  | O10: =mastarmposts(I10,G10,MAH,MAW,MAQ) ->  | P10: =mastarmposts(I10,G10,MAH,MAW,MAS) -> 
M11: =IF(E11<>"", K11*E11,"") ->  | O11: =mastarmposts(I11,G11,MAH,MAW,MAQ) ->  | P11: =mastarmposts(I11,G11,MAH,MAW,MAS) -> 
B13: SPECIFIC NOTES:
B14: ="(1) SPACING BETWEEN STIFFENERS SHALL NOT EXCEED 36 INCHES AND SHALL BE UNIFORMLY SPACED." -> (1) SPACING BETWEEN STIFFENERS SHALL NOT EXCEED 36 INCHES AND SHALL BE UNIFORMLY SPACED.
B15: SEE MNDOT STANDARD SIGNS AND MARKINGS MANUAL, PAGE 105A FOR STIFFENER SPACING REQUIREMENTS.
B17: GENERAL NOTES:
B18: 1. CORNERS OF STANDARD SIGN PANELS WITH MARGINS SHALL BE TRIMMED.
B19: 2. FOR STRUCTURAL DETAILS OF MAST ARM MOUNTED SIGNS SEE MNDOT STANDARD SIGNS AND MARKINGS MANUAL, PAGE 105A.
B20: 3. FOR TYPE D STRINGER AND PANEL JOINT DETAILS SEE MNDOT STANDARD SIGNS AND MARKINGS MANUAL, PAGE 105.
B21: 4. THE MAST ARM MOUNTED SIGNS ARE INCLUDED IN THE TRAFFIC CONTROL SIGNAL SYSTEM PAY ITEM.

Sheet DELINEATOR
B2: DELINEATOR | F2: ='SEQ-PSTAB'!#REF! -> 
B3: CODE NO | C3: QUANTITY EACH
C4: COLOR | E4: TOTAL
C5: WHITE | D5: YELLOW
A6: (1) | B6: X3-1 | E6: =SUM(C6:D6) -> 0
A7: (1) | B7: X4-6 | E7: =SUM(C7:D7) -> 0
A8: (1) | B8: X4-8 | E8: =SUM(C8:D8) -> 0
A9: (2) | B9: X4-13 | E9: =SUM(C9:D9) -> 0
B12: SPECIFIC NOTES:
B13: (1) MOUNT ON 3LB/FT POST (MNDOT 3401).
B14: (2) XX ARE MOUNTED BELOW TYPE C SIGNS. XX ARE MOUNTED ON 3 LB POSTS.
B15: GENERAL NOTES:
B16: ="1. FOR DELINEATOR PLACEMENT, SEE SHEET NO. " & TEXT(TOC!$B$8,"0") & "." -> 1. FOR DELINEATOR PLACEMENT, SEE SHEET NO. ST87.
B17: 2. SEE MNDOT STANDARD SIGNS AND MARKINGS MANUAL FOR DELINEATOR DETAIL.

Sheet MARKER
C6: OBJECT MARKER | G6: AA
C7: CODE | D7: SIZE | E7: COLOR | F7: QUANTITY
C8: NO | D8: INCH | F8: EACH
B9: (2) | C9: X4-2 | D9: 18 x 18 | E9: YELLOW ON BLACK | F9: 4
B10: (1) | C10: X4-3 | D10: 6 x 12 | E10: YELLOW | F10: 1
B11: (1) | C11: X4-4(L) | D11: 18 x 36 | E11: BLACK ON YELLOW | F11: 2
B12: (1) | C12: X4-4(C) | D12: 12 x 24 | E12: BLACK ON YELLOW | F12: 5
B13: (1) | C13: X4-4(R) | D13: 12 x 36 | E13: BLACK ON YELLOW | F13: 2
B14: (1) | C14: X4-5 | D14: 6 x 12 | E14: BLACK ON YELLOW | F14: 1
B15: (1) | C15: X4-11 | D15: 18 x 18 | E15: RED ON BLACK | F15: 2
C16: TOTAL QUANTITIES
C17: CODE | D17: QUANTITY
C18: NO | D18: EACH
C19: X4-2 | D19: =F9 -> 4
C20: X4-3 | D20: =F10 -> 1
C21: X4-4 | D21: =F11+F12+F13 -> 9
C22: X4-5 | D22: =F14 -> 1
C23: X4-11 | D23: =F15 -> 2
C25: SPECIFIC NOTES:
C26: (1) MOUNT ON 3LB/FT POST (MNDOT 3401).
C27: (2) XX ARE MOUNTED BELOW TYPE C SIGNS. XX ARE MOUNTED ON 3 LB POSTS.
C28: (3) XX ARE MOUNTED BELOW TYPE C SIGNS. XX ARE MOUNTED ON 3 LB POSTS.
C29: (4) XX ARE MOUNTED BELOW TYPE C SIGNS. XX ARE MOUNTED ON 3 LB POSTS.
C30: GENERAL NOTES:
C31: ="1. FOR MARKER PLACEMENT, SEE SHEET NO. " & TEXT(TOC!$B$8,"0") & "." -> 1. FOR MARKER PLACEMENT, SEE SHEET NO. ST87.
C32: 2. SEE MNDOT STANDARD SIGNS AND MARKINGS MANUAL FOR MARKER DETAIL.

Sheet DELS&I
C2: SALVAGE & INSTALL MARKER AND DELINEATOR(1) | G2: STF
C3: CODE NO | D3: QTY-MARKER | E3: QTY-DELINEATOR | F3: LOCATION
D4: EACH | E4: EACH
C5: WHITE X4-6 | E5: 6 | F5: EXIT NOSE
B6: (1) | C6: YELLOW X4-6 | E6: 8 | F6: EXIT NOSE
C7: OBJECT MARKER X4-2 | D7: 2 | F7: EXIT NOSE
C8: HAZARD MARKER X4-2 | D8: 0 | F8: ISLAND
C9: HAZARD MARKER X4-2 | D9: 0 | F9: MOUNT BELOW C-8
C10: X4-4 L | D10: 0 | F10: ISLAND
C12: SP 2785-364 TOTAL | D12: =SUM(D5:D11) -> 2
C13: TOTAL | D13: =SUM(D5:D7) -> 2 | E13: =SUM(E5:E7) -> 14
C15: (1) SEE STANDARD SIGNS MANUAL FOR GUIDE DELINEATOR X4-6.
C16: SPECIFIC NOTES:
C17: ="(1) FOR DELINEATOR AND MARKER PLACEMENT, SEE SHEET " & TEXT(TOC!$B$8,"0") & " " -> (1) FOR DELINEATOR AND MARKER PLACEMENT, SEE SHEET ST87

Sheet DELREM
A2: Enter total number of delineators to be removed directly into the Statement of Estimated Quantities (SEQ)
B4: MnDOT no longer includes this chart in signing plans.
B6: ='SEQ-PSTAB'!#REF! ->  | C6: REMOVE DELINEATORS & MARKERS
B7: CODE NO | C7: QTY | D7: LOCATION
A8: (1) | B8: X4-6 | C8: 1 | D8: EXIT NOSE
A9: (1) | B9: X4-6 | C9: 1 | D9: EXIT NOSE
A10: (3) | B10: X4-2 | C10: 1 | D10: EXIT NOSE
A11: (2) | B11: X4-2 | C11: 1 | D11: ISLAND
A12: (4) | B12: X4-4L | C12: 1 | D12: ISLAND
B13: TOTAL | C13: =SUM(C8:C12) -> 5
B17: this chart is no longer necesary
B18: *Prior to 2010 this chart was included in Signing Plans.
B20: CURRENT PRACTICE:
B21: ENTER THE NUMBER OF DELINEATORS AND MARKERS TO BE REMOVED DIRECTLY INTO SEQ
B22: PAY ITEMS in SEQ are: 2104.502 REMOVE DELINEATOR & 2104.502 REMOVE MARKER
B25: *LABEL NUMBER OF DELINEATORS & MARKERS TO BE REMOVED ON ROADWAY LAYOUT
B28: SEQ = Statement of Estimated Quantities or Permanent Signing Tabulation if Plan is "Stand Alone"

Sheet REF SIGN
B2: REFERENCE LOCATION SIGN (1) | I2: ='SEQ-PSTAB'!#REF! -> 
B3: CODE | C3: QTY | D3: SIZE | H3: LEGEND
B4: NO | C4: EACH | D4: INCH
B5: D10-1 | C5: 1 | D5: 10 | E5: x | F5: 18 | H5: MILE 1 | J5: (2)
D6: 10 | E6: X | F6: 18 | H6: MILE 1
B7: D10-2 | C7: 1 | D7: 12 | E7: x | F7: 36 | H7: MILE 12
B8: D10-3 | C8: 1 | D8: 12 | E8: x | F8: 48 | H8: MILE 123
E9: x
E10: x
B11: TOTAL | C11: =SUM(C5:C10) -> 3
B13: SPECIFIC NOTES:
B14: (1) MOUNT ON 3 LB/FT POST (MNDOT 3401).
B15: (2) MOUNT BACK TO BACK.
B17: GENERAL NOTE:
B18: 1. SEE MNDOT STANDARD SIGNS AND MARKINGS MANUAL FOR REFERENCE LOCATION SIGN DETAIL.
B19: ="2. FOR REFERENCE LOCATION SIGN PLACEMENT, SEE SHEET NO. " & TEXT(TOC!$B$8,"0") & "." -> 2. FOR REFERENCE LOCATION SIGN PLACEMENT, SEE SHEET NO. ST87.

Sheet SAL REF SIGN
B2: SALVAGE REFERENCE LOCATION SIGN (1) | I2: ='SEQ-PSTAB'!#REF! -> 
B3: CODE | C3: QTY | D3: SIZE | H3: LEGEND
B4: NO | C4: EACH | D4: INCH
B5: D10-1 | C5: 1 | D5: 10 | E5: x | F5: 18 | H5: MILE 1 | J5: (2)
D6: 10 | E6: X | F6: 18 | H6: MILE 1
B7: D10-2 | C7: 1 | D7: 12 | E7: x | F7: 36 | H7: MILE 12
B8: D10-3 | C8: 1 | D8: 12 | E8: x | F8: 48 | H8: MILE 123
E9: x
E10: x
B11: TOTAL | C11: =SUM(C5:C10) -> 3
B13: SPECIFIC NOTES:
B14: (1) MOUNT ON 3 LB/FT POST (MNDOT 3401).
B15: (2) MOUNT BACK TO BACK.
B17: GENERAL NOTE:
B18: 1. SEE MNDOT STANDARD SIGNS AND MARKINGS MANUAL FOR REFERENCE LOCATION SIGN DETAIL.
B19: ="2. FOR REFERENCE LOCATION SIGN PLACEMENT, SEE SHEET NO. " & TEXT(TOC!$B$8,"0") & "." -> 2. FOR REFERENCE LOCATION SIGN PLACEMENT, SEE SHEET NO. ST87.

Sheet REF SIGN S&I
B2: SALVAGE & INSTALL REFERENCE LOCATION SIGN (1) | I2: ='SEQ-PSTAB'!#REF! -> 
B3: CODE | C3: QTY | D3: SIZE | H3: LEGEND
B4: NO | C4: EACH | D4: INCH
B5: D10-1 | C5: 1 | D5: 10 | E5: x | F5: 18 | H5: MILE 1 | J5: (2)
D6: 10 | E6: X | F6: 18 | H6: MILE 1
B7: D10-2 | C7: 1 | D7: 12 | E7: x | F7: 36 | H7: MILE 12
B8: D10-3 | C8: 1 | D8: 12 | E8: x | F8: 48 | H8: MILE 123
E9: x
E10: x
B11: TOTAL | C11: =SUM(C5:C10) -> 3
B13: SPECIFIC NOTES:
B14: (1) MOUNT ON 3 LB/FT POST (MNDOT 3401).
B15: (2) MOUNT BACK TO BACK.
B17: GENERAL NOTE:
B18: 1. SEE MNDOT STANDARD SIGNS AND MARKINGS MANUAL FOR REFERENCE LOCATION SIGN DETAIL.
B19: ="2. FOR REFERENCE LOCATION SIGN PLACEMENT, SEE SHEET NO. " & TEXT(TOC!$B$8,"0") & "." -> 2. FOR REFERENCE LOCATION SIGN PLACEMENT, SEE SHEET NO. ST87.

Sheet BRIDGE NO
B2: BRIDGE NUMBER MARKER (1) | I2: ='SEQ-PSTAB'!#REF! -> 
B3: CODE | C3: QTY | D3: SIZE | H3: LEGEND
B4: NO | C4: EACH | D4: INCH
B5: X4-12A | C5: 2 | D5: 6 | E5: x | F5: 15 | H5: 1234
B6: X4-12A | C6: 2 | D6: 6 | E6: x | F6: 18 | H6: 12345
B7: TOTAL | C7: =SUM(C5:C6) -> 4
B9: SPECIFIC NOTES:
B10: (1) SEE MNDOT STANDARD SIGNS AND MARKINGS MANUAL FOR BRIDGE NUMBER MARKER.

Sheet PU3LB
B2: AA | C2: STRUCTURAL STEEL 3# U-POST | H2: AA
B3: DESCRIPTION | C3: QTY | D3: WEIGHT | F3: TOTAL
D4: PER POST | F4: WEIGHT
D5: (POUND) | E5: (POUND)
B6: 6 FOOT | C6: 15 | D6: 18 | E6: =C6*D6 -> 270
B7: 7 FOOT | C7: 55 | D7: 21 | E7: 1155
B8: 8 FOOT | C8: 35 | D8: 24 | E8: 840
B9: 10 FOOT | C9: 65 | D9: 30 | E9: 1950
B10: 12 FOOT | C10: 55 | D10: 36 | E10: 1980
B11: 14 FOOT | C11: 25 | D11: 42 | E11: 1050
D12: TOTAL | E12: =SUM(E6:H11) -> 7245

Sheet OL
C2: SIGN PANELS TYPE OVERLAY | M2: ='SEQ-PSTAB'!#REF! -> 
B3: CODE NO | C3: QTY | D3: SIZE | H3: AREA | J3: TOTAL | L3: LEGEND
D4: INCH | H4: SQ FT | J4: SQ FT
B5: M1-1 | C5: 0 | D5: 45 | E5: x | F5: 36 | H5: =D5*F5/144 -> 11.25 | J5: =C5*H5 -> 0 | L5: INTERSTATE 494
B6: M1-1 | C6: 0 | D6: 30 | E6: x | F6: 24 | H6: 5 | J6: =C6*H6 -> 0 | L6: INTERSTATE 494
B7: M1-1 | C7: 0 | D7: 36 | E7: x | F7: 36 | H7: 9 | J7: 0 | L7: INTERSTATE 94
B8: M1-1 | C8: 0 | D8: 24 | E8: x | F8: 24 | H8: 4 | J8: 0 | L8: INTERSTATE 94
B9: M1-4A | C9: 0 | D9: 45 | E9: x | F9: 36 | H9: 11.25 | J9: 0 | L9: US 212
B10: M1-4A | C10: 0 | D10: 36 | E10: x | F10: 36 | H10: 9 | J10: 0 | L10: US 52
B11: M1-5B | C11: 0 | D11: 45 | E11: x | F11: 36 | H11: 11.25 | J11: 0 | L11: MINNESOTA 100
B12: M1-5B | C12: 0 | D12: 24 | E12: x | F12: 24 | H12: 4 | J12: 0 | L12: MINNESOTA 5
B13: M1-6 | C13: 0 | D13: 24 | E13: x | F13: 24 | H13: 4 | J13: 0 | L13: CSAH 42
B14: M1-6A | C14: 0 | D14: 45 | E14: x | F14: 36 | H14: 11.25 | J14: 0 | L14: COUNTY 101
B15: M1-X4A | C15: 0 | D15: 36 | E15: x | F15: 36 | H15: 9 | J15: 0 | L15: COUNTY 1
B16: M1-X4A | C16: 0 | D16: 24 | E16: x | F16: 24 | H16: 4 | J16: 0 | L16: COUNTY 11
H17: TOTAL | J17: =SUM(J5:J16) -> 0

Sheet S&I SPEC
C2: SALVAGE & INSTALL SIGN TYPE SPECIAL | H2: AA
C3: QTY | D3: POSTS | F3: MTG
B4: SIGN | D4: NO | E4: LENGTH | F4: HT | G4: PANEL
B5: NO | D5: & | F5: (1) | G5: LEGEND | L5: DEFAULT VALUES
C6: EACH | D6: TYPE | E6: FEET | F6: FEET | L6: POST LB | M6: POST TYPE
B7: C-201 | C7: 1 | D7: 1-O | E7: 11 | F7: 7 | G7: ROCHESTER BLVD | L7: 2.5 | M7: U
G8: 250TH ST E | L8: 2.5 | M8: U
B9: TOTAL | C9: =SUM(C7:C8) -> 1
B11: SPECIFIC NOTE:
B12: ="(1) MOUNTING HEIGHT IS MINIMUM (WITH A +6 INCH TOLERANCE)" -> (1) MOUNTING HEIGHT IS MINIMUM (WITH A +6 INCH TOLERANCE)
B14: GENERAL NOTE:
B15: 1. POST LENGTHS ARE APPROXIMATE AND INCLUDE EMBEDMENT, BUT DO NOT ACCOUNT FOR DITCH GRADE.

Sheet A REM FOOT
C2: REMOVE SIGN FOOTING-TYPE A | E2: ='SEQ-PSTAB'!#REF! -> 
B3: SIGN | C3: LOCATION | D3: FOOTING DEPTH
B4: NO | D4: FEET
B5: A I94-528 | C5: 142+00 SB | D5: 6
B6: A I90-874 | C6: 212+75 NB | D6: 7.5
B19: TOTAL | C19: =COUNTA(B5:B16) -> 2
B22: USER NOTES:
B23: Sign is crushed and the CONCRETE base is left sitting and needs
B24: to be removed before new sign can be installed
B25: INCLUDED IN 2104.509 REMOVE SIGN BASE (EACH)
B26: Remember that there are two footings for each sign!!

Sheet SIGN PANELS TYPE A EXTRUDED
C2: SIGN PANELS TYPE A (EXTRUDED) | N2: ='SEQ-PSTAB'!#REF! -> 
C3: LOCATION | D3: F & I | J3: REQUIRED
B4: SIGN | D4: PANEL SECTIONS | J4: PANEL
B5: NO | D5: SIZE | H5: AREA | J5: SIZE
D6: INCH | H6: SQ FT | J6: INCH
B7: A I35-025 | C7: 142+00 SB | D7: 0 | E7: x | F7: 12 | H7: =D7*F7/144 -> 0 | J7: 132 x 102
B8: A I35-026 | C8: 212+75 NB | D8: 0 | E8: x | F8: 12 | H8: =D8*F8/144 -> 0 | J8: 138 x 96
E9: x | H9: 0 | K9: x
E10: x | H10: 0 | K10: x
E11: x | H11: 0 | K11: x
E12: x | H12: 0 | K12: x
E13: x | H13: 0 | K13: x
E14: x | H14: 0 | K14: x
E15: x | H15: 0 | K15: x
F16: TOTAL | H16: =SUM(H7:H15) -> 0
B18: USER NOTES:
B19: Paid for 2564.531 as Sign Panels Type A (sq. ft.)
B20: wrong title; Rick to get us the correct title
B21: roadway note will say : F and I extruded panel sections.
B22: this chart pays for the extruded panels but then the sign overlay is INCLUDED IN SIGN PANEL OVERLAY TYPE A.
B23: you'll then need a second chart for the whole sign called SIGN PANEL OVERLAY TYPE A.

Sheet AEXTRM
B2: REMOVE EXTRUDED PANEL SECTIONS TYPE A | H2: AA
B3: SIGN NO | C3: LOCATION | D3: PANEL SIZE | H3: PANEL SIZE
D4: EXISTING | H4: MODIFIED
D5: INCH
B6: A I94-587 | C6: 142+00 SB | D6: 132 | E6: x | F6: 12 | H6: 102 | I6: x | J6: 78
B7: A I94-588 | C7: 212+75 NB | D7: 186 | E7: x | F7: 12 | H7: 186 | I7: x | J7: 102
E8: x | I8: x
E9: x | I9: x
E10: x | I10: x
B12: NOTE:
B13: 1. INCLUDED IN SIGN PANEL OVERLAY TYPE A.
B15: USER NOTES:
B16: No matching PAY ITEM. This is incidental to SIGN PANEL OVERLAY TYPE A (thus you need to have a chart for the sign panel overlay type A)

Sheet AEXTSA
B2: SALVAGE EXTRUDED PANEL SECTIONS TYPE A | J2: ='SEQ-PSTAB'!#REF! -> 
B3: SIGN NO | C3: LOCATION | D3: PANEL SIZE
D4: EXISTING | H4: MODIFIED
D5: INCH
B6: A I94-587 | C6: 142+00 SB | D6: 132 | E6: x | F6: 12 | H6: 102 | I6: x | J6: 78
B7: A I94-588 | C7: 212+75 NB | D7: 186 | E7: x | F7: 12 | H7: 186 | I7: x | J7: 102
E8: x | I8: x
E9: x | I9: x
E10: x | I10: x
E11: x | I11: x
E12: x | I12: x
E13: x | I13: x
E14: x | I14: x
E15: x | I15: x
E16: x | I16: x
B18: What total is transferred to the SEQ?
B19: There is no pay item for this yet. Haven't used this in years. Could be incidental to
B20: another pay item.

Sheet APSTMOD
B2: MODIFY TYPE A SIGN POST | L2: =IF('SEQ-PSTAB'!#REF!>0,'SEQ-PSTAB'!#REF!,'SEQ-PSTAB'!#REF!) -> 
B3: SEE SHEETS FOR DETAILS
C4: LOCATION | D4: POST
B5: SIGN | J5: EXTEND | L5: SHORTEN
B6: NO | D6: NO | E6: EXISTING | J6: APPROX | L6: APPROX
J7: FEET | L7: FEET
B8: A I94-587 | C8: 142+00 SB | D8: 2 | E8: W | F8: 6 | G8: x | H8: 20 | J8: 1.5
B9: A I94-588 | C9: 212+75 NB | D9: 2 | E9: W | F9: 8 | G9: x | H9: 24 | L9: 2
G10: x
G11: x
G12: x
G13: x
G14: x
G15: x
G16: x
B19: USER NOTES:
B20: If you remove extruded panel sections you need to saw the posts then you use this chart.
B21: If you add extruded panel sections then you need to extend the posts and then you use this chart.
B22: Roadway note is going to be "modify post."
B23: This chart is used for shortening or extending posts.
B24: There is no pay item for this chart, it is incidental to SIGN PANEL OVERLAY TYPE A
B26: TOTAL | C26: =COUNTIF(B10:B21,"<>""") -> 5 | D26: (this total should not appear on the chart in the plan, but should be automatic in the SEQ-PSTAB)

Sheet AREM
B2: REMOVE SIGN TYPE A | Y2: ='SEQ-PSTAB'!#REF! -> 
C3: QTY | D3: LOCATION | E3: PANEL SIZE | M3: POSTS
B4: SIGN | E4: EXTRUDED | I4: FLAT | M4: SIZE | W4: L1 | Y4: L2
B5: NO | E5: TYPE | I5: SHEET | M5: BREAK-AWAY | R5: NON
C6: EACH | E6: INCH | R6: BREAK-AWAY | W6: FEET | Y6: FEET
B7: A I94-587 | C7: 0 | D7: 142+00 SB | E7: 132 | F7: x | G7: 78 | J7: x | M7: W | N7: 6 | O7: x | P7: 20 | T7: x | W7: 13.5 | Y7: 14.5
B8: A I94-588 | C8: 0 | D8: 212+75 NB | E8: 186 | F8: x | G8: 102 | J8: x | M8: W | N8: 8 | O8: x | P8: 24 | T8: x | W8: 14 | Y8: 15
B9: A MN65-144 | C9: 0 | F9: x | J9: x | O9: x | T9: x
F10: x | J10: x | O10: x | T10: x
F11: x | J11: x | O11: x | T11: x
F12: x | J12: x | O12: x | T12: x
F13: x | J13: x | O13: x | T13: x
F14: x | J14: x | O14: x | T14: x
F15: x | J15: x | O15: x | T15: x
F16: x | J16: x | O16: x | T16: x
F17: x | J17: x | O17: x | T17: x
B18: TOTAL | C18: =SUM(C7:C17) -> 0

Sheet AS&IHP
B2: SALVAGE & INSTALL SIGN TYPE A (H PILE FOOTINGS) | AN2: AA
E3: PANEL | M3: POST | AG3: PILE | AL3: "X" | AN3: "H"
M4: SIZE | W4: LENGTH
B5: SIGN | C5: PRESENT | D5: NEW | E5: SIZE | W5: EXISTING | AA5: REQUIRED | AE5: d | AG5: "P" | AI5: ADDITIONAL | AJ5: WEIGHT
B6: NO | C6: LOCATION | D6: LOCATION | E6: EXISTING | I6: REQUIRED | M6: EXISTING | R6: REQUIRED | W6: L1 | Y6: L2 | AA6: L1 | AC6: L2 | AI6: STEEL PER PILE
E7: INCH | M7: INCH | W7: FEET | AE7: INCH | AG7: FEET | AI7: POUND | AJ7: POUND | AL7: FEET | AN7: FEET
B8: A US10-154 | C8: 142+00 SB | D8: 143+00 SB | E8: 132 | F8: x | G8: 78 | I8: 132 | J8: x | K8: 78 | M8: W | N8: 6 | O8: x | P8: 20 | T8: x | W8: 13.5 | Y8: 14.5 | AA8: 13 | AC8: 14 | AE8: 92 | AG8: 12 | AI8: 104 | AJ8: 688 | AL8: 30 | AN8: 7
B9: A I94-872 | C9: 212+75 NB | D9: 213+00 NB | E9: 186 | F9: x | G9: 102 | I9: 186 | J9: x | K9: 102 | M9: W | N9: 8 | O9: x | P9: 24 | T9: x | W9: 14 | Y9: 15 | AA9: 14 | AC9: 14.5 | AE9: 108 | AG9: 12 | AI9: 118 | AJ9: 812 | AL9: 25 | AN9: 5
F10: x | J10: x | O10: x | T10: x
F11: x | J11: x | O11: x | T11: x
F12: x | J12: x | O12: x | T12: x
F13: x | J13: x | O13: x | T13: x
F14: x | J14: x | O14: x | T14: x
F15: x | J15: x | O15: x | T15: x
AI16: TOTAL | AJ16: =SUM(AJ8:AJ15) -> 1500
B19: USER NOTES:
B20: This chart is used to replace footings.
B21: This chart needs to be reviewed by Rick before we use it!! In fact Rick promises that he will get us a new and BETTER box:)
B22: Use pay items:
B23: SALVAGE SIGN TYPE A
B24: INSTALL SIGN TYPE A
B25: STRUCTURAL STEEL POSTS FOR TYPE A SIGNS

Sheet ASAL
B2: SALVAGE SIGN TYPE A | X2: ='SEQ-PSTAB'!#REF! -> 
C3: LOCATION | D3: PANEL SIZE | L3: POSTS
B4: SIGN | D4: EXTRUDED TYPE | H4: FLAT SHEET | L4: SIZE | V4: L1 | X4: L2
B5: NO | D5: TYPE | H5: SHEET | L5: BREAK-AWAY | Q5: NON
D6: INCH | Q6: BREAK-AWAY | V6: FEET | X6: FEET
B7: A I90-458 | C7: 142+00 SB | D7: 132 | E7: x | F7: 78 | I7: x | L7: W | M7: 6 | N7: x | O7: 20 | S7: x | V7: 13.5 | X7: 14.5
B8: A I90-765 | C8: 212+75 NB | D8: 186 | E8: x | F8: 102 | I8: x | L8: W | M8: 8 | N8: x | O8: 24 | S8: x | V8: 14 | X8: 15
E9: x | I9: x | N9: x | S9: x
E10: x | I10: x | N10: x | S10: x
E11: x | I11: x | N11: x | S11: x
E12: x | I12: x | N12: x | S12: x
E13: x | I13: x | N13: x | S13: x
E14: x | I14: x | N14: x | S14: x
E15: x | I15: x | N15: x | S15: x
E16: x | I16: x | N16: x | S16: x
E17: x | I17: x | N17: x | S17: x
E18: x | I18: x | N18: x | S18: x
B20: Pay item:
B21: SALVAGE SIGN TYPE A
B22: We don't expect that we would use this chart. It is typically going to be under salvage and install.
B23: We could use this as a salvage only and not install the sign back.

Sheet ASIGNHP
B2: SIGN TYPE A (H PILE FOOTINGS) | AI2: XX
C3: SEE SHEET FOR PANELS
D4: PANEL | J4: POST | AA4: PILE | AE4: TOTAL | AG4: "X" | AI4: "H"
D5: SIZE | H5: AREA | J5: SIZE | O5: QTY | P5: LENGTH | T5: ADDITIONAL | U5: WEIGHT | AE5: WEIGHT
B6: SIGN | C6: LOCATION | P6: L1 | R6: L2 | T6: STEEL | W6: c | Y6: d | AA6: "P" | AC6: WEIGHT | AE6: STRUCTURAL
B7: NO | T7: PER POST | AE7: STEEL
D8: INCH | H8: SQ FT | P8: FEET | T8: POUND | U8: LBS | W8: INCH | Y8: INCH | AA8: FEET | AC8: POUND | AE8: POUND | AG8: FEET | AI8: FEET
B9: A I94-528 | C9: 142+00 SB | D9: 132 | E9: x | F9: 78 | H9: =D9*F9/144 -> 71.5 | J9: W | K9: 6 | L9: x | M9: 20 | O9: 0 | P9: 13.5 | R9: 14.5 | T9: 104 | U9: =((P9+R9)*M9)+(O9*T9) -> 560 | W9: 20 | Y9: 92 | AA9: 12 | AC9: =(M9*O9*AA9) -> 0 | AE9: =(U9+AC9) -> 560 | AG9: 30 | AI9: 7
B10: A I90-874 | C10: 212+75 NB | D10: 186 | E10: x | F10: 102 | H10: =D10*F10/144 -> 131.75 | J10: W | K10: 8 | L10: x | M10: 24 | O10: 0 | P10: 14 | R10: 15 | T10: 118 | U10: 696 | W10: 39 | Y10: 108 | AA10: 12 | AC10: =(M10*O10*AA10) -> 0 | AE10: 696 | AG10: 25 | AI10: 5
E11: x | L11: x | U11: 0 | AC11: 0 | AE11: 0
E12: x | L12: x | U12: 0 | AC12: 0 | AE12: 0
E13: x | L13: x | U13: 0 | AC13: 0 | AE13: 0
E14: x | L14: x | U14: 0 | AC14: 0 | AE14: 0
E15: x | L15: x | U15: 0 | AC15: 0 | AE15: 0
E16: x | L16: x | U16: 0 | AC16: 0 | AE16: 0
D17: TOTAL | H17: =SUM(H9:H15) -> 203.25 | AC17: TOTAL | AE17: =SUM(AE9:AE15) -> 1256
B19: USER NOTES
B20: This is all new sign
B21: pay items:
B22: SIGN PANELS TYPE A
B23: STRUCTURAL STEEL POSTS FOR TYPE A SIGN

Sheet SIGN PANELS TYPE A
B2: SIGN PANELS TYPE A | H2: ='SEQ-PSTAB'!#REF! -> 
B3: SEE SHEETS FOR PANEL | K3: SIGN PANELS TYPE A | S3: AA
B4: SIGN | C4: LOCATION | D4: SIZE | H4: AREA
B5: NO | D5: INCH | H5: SQ FT | L5: SP XXXXX | O5: SP XXXXX | R5: SP XXXXX
B6: A I94-528 | C6: 142+00 SB | D6: 0 | E6: x | F6: 78 | H6: =D6*F6/144 -> 0 | K6: SIGN NO | L6: QTY | M6: AREA (SQ FT) | O6: QTY | P6: AREA (SQ FT) | R6: QTY | S6: AREA
B7: A I90-874 | C7: 212+75 NB | D7: 0 | E7: x | F7: 102 | H7: =D7*F7/144 -> 0 | M7: =-G6*L7/144 -> 0 | P7: =-K7*O7/144 -> 0 | S7: =-N7*R7/144 -> 0
E8: x | H8: 0 | M8: 0 | P8: 0 | S8: 0
E9: x | H9: 0 | M9: 0 | P9: 0 | S9: 0
E10: x | H10: 0 | M10: 0 | P10: 0 | S10: 0
E11: x | H11: 0 | M11: 0 | P11: 0 | S11: 0
E12: x | H12: 0 | M12: 0 | P12: 0 | S12: 0
E13: x | H13: 0 | M13: 0 | P13: 0 | S13: 0
E14: x | H14: 0 | M14: 0 | P14: 0 | S14: 0
E15: x | H15: 0 | M15: 0 | P15: 0 | S15: 0
E16: x | H16: 0 | M16: 0 | P16: 0 | S16: 0
E17: x | H17: 0 | M17: 0 | P17: 0 | S17: 0
D18: TOTAL | H18: =SUM(H6:H17) -> 0 | M18: 0 | P18: 0 | S18: 0
K19: TOTALS | M19: 0 | P19: 0 | S19: 0
K21: Use this chart for split in quantities for several SP's.
B22: New sign panel on an inplace sign structure. If the new panel is wider then make sure the structure can handle the new sign panel. If not, you need new posts and not this chart anymore.

Sheet ASPNLIN
B2: INSTALL SIGN PANEL TYPE A | G2: ='SEQ-PSTAB'!#REF! -> 
B3: SIGN | C3: QTY | D3: LOCATION | E3: SIZE
B4: NO | C4: EACH | E4: INCH
B5: A I94-528 | C5: 0 | D5: 142+00 SB | E5: 132 | F5: x | G5: 78
B6: A I90-874 | C6: 0 | D6: 212+75 NB | E6: 186 | F6: x | G6: 102
F7: x
F8: x
F9: x
F10: x
F11: x
B12: TOTAL | C12: =SUM(C5:C11) -> 0
B15: Chances you won't use this chart. A panel is usually salvaged and installed,
B16: and in the salvage and install chart.
B18: Rick needs to be contacted on this one….?????

Sheet ASPNLOL
B2: SIGN PANEL OVERLAY TYPE A | H2: AA
K3: SIGN PANEL OVERLAY TYPE A | S3: AA
B4: SIGN | C4: LOCATION | D4: OVERLAY | H4: AREA
B5: NO | D5: INCH | H5: SQ FT | K5: SIGN | L5: QTY | M5: AREA | O5: QTY | P5: AREA | R5: QTY | S5: AREA
B6: A I94-528 | C6: S | D6: 0 | E6: x | F6: 78 | H6: =D6*F6/144 -> 0 | K6: NO | M6: SQ FT | P6: SQ FT | S6: SQ FT
B7: A I90-874 | C7: 212+75 NB | D7: 0 | E7: x | F7: 102 | H7: 0 | K7: =B6 -> A I94-528 | L7: 2 | M7: =(D6*F6)/144 -> 0 | P7: =-K7*O7/144 -> 0 | S7: =-N7*R7/144 -> 0
E8: x | H8: 0 | K8: =B7 -> A I90-874 | L8: 3 | M8: =(D7*F7)/144 -> 0 | P8: 0 | S8: 0
E9: x | H9: 0 | K9: 0 | M9: 0 | P9: 0 | S9: 0
E10: x | H10: 0 | K10: 0 | M10: 0 | P10: 0 | S10: 0
E11: x | H11: 0 | K11: 0 | M11: 0 | P11: 0 | S11: 0
E12: x | H12: 0 | K12: 0 | M12: 0 | P12: 0 | S12: 0
E13: x | H13: 0 | K13: 0 | M13: 0 | P13: 0 | S13: 0
E14: x | H14: 0 | K14: 0 | M14: 0 | P14: 0 | S14: 0
E15: x | H15: 0 | K15: 0 | M15: 0 | P15: 0 | S15: 0
E16: x | H16: 0 | K16: 0 | M16: 0 | P16: 0 | S16: 0
E17: x | H17: 0 | K17: 0 | M17: 0 | P17: 0 | S17: 0
D18: TOTAL | H18: =SUM(H6:H17) -> 0 | K18: 0 | M18: 0 | P18: 0 | S18: 0
K19: TOTALS | M19: =SUM(M7:M18) -> 0 | P19: 0 | S19: 0
B20: GENERAL NOTE:
B21: 1. SEE SHEETS xxx TO xxx FOR SIGN PANEL OVERLAYS.
K22: this chart is for each SP

Sheet ASPNLSAL
B2: SALVAGE SIGN PANEL TYPE A | J2: ='SEQ-PSTAB'!#REF! -> 
C3: LOCATION | D3: PANEL SIZE
B4: SIGN | D4: EXTRUDED | H4: FLAT
B5: NO | D5: TYPE | H5: SHEET
D6: INCH
B7: A I94-100 | C7: 142+00 SB | D7: 132 | E7: x | F7: 78 | H7: 102 | I7: x | J7: 78
B8: A I90-887 | C8: 212+75 NB | D8: 186 | E8: x | F8: 102 | H8: 174 | I8: x | J8: 102
E9: x | I9: x
E10: x | I10: x
E11: x | I11: x
E12: x | I12: x
E13: x | I13: x
E14: x | I14: x
E15: x | I15: x
E16: x | I16: x
B20: Rick says to keep this chart but contact him for more info

Sheet ASPNLSAW
B2: SAW SIGN PANEL TYPE A | L2: ='SEQ-PSTAB'!#REF! -> 
B3: SIGN NO | C3: LOCATION | D3: PANEL SIZE | L3: LENGTH
D4: EXISTING | H4: MODIFIED | L4: OF CUT
D5: INCH | L5: FEET
B6: A MN23-132 | C6: 142+00 SB | D6: 132 | E6: x | F6: 78 | H6: 102 | I6: x | J6: 78 | L6: =F6/12 -> 6.5
B7: A MN23-133 | C7: 212+75 NB | D7: 186 | E7: x | F7: 102 | H7: 174 | I7: x | J7: 102 | L7: =F7/12 -> 8.5
E8: x | I8: x | L8: 0
E9: x | I9: x | L9: 0
E10: x | I10: x | L10: 0
E11: x | I11: x | L11: 0
E12: x | I12: x | L12: 0
E13: x | I13: x | L13: 0
E14: x | I14: x | L14: 0
E15: x | I15: x | L15: 0
J16: TOTAL | L16: =SUM(L6:L15) -> 15
B18: just what it means, we need to saw it because it is too wide. You will then have SIGN PANEL OVERLAY TYPE A
B19: It would be incidental to SIGN PANEL OVERLAY TYPE A
B20: But there is a pay item for it just as the title is.

Sheet ANOTES
B2: GENERAL NOTES:
B3: 1. | D3: FOOTING DEPTH "D" IS MEASURED FROM THE LOW GROUND LINE TO THE BOTTOM OF
D4: THE CONCRETE AND IS BASED ON ALLOWABLE SOIL PRESSURE OF 2000 P.S.F. THE
D5: ENGINEER MAY INCREASE THE DEPTH WHERE POOR SOIL CONDITIONS ARE ENCOUNTERED.
B6: 2. | D6: SEE SHEETS AND FOR STRUCTURAL DETAILS, TYPE "A" SIGNS (BREAKAWAY).
B7: 3. | D7: VOLUME OF CONCRETE IN FOOTINGS IS 0.1164 CU. YDS. PER FOOT OF DEPTH.
B8: 4. | D8: POST LENGTHS ARE APPROXIMATE.
B9: 5. | D9: "X" IS THE DISTANCE FROM THE EDGE OF THE THRU LANE TO THE FIRST POST.
B10: 6. | D10: "H" IS THE HEIGHT ABOVE THE PAVEMENT EDGE TO THE BOTTOM EDGE OF THE PANEL.

Sheet AFF
B2: FRICTION FUSE | E2: SA
B3: SIGN | C3: QTY | D3: LOCATION | E3: POST
B4: NO | C4: EACH | E4: SIZE
B5: A-1 | C5: 2 | D5: 142+00 SB | E5: W6X20
B6: A-2 | C6: 2 | D6: 212+75 NB | E6: W8X24
B17: TOTAL | C17: =SUM(C5:C16) -> 4

Sheet A REM PANEL
B1: AREMPAN
B2: REMOVE SIGN PANEL TYPE A | E2: AA
B3: SIGN NO | C3: LOCATION | D3: PANEL SIZE (INCH)
D4: EXTRUDED TYPE | E4: FLAT SHEET
D5: TYPE
B6: A MN23-132
B7: A MN23-133
B20: TOTAL | C20: =COUNTA(B6:B11) -> 2

Sheet AKP
B2: KEEPER PLATE | E2: SA
B3: SIGN | C3: QTY | D3: LOCATION | E3: POST
B4: NO | C4: EACH | E4: SIZE
B5: A MN23-132 | C5: 0 | D5: 142+00 SB | E5: W6X20
B6: A MN23-133 | C6: 0 | D6: 212+75 NB | E6: W8X24
B17: TOTAL | C17: =SUM(C5:C16) -> 0

Sheet EA
B2: SIGN PANELS TYPE EA | M2: G
C3: QTY | D3: LOCATION | E3: PANEL | K3: POSTS
B4: SIGN | E4: SIZE (INCH) | I4: AREA (SQ FT) | J4: TOTAL
B5: NO | J5: AREA | K5: NO | L5: SPACING | M5: LEGEND
J6: (SQ FT)
B7: EA-1 | C7: 3 | D7: A US75-246, A US75-247 & A US75-249 | E7: 102 | F7: x | G7: 0 | I7: =E7*G7/144 -> 0 | J7: =I7*C7 -> 0 | K7: 3 | L7: 36 | M7: EXIT 157
B8: EA-2 | C8: 2 | D8: A US75-247, US75-250 | E8: 162 | F8: x | G8: 0 | I8: =E8*G8/144 -> 0 | J8: =I8*C8 -> 0 | K8: 4 | L8: 42 | M8: EXITS 159A&B
B9: EA-3 | C9: 1 | D9: A I90-621 | E9: 120 | F9: x | G9: 0 | I9: 0 | J9: 0 | K9: 3 | L9: 42 | M9: EXIT 159A
F10: x | I10: 0 | J10: 0
F11: x | I11: 0 | J11: 0
F12: x | I12: 0 | J12: 0
F13: x | I13: 0 | J13: 0
F14: x | I14: 0 | J14: 0
F15: x | I15: 0 | J15: 0
F16: x | I16: 0 | J16: 0
F17: x | I17: 0 | J17: 0
F18: x | I18: 0 | J18: 0
I19: TOTAL | J19: =SUM(J7:J18) -> 0
B23: GENERAL NOTES:
B24: 1. SEE SHEET ____ FOR STRUCTURAL DETAIL
B25: 2. POST SPACING MAY BE VARIED TO MISS MEMBERS OF A SIGN STRUCTURE
B26: 3. SEE SHEET ____ FOR SIGN PANELS.

Sheet EAOL
B2: SIGN PANEL OVERLAY TYPE EA | M2: ='SEQ-PSTAB'!#REF! -> 
B3: SIGN NO | E3: PANEL OVERLAY | M3: LEGEND
C4: QTY | D4: LOCATION | E4: SIZE | I4: AREA | K4: TOTAL
E5: INCH | I5: SQ FT | K5: SQ FT
B6: EA-1 | C6: 2 | D6: A I90-454, A I90-455 | E6: 150 | F6: x | G6: 0 | I6: =(E6*G6)/144 -> 0 | K6: =I6*C6 -> 0 | M6: EXITS 52B&A
B7: EA-2 | C7: 1 | D7: A I90-560 | E7: 96 | F7: x | G7: 0 | I7: =(E7*G7)/144 -> 0 | K7: =I7*C7 -> 0 | M7: EXIT 48
F8: x
F9: x
F10: x
F11: x
F12: x
F13: x
F14: x
I15: TOTAL | K15: =SUM(K6:K14) -> 0

Sheet EAREM
B2: REMOVE SIGN TYPE EA | J2: AA
B3: SIGN NO | C3: QTY | E3: POSTS NO & TYPE | F3: PANEL
D4: LOCATION | F4: SIZE | J4: LEGEND
C5: EACH | F5: (INCH)
B6: EA-101 | C6: 0 | D6: A I35W-024 | E6: 3-U | F6: 102 | G6: x | H6: 24 | J6: EXIT 157
B7: EA-102 | C7: 0 | D7: A MN100-041 | E7: 4-U | F7: 162 | G7: x | H7: 24 | J7: EXITS 159A&B
G8: x
G9: x
G10: x
G11: x
G12: x
G13: x
B14: TOTAL | C14: =SUM(C6:C13) -> 0

Sheet EAEXTFI
B2: SIGN PANELS TYPE EA (EXTRUDED PANEL SECTIONS) | O2: AA
C3: QTY | D3: LOCATION | E3: PANEL | M3: REQUIRED PANEL SIZE
B4: SIGN | E4: SIZE | I4: AREA | K4: TOTAL
B5: NO | K5: AREA
E6: INCH | I6: SQ FT | K6: SQ FT | M6: INCH
B7: EA-201 | C7: 0 | D7: A MN280-002 | E7: 96 | F7: x | G7: 6 | I7: =E7*G7/144 -> 4 | K7: =C7*I7 -> 0 | M7: 96 | N7: x | O7: 30
B8: EA-202 | C8: 0 | D8: A MN280-003, A MN280-004 | E8: 96 | F8: x | G8: 6 | I8: =E8*G8/144 -> 4 | K8: =C8*I8 -> 0 | M8: 96 | N8: x | O8: 30
I9: TOTAL | K9: =SUM(K7:K8) -> 0

Sheet EOREM
B2: REMOVE SIGN TYPE EO | K2: AA
B3: SIGN NO | C3: QTY | D3: LOCATION | E3: POSTS NO & TYPE | G3: PANEL
G4: SIZE | K4: LEGEND
C5: EACH | G5: (INCH)
B6: EO-101 | C6: 0 | D6: OH I90-014 | E6: =IF(G6>180.1,"ERROR",IF(G6>149.9,"4",IF(G6>101.9,"3",IF(G6>47.9,"2")))) -> 3 | F6: -U | G6: 102 | H6: x | I6: 24 | K6: EXIT 157
B7: EO-102 | C7: 0 | D7: OH I90-017(R), OH I90-018(M), OH I90-036 | E7: =IF(G7>180.1,"ERROR",IF(G7>149.9,"4",IF(G7>101.9,"3",IF(G7>47.9,"2")))) -> 3 | F7: -U | G7: 120 | H7: x | I7: 24 | K7: EXITS 159A
E8: 2 | F8: -U | G8: 84 | H8: x
E9: FALSE | F9: -U | H9: x
E10: FALSE | F10: -U | H10: x
H11: x
H12: x
H13: x
B14: TOTAL | C14: =SUM(C6:C13) -> 0

Sheet EO
B2: SIGN PANELS TYPE EO | M2: AA
E3: PANEL SIZE | K3: POSTS
B4: SIGN | C4: QTY | E4: SIZE (INCH) | I4: AREA (SQ FT) | J4: TOTAL
B5: NO | D5: LOCATION | J5: AREA | K5: NO | L5: SPACING | M5: LEGEND
J6: (SQ FT)
B7: EO-1 | C7: 0 | D7: OH I90-014 | E7: 108 | F7: x | G7: 30 | I7: =E7*G7/144 -> 22.5 | J7: =I7*C7 -> 0 | K7: =IF(E7>180.1,"ERROR",IF(E7>149.9,"4",IF(E7>101.9,"3",IF(E7>47.9,"2")))) -> 3 | L7: =IF(E7>180.1,"ERROR",IF(E7>173.9,"48",IF(E7>149.9,"42",IF(E7>143.9,"54",IF(E7>131.9,"48", IF(E7>113.9,"42", IF(E7>101.9,"36",IF(E7>89.9,"54",IF(E7>77.9,"48",IF(E7>71.9,"42",IF(E7>59.9,"36",IF(E7>47.9,"30",IF(E7<47.89,"ERROR"))))))))))))) -> 36 | M7: EXIT 154
B8: EO-2 | C8: 0 | D8: OH I90-017(R), OH I90-018(M) & OH I90-036 | E8: 108 | F8: x | G8: 30 | I8: 22.5 | J8: 0 | K8: 3 | L8: =IF(E8>180.1,"ERROR",IF(E8>173.9,"48",IF(E8>149.9,"42",IF(E8>143.9,"54",IF(E8>131.9,"48",IF(E8>113.9,"42",IF(E8>101.9,"36",IF(E8>89.9,"54",IF(E7>180.1,"ERROR",IF(E7>173.9,"48",IF(E7>149.9,"42",IF(E7>143.9,"54",IF(E7>131.9,"48",IF(E7>113.9,"42",IF(E7>101.9,"36",IF(E7>89.9,"54",IF(E8>77.9,"48",IF(E8>71.9,"42",IF(E8>59.9,"36",IF(E8>47.9,"30",IF(E8<47.89,"ERROR"))))))))))))))))))))) -> 36 | M8: EXIT 159A
B9: EO-3 | C9: 0 | D9: OH I90-017(M), OH I90-018(R) & OH I90-037(R) | E9: 108 | F9: x | G9: 30 | I9: 22.5 | J9: 0 | K9: 3 | L9: 36 | M9: EXIT 159B
E10: 108 | F10: x | I10: 0 | J10: 0 | K10: =IF(E10>180.1,"ERROR",IF(E10>149.9,"4",IF(E10>101.9,"3",IF(E10>47.9,"2")))) -> 3 | L10: =IF(E10>180.1,"ERROR",IF(E10>173.9,"48",IF(E10>149.9,"42",IF(E10>143.9,"54",IF(E10>131.9,"48", IF(E10>113.9,"42", IF(E10>101.9,"36",IF(E10>89.9,"54",IF(E10>77.9,"48",IF(E10>71.9,"42",IF(E10>59.9,"36",IF(E10>47.9,"30",IF(E10<47.89,"ERROR"))))))))))))) -> 36
E11: 108 | F11: x | I11: 0 | J11: 0 | K11: 3 | L11: =IF(E11>180.1,"ERROR",IF(E11>173.9,"48",IF(E11>149.9,"42",IF(E11>143.9,"54",IF(E11>131.9,"48", IF(E11>113.9,"42", IF(E11>101.9,"36",IF(E11>89.9,"54",IF(E11>77.9,"48",IF(E11>71.9,"42",IF(E11>59.9,"36",IF(E11>47.9,"30",IF(E11<47.89,"ERROR"))))))))))))) -> 36
E12: 108 | F12: x | I12: 0 | J12: 0 | K12: 3 | L12: 36
E13: 108 | F13: x | I13: 0 | J13: 0 | K13: 3 | L13: 36
E14: 108 | F14: x | I14: 0 | J14: 0 | K14: 3 | L14: 36
I15: TOTAL | J15: =SUM(J7:J14) -> 0
B17: SPECIFIC NOTES:
B19: GENERAL NOTES:
B20: ="1. SEE SHEET " & TEXT(TOC!$B$40, "0") & " FOR STRUCTURAL DETAIL." -> 1. SEE SHEET 94 FOR STRUCTURAL DETAIL.
B21: 2. POST SPACING MAY BE VARIED TO MISS MEMBERS OF OH SIGN STRUCTURES.
B22: ="3. SEE SHEETS " & TEXT(TOC!$B63,"0") & " TO " & TEXT(TOC!$B64,"0") & " FOR SIGN PANELS." -> 3. SEE SHEETS ST27 TO ST47 FOR SIGN PANELS.
Q25: =IF(J25>180.1,"ERROR",IF(J25>173.9,"48",IF(J25>149.9,"42",IF(J25>143.9,"54",IF(J25>131.9,"48", IF(J25>113.9,"42", IF(J25>101.9,"36",IF(J25>89.9,"54",IF(J25>77.9,"48",IF(J25>71.9,"42",IF(J25>59.9,"36",IF(J25>47.9,"30",IF(J25<47.89,"ERROR"))))))))))))) -> ERROR

Sheet EOOL
B2: SIGN PANEL OVERLAY TYPE EO | M2: ='SEQ-PSTAB'!B25 -> 0
B3: SIGN NO | E3: PANEL OVERLAY
C4: QTY | D4: LOCATION | E4: SIZE | I4: AREA | K4: TOTAL | M4: LEGEND
E5: INCH | I5: SQ FT | K5: SQ FT
B6: EO-1 | C6: 0 | D6: OH I694-037 | E6: 150 | F6: x | G6: 30 | I6: =(E6*G6)/144 -> 31.25 | K6: =I6*C6 -> 0 | M6: EXITS 52B&A
B7: EO-2 | C7: 0 | D7: OH I694-066(R), OH I694-101(R) | E7: 96 | F7: x | G7: 30 | I7: =(E7*G7)/144 -> 20 | K7: =I7*C7 -> 0 | M7: EXIT 48
F8: x
F9: x
F10: x
F11: x
F12: x
F13: x
F14: x
I15: TOTAL | K15: =SUM(K6:K14) -> 0

Sheet EO EXT PAN SECT
B1: EOEXTFI
B2: SIGN PANELS TYPE EO (EXTRUDED PANEL SECTIONS) | J2: SS
B3: SIGN NO | C3: QTY | D3: LOCATION | E3: PANEL | J3: REQUIRED PANEL SIZE (INCH)
E4: SIZE (INCH) | H4: AREA (SQ FT) | I4: TOTAL AREA (SQ FT)
B7: EA-201 | C7: 0 | D7: OH I94-0, OH I94-046, OH I94-056 | E7: 108 | F7: x | G7: 6 | H7: =E7*G7/144 -> 4.5 | I7: =C7*H7 -> 0 | J7: 108 x 30
B8: EO-202 | C8: 0 | D8: OH I94-052-94 OH I94-055, OH I94-488(R) | E8: 108 | F8: x | G8: 6 | H8: 4.5 | I8: 0 | J8: 108 x 30
D9: OH I94-489 OH I94-095(L)
B10: EO-203 | C10: 0 | D10: OH I94-097(L) | E10: 126 | F10: x | G10: 6 | H10: =E10*G10/144 -> 5.25 | I10: =C10*H10 -> 0 | J10: 126 x 30
B11: EO-204 | C11: 0 | D11: OH I94-488(L) OH I94-092 | E11: 126 | F11: x | G11: 6 | H11: =E11*G11/144 -> 5.25 | I11: 0 | J11: 126 x 30
D12: OH I94-094(R) OH I94-095(R) OH I94-572(L)
C13: 0 | E13: 0 | F13: x | G13: 0 | H13: =E13*G13/144 -> 0 | I13: 0 | J13: 108 x 30
C15: 0 | E15: 0 | F15: x | G15: 0 | H15: =E15*G15/144 -> 0 | I15: 0 | J15: 126 x 30
C17: 0 | E17: 0 | F17: x | G17: 0 | H17: =E17*G17/144 -> 0 | I17: 0 | J17: 126 x 30
B19: EO-208 | C19: 0 | E19: 126 | F19: x | G19: 6 | H19: =E19*G19/144 -> 5.25 | I19: =C19*H19 -> 0 | J19: 96 x 30
B20: TOTAL | I20: =SUM(I7:I19) -> 0

Sheet ESALINS
B2: SALVAGE & INSTALL SIGN TYPE EO | O2: ='SEQ-PSTAB'!B41 -> 0
B3: SIGN NO | C3: QTY | E3: PANEL SIZE | M3: POSTS | O3: LEGEND
D4: INSTALL LOCATION | E4: SALVAGE | I4: INSTALL | M4: NO. & TYPE | N4: SPACING | S4: DEFAULT VALUES
C5: EACH | E5: INCH | I5: INCH | S5: POST # | T5: POST TYPE
B6: EO-201 | C6: 0 | D6: OH I494-299(L) | E6: 96 | F6: x | G6: 24 | I6: 90 | J6: x | K6: 30 | M6: =Epostnumb(I6)&"-"&T6 -> 2-U | N6: =epostspace(I6) -> 54 | O6: EXIT 21 | S6: 3 | T6: U
B7: EO-202 | C7: 0 | D7: OH 494-299(R) OH I94-318(L) | E7: 96 | F7: x | G7: 24 | I7: 96 | J7: x | K7: 30 | M7: =Epostnumb(I7)&"-"&T7 -> 2-U | N7: =epostspace(I7) -> 54 | O7: EXIT 22 | S7: 3 | T7: U
B8: EO-203 | C8: 0 | D8: OH I494-317 OH I494-318(R) | E8: 96 | F8: x | G8: 24 | I8: 96 | J8: x | K8: 30 | M8: =Epostnumb(I8)&"-"&T8 -> 2-U | N8: =epostspace(I8) -> 54 | O8: EXIT 23 | S8: 3 | T8: U
B9: EO-204 | C9: 0 | D9: OH I494-101(R) OH I494-124 | E9: 96 | F9: x | G9: 24 | I9: 96 | J9: x | K9: 30 | M9: =Epostnumb(I9)&"-"&T9 -> 2-U | N9: =epostspace(I9) -> 54 | O9: EXIT 26 | S9: 3 | T9: U
B10: EO-205 | C10: 0 | E10: 96 | F10: x | G10: 24 | I10: 96 | J10: x | K10: 30 | M10: =Epostnumb(I10)&"-"&T10 -> 2-U | N10: =epostspace(I10) -> 54 | O10: EXIT 27 | S10: 3 | T10: U
B12: EO-206 | C12: 0 | E12: 114 | F12: x | G12: 24 | I12: 114 | J12: x | K12: 30 | M12: =Epostnumb(I12)&"-"&T12 -> 3-U | N12: =epostspace(I12) -> 42 | O12: EXIT 35A | S12: 3 | T12: U
B13: EO-207 | C13: 0 | E13: 114 | F13: x | G13: 24 | I13: 114 | J13: x | K13: 30 | M13: =Epostnumb(I13)&"-"&T13 -> 3-U | N13: =epostspace(I13) -> 42 | O13: EXIT 35B | S13: 3 | T13: U
B14: EO-208 | C14: 0 | E14: 114 | F14: x | G14: 24 | I14: 114 | J14: x | K14: 30 | M14: =Epostnumb(I14)&"-"&T14 -> 3-U | N14: 42 | O14: EXIT 35C | S14: 3 | T14: U
B16: EO-209 | C16: 0 | E16: 150 | F16: x | G16: 24 | I16: 150 | J16: x | K16: 30 | M16: =Epostnumb(I16)&"-"&T16 -> 4-U | N16: 42 | O16: EXITS 35C&B | S16: 3 | T16: U
B19: EO-210 | C19: 0 | E19: 96 | F19: x | G19: 24 | I19: 96 | J19: x | K19: 30 | M19: =Epostnumb(I19)&"-"&T19 -> 2-U | N19: 42 | O19: EXIT 36 | S19: 3 | T19: U
B22: EO-211 | C22: 0 | E22: 96 | F22: x | G22: 24 | I22: 96 | J22: x | K22: 30 | M22: =Epostnumb(I22)&"-"&T22 -> 2-U | N22: 42 | O22: EXIT 37 | S22: 3 | T22: U
B25: EO-212 | C25: 0 | E25: 114 | F25: x | G25: 24 | I25: 114 | J25: x | K25: 30 | M25: =Epostnumb(I25)&"-"&T25 -> 3-U | N25: 42 | O25: EXIT 38 | S25: 3 | T25: U
B27: EO-213 | C27: 0 | E27: 114 | F27: x | G27: 24 | I27: 114 | J27: x | K27: 30 | M27: =Epostnumb(I27)&"-"&T27 -> 3-U | N27: =epostspace(I27) -> 42 | O27: EXIT 39 | S27: 3 | T27: U
B28: EO-214 | C28: 0 | E28: 108 | F28: x | G28: 24 | I28: 108 | J28: x | K28: 30 | M28: =Epostnumb(I28)&"-"&T28 -> 3-U | N28: =epostspace(I28) -> 36 | O28: EXIT 41A | S28: 3 | T28: U
B29: EO-215 | C29: 0 | E29: 108 | F29: x | G29: 24 | I29: 108 | J29: x | K29: 30 | M29: =Epostnumb(I29)&"-"&T29 -> 3-U | N29: =epostspace(I29) -> 36 | O29: EXIT 41B | S29: 3 | T29: U
B30: EO-216 | C30: 0 | E30: 150 | F30: x | G30: 24 | I30: 150 | J30: x | K30: 30 | M30: =Epostnumb(I30)&"-"&T30 -> 4-U | N30: =epostspace(I30) -> 42 | O30: EXITS 41A&B | S30: 3 | T30: U
B31: EO-217 | C31: 0 | E31: 114 | F31: x | G31: 24 | I31: 114 | J31: x | K31: 30 | M31: =Epostnumb(I31)&"-"&T31 -> 3-U | N31: 42 | O31: EXIT 42A | S31: 3 | T31: U
B33: EO-218 | C33: 0 | E33: 114 | F33: x | G33: 24 | I33: 114 | J33: x | K33: 30 | M33: =Epostnumb(I33)&"-"&T33 -> 3-U | N33: =epostspace(I33) -> 42 | O33: EXIT 42B | S33: 3 | T33: U
B34: EO-219 | C34: 0 | E34: 114 | F34: x | G34: 24 | I34: 114 | J34: x | K34: 30 | M34: =Epostnumb(I34)&"-"&T34 -> 3-U | N34: 42 | O34: EXIT 43A | S34: 3 | T34: U
B36: EO-220 | C36: 0 | E36: 114 | F36: x | G36: 24 | I36: 114 | J36: x | K36: 30 | M36: =Epostnumb(I36)&"-"&T36 -> 3-U | N36: =epostspace(I36) -> 42 | O36: EXIT 43B | S36: 3 | T36: U
B37: EO-221 | C37: 0 | E37: 96 | F37: x | G37: 24 | I37: 96 | J37: x | K37: 30 | M37: =Epostnumb(I37)&"-"&T37 -> 2-U | N37: =epostspace(I37) -> 54 | O37: EXIT 45 | S37: 3 | T37: U
B38: TOTAL | C38: =SUM(C6:C37) -> 0
B40: GENERAL NOTES:
B41: 1. SEE SHEET XX FOR TYPE EO STRUCTURAL DETAIL.
B42: 2. TYPE EO POST SPACING MAY BE VARIED TO MISS MEMBERS OF OH SIGN STRUCTURES.

Sheet EO SAW
B3: SAW SIGN PANELS TYPE EO (1)
B4: SIGN NO | C4: LOCATION | D4: PANEL SIZE (INCH) | J4: LENGTH OF CUT (FT)
D5: EXISTING | G5: MODIFIED
B7: EO-204 | C7: BR 6850 | D7: 96 | E7: x | F7: 30 | G7: 78 | H7: x | I7: 30 | J7: 2.5
B9: SPECIFIC NOTE:
B10: (1) PAID FOR UNDER SIGN PANEL OVERLAY TYPE EO

Sheet OH REM
E2: REMOVE SIGN TYPE OH | J2: AA
E3: SIGN NO | F3: LOCATION | G3: TYPE | H3: POST TYPE | I3: SPAN | J3: REMARKS
E5: OH I35W-068 | G5: SIGN BRIDGE | H5: III-S | I5: 93'-0" | J5: SEE SPECIAL PROVISIONS
G6: CANTILEVER
G7: BR MNTD
G8: BR MNTD
G9: CANTILEVER
G10: SIGN BRIDGE
G11: SIGN BRIDGE - CANTILEVER
G12: BUTTERFLY CANTILEVER
E14: total | F14: =COUNTA(E5:E12) -> 1

Sheet OH SAL PN
B3: SALVAGE SIGN PANEL TYPE OH | G3: AA
B4: SIGN NO | C4: LOCATION | D4: PANEL SIZE (INCH) | E4: PANEL SIZE (INCH) | F4: PANEL SIZE (INCH) | G4: TOTAL PANELS
G6: EACH
B7: OH I90-046
B9: TOTAL | G9: =SUM(G7:G8) -> 0

Sheet OHREPOSPNL
B2: REPOSITION SIGN PANEL TYPE OH | P2: ='SEQ-PSTAB'!B160 -> 0 | S2: OH STRUCTURE REPOSITONED PANEL LOCATIONS
B3: SIGN NO | C3: LOCATION | D3: PANEL | H3: PANEL | L3: PANEL | P3: TOTAL PANELS | S3: SIGN NO | T3: LOCATION | U3: TYPE | V3: SPAN | W3: PANEL SIZES AND LOCATION | AD3: REMARKS
D4: SIZE | H4: SIZE | L4: SIZE | W4: E | X4: F x W | Y4: G | Z4: H x W | AA4: J | AB4: K x W | AC4: L
D5: INCH | H5: INCH | L5: INCH | P5: EACH | S5: OH MN55-025 FWBT | T5: 1590+00 NB | U5: SPAN | V5: 42'-0' | W5: 60" | X5: 120" | Y5: 36" | Z5: 144" | AA5: 48" | AB5: 96" | AC5: 54"
B6: OH I494-043 | C6: 695+35 NB | D6: 84 | E6: x | F6: 102 | H6: 132 | I6: x | J6: 126 | L6: 162 | M6: x | N6: 108 | P6: 3
B7: OH I694-512 | C7: 705+60 SB | D7: 168 | E7: x | F7: 84 | P7: 1
N11: TOTAL | P11: =SUM(P6:P10) -> 4

Sheet OH BTQ
B2: TABULATION OF OVERHEAD SIGN STRUCTURE QUANTITIES (2) | J2: AA
B3: ITEM | C3: UNIT | D3: OH SIGN NO. | J3: TOTAL QUANTITIES
D4: OH I90-056 | E4: OH I90-057 | F4: OH I90-058 | G4: OH I90-059 | H4: OH I90-060 | I4: OH I90-061
D5: QTY | E5: QTY | F5: QTY | G5: QTY | H5: QTY | I5: QTY
B6: STRUCT. STEEL POSTS | C6: POUND | D6: 0 | E6: 0 | F6: 0 | G6: 0 | H6: 0 | I6: 0 | J6: =SUM(D6+E6+F6+G6+H6+I6) -> 0
B7: STRUCT. STEEL TRUSSES | C7: POUND | D7: 0 | E7: 0 | F7: 0 | G7: 0 | H7: 0 | I7: 0 | J7: 0
B8: STRUCT. STEEL WALKWAY SUPPORTS | C8: POUND | D8: 0 | E8: 0 | F8: 0 | G8: 0 | H8: 0 | I8: 0 | J8: 0
B9: STRUCT. STEEL WALKWAY GRATING | C9: POUND | D9: 0 | E9: 0 | F9: 0 | G9: 0 | H9: 0 | I9: 0 | J9: 0
B10: STRUCT. STEEL PANEL MTG. POSTS | C10: POUND | D10: 0 | E10: 0 | F10: 0 | G10: 0 | H10: 0 | I10: 0 | J10: 0
A11: (3) | B11: CONCRETE FOOTINGS (SPREAD) | C11: CU YD | D11: 0 | E11: 0 | F11: 0 | G11: 0 | H11: 0 | I11: 0 | J11: 0
A12: (3) | B12: CONCRETE FOOTINGS (SHAFT) | C12: CU YD
B15: SPECIFIC NOTES: | F15: GENERAL NOTES:
B16: (1) CENTER LINE ELEVATION IS FIELD ELEVATION. | F16: 1. THE SUBSCRIPTION E ON THE POST TYPE DENOTES THE POST WHICH HAS
B17: (2) BASED ON TABULATED ELEVATIONS AND DIMENSIONS. | F17: THE HAND HOLE AND PROVISIONS FOR GROUNDING, I.E.POST TYPE 3E.
B18: REVISE AS NECESSARY USING QUANTITY TABLES ON SHEET XX | F18: 2. TABULATED ELEVATIONS AND DIMENSIONS ARE APPROXIMATE ONLY.
B19: (3) SEE DIVISION ST SPECIAL PROVISIONS FOR FOUNDATION SOILS INFORMATION. | F19: FABRICATION DEPENDENT ON THESE ELEVATIONS AND DIMENSIONS SHALL
B20: (4) DRILLED SHAFT FOOTING. | F20: NOT BE STARTED UNTIL THE ENGINEER HAS MADE FINAL DETERMINATION
F21: OF THEM IN THE FIELD.
F22: 3. LEFT AND RIGHT DESIGNATIONS ARE SHOWN IN DIRECTION OF
F23: TRAFFIC FLOW. WHEN TWO DIRECTIONS OF TRAFFIC ARE SPANNED THE
F24: DESIGNATIONS ARE SHOWN LOOKING UP STATIONING.
F25: 4. SEE SHEETS XX-XX FOR DETAILS.
F26: 5. SEE SHEET XXX-XX FOR CROSS SECTIONS.
A29: * THIS chart is ALWAYS used together with "OVERHEAD SIGN STRUCTURE" or "SALVAGE AND INSTALL OH SIGN STRUCTURE" chart
C30: on the OH TAB sheet with the BRIDGE TYPE figure drawings
B33: The SPECIFIC NOTES are COMBINED on the two charts.
B36: NOTES (1) (4) are on the OVERHEAD SIGN STRUCTURE chart | G36: (SEE SAMPLE PLAN)
B38: NOTES (2) (3) are on the TABULATION OF OVERHEAD SIGN STRUCTURE QUANTITIES chart

Sheet OH B
B2: OVERHEAD SIGN STRUCTURES
B3: SIGN NO. | C3: STATION | D3: BRIDGE TYPE | E3: TRUSS TYPE | F3: SPAN LENGTHS | J3: LOW STEEL ELEVATION (1) | K3: LEFT POST | N3: CENTER POST | Q3: RIGHT POST
F4: LEFT CANT | G4: RIGHT CANT | H4: SPAN OR LEFT SPAN | I4: RIGHT SPAN | K4: ELEVATION (1) | M4: TYPE | N4: ELEVATION (1) | P4: TYPE | Q4: ELEVATION (1) | S4: TYPE
K6: A | L6: B | N6: A | O6: B | Q6: A | R6: B
B7: OH I90-056
B15: * THIS CHART is ALWAYS used along with "TABULATION OF OVERHEAD SIGN STRUCTURE QUANTITIES" chart on the OH tabulation sheet with the Bridge Type figure drawings
B17: The SPECIFIC NOTES are COMBINED on the two charts.
B20: NOTES (1) (4) are on the OVERHEAD SIGN STRUCTURE chart
B22: NOTES (2) (3) are on the TABULATION OF OVERHEAD SIGN STRUCTURE QUANTITIES chart

Sheet S & I_OH B
B2: SALVAGE AND INSTALL OVERHEAD SIGN STRUCTURES
B3: INPLACE SIGN NO | C3: INPLACE STATION | D3: NEW SIGN NO. | E3: NEW STATION | F3: BRIDGE TYPE | G3: TRUSS TYPE | H3: SPAN LENGTHS | L3: LOW STEEL ELEVATION (1) | M3: LEFT POST | P3: CENTER POST | S3: RIGHT POST
H4: LEFT CANT | I4: RIGHT CANT | J4: SPAN OR LEFT SPAN | K4: RIGHT SPAN | M4: ELEVATION (1) | O4: TYPE | P4: ELEVATION (1) | R4: TYPE | S4: ELEVATION (1) | U4: TYPE
M6: A | N6: B | P6: A | Q6: B | S6: A | T6: B
B7: OH I90-056 | D7: OH I90-347
D13: SPECIFIC NOTES:
D14: (1) CENTER LINE ELEVATION= 100.00
D15: (2) BASED ON TABULATED ELEVATIONS AND DIMENSIONS.
D16: REVISE IF NECESSARY USING QUANTITY TABLES ON SHEET XX
D17: (3) SEE SHEET XX
D18: (4) DRILLED SHAFT FOOTING.
D29: * THIS CHART is ALWAYS used along with "TABULATION OF OVERHEAD SIGN STRUCTURE QUANTITIES" chart on the OH tabulation sheet with the Bridge Type figure drawings
D31: The SPECIFIC NOTES are COMBINED on the two charts.
D34: NOTES (1) (4) are on the SALVAGE AND INSTALL OVERHEAD SIGN STRUCTURE chart
D36: NOTES (2) (3) are on the TABULATION OF OVERHEAD SIGN STRUCTURE QUANTITIES chart

Sheet OH OL
B3: SIGN PANEL OVERLAY TYPE OH | P3: GG
B4: SIGN NO | C4: LOCATION | D4: PANEL OVERLAY | H4: PANEL OVERLAY | L4: PANEL OVERLAY | P4: TOTAL AREA (SQ FT)
D5: SIZE (INCH) | G5: AREA (SQ FT) | H5: SIZE (INCH) | K5: AREA (SQ FT) | L5: SIZE (INCH) | O5: AREA (SQ FT)
B7: OH I35W-314 | C7: 39+00 NB | D7: 0 | E7: x | F7: 114 | G7: =D7*F7/144 -> 0 | H7: 0 | I7: x | J7: 120 | K7: =H7*J7/144 -> 0 | L7: 0 | M7: x | N7: 90 | O7: =L7*N7/144 -> 0 | P7: =SUM(G7+K7+O7) -> 0
B8: OH I35W-315 | C8: 40+80 NB | D8: 0 | E8: x | F8: 120 | G8: =D8*F8/144 -> 0 | P8: =SUM(G8+K8+O8) -> 0
B17: TOTAL | P17: =SUM(P7:P16) -> 0
B20: GENERAL NOTE:
B21: ="1. SEE SHEETS " & TEXT(TOC!$B69,"0") & " TO " & TEXT(TOC!$B70,"0") & " FOR SIGN PANELS." -> 1. SEE SHEETS ST70 TO ST71 FOR SIGN PANELS.

Sheet OH INSPN
B3: INSTALL SIGN PANEL TYPE OH | G3: AA
B4: SIGN NO | C4: LOCATION | D4: PANEL SIZE (INCH) | E4: PANEL SIZE (INCH) | F4: PANEL SIZE (INCH) | G4: TOTAL PANELS
G6: EACH
B7: OH MN36-084 | C7: 667+00 C D ROAD | D7: 114 x 126 | E7: 126 x 126 | G7: 0
B9: TOTAL | G9: =SUM(G7:G8) -> 0

Sheet SIGN PANELS TYPE OH
B3: SIGN PANELS TYPE OH | P3: AA
B4: SIGN NO | C4: LOCATION | D4: PANEL | H4: PANEL | L4: PANEL | P4: TOTAL AREA (SQ FT)
D5: SIZE (INCH) | G5: AREA (SQ FT) | H5: SIZE (INCH) | K5: AREA (SQ FT) | L5: SIZE (INCH) | O5: AREA (SQ FT)
B7: OH I694-314 | C7: 39+00 NB | D7: 0 | E7: x | F7: 114 | G7: =D7*F7/144 -> 0 | H7: 0 | I7: x | J7: 120 | K7: =H7*J7/144 -> 0 | L7: 0 | M7: x | N7: 90 | O7: =L7*N7/144 -> 0 | P7: =SUM(G7+K7+O7) -> 0
B8: OH I694-315 | C8: 40+80 NB | D8: 0 | E8: x | F8: 120 | G8: =D8*F8/144 -> 0 | P8: =SUM(G8+K8+O8) -> 0
B17: TOTAL | P17: =SUM(P7:P16) -> 0
B20: GENERAL NOTE:
B21: ="1. SEE SHEETS " & TEXT(TOC!$B66,"0") & " TO " & TEXT(TOC!$B67,"0") & " FOR SIGN PANELS." -> 1. SEE SHEETS ST67 TO ST68 FOR SIGN PANELS.
B23: * THIS QUANTITY GETS COMBINED WITH "SIGN PANEL TYPE OH (EXTRUDED PANEL)" QUANTITY ON THE SEQ(STATEMENT OF EST. QUANTITIES)

Sheet OH ID
B2: OH SIGN IDENTIFICATION PLATE | E2: KO
B3: SIGN NO | C3: QTY | D3: LOCATION | E3: IDENTIFICATION PLATE NO
C4: EACH
B5: OH MN610-045 | C5: 0 | D5: 39+00 NB | E5: 610-045
B6: OH MN280-035 | C6: 0 | D6: 40+80 NB | E6: 280-035
B14: TOTAL | C14: =SUM(C5:C13) -> 0
B17: GENERAL NOTES:
B18: 1. SEE MNDOT STANDARD SIGNS AND MARKINGS MANUAL FOR OH SIGN IDENTIFICATION PLATE (X5-1)
B19: 2. SEE SHEET ____ FOR MOUNTING DETAILS.

Sheet OH EXT REM
B1: OHEXTREM
B2: REMOVE EXTRUDED PANEL SECTIONS TYPE OH (1) | E2: XX
B3: SIGN NO | C3: LOCATION | D3: PANEL SIZE (INCH)
D4: REMOVE | E4: MODIFIED
B5: OH I35W-64 (R) | C5: 35+00 SB | D5: 162 x 24 | E5: 162 x 90
B6: OH I35W-314 (L) | C6: 39+00 NB | D6: 204 x 24 | E6: 204 x 90
B17: (1) INCLUDED IN SIGN PANEL OVERLAY TYPE OH

Sheet OH REMPAN
B2: REMOVE SIGN PANEL TYPE OH | G2: AA
B3: SIGN NO | C3: LOCATION | D3: PANEL SIZE (INCH) | E3: PANEL SIZE (INCH) | F3: PANEL SIZE (INCH) | G3: TOTAL PANELS
G5: EACH
B6: OH I494-043 | C6: 695+35 NB | D6: 84 x 102 | E6: 132 x 126 | F6: 162 x 108 | G6: 3
B7: OH I494-045 | C7: 705+60 SB | D7: 168 x 84 | G7: 1
F14: TOTAL | G14: =SUM(G6:G13) -> 4

Sheet OH SAW
B3: SAW SIGN PANELS TYPE OH (1)
B4: SIGN NO | C4: LOCATION | D4: PANEL SIZE (INCH) | J4: LENGTH OF CUT (FT)
D5: EXISTING | G5: MODIFIED
B7: OH US61-007 | D7: 156 | E7: x | F7: 96 | G7: 132 | H7: x | I7: 96 | J7: =(I7)/12 -> 8
E8: x | H8: x | J8: =(I8)/12 -> 0
B10: SPECIFIC NOTE:
B11: (1) PAID FOR UNDER SIGN PANEL OVERLAY TYPE OH

Sheet OH PMP
B2: PANEL MOUNTING POSTS (S4x7.7) | G2: AA
B3: SIGN NO | C3: TRUSS DEPTH (INCH) | D3: CHORD ANGLES (INCH) | E3: NO. OF POSTS | F3: LENGTH APPROX (INCH) | G3: WEIGHT (POUND)
B6: OH US7-015 | C6: 72 | D6: 6 x 6 x 1/2 | E6: 2 | F6: 88 | G6: 148
F8: TOTAL | G8: =SUM(G6:G7) -> 148

Sheet OH PMP MOD
B3: MODIFY POST (1) (2)
B4: SIGN NO | C4: PANEL MOUNTING POSTS
C5: NO. | D5: SIZE | E5: EXTEND APPROX. (INCH) | F5: SHORTEN APPROX. (INCH)
B8: OH I35E-139 (L) | C8: 2 | D8: S4x7.7 | E8: 18
B9: OH I35E-139 (R) | C9: 3 | D9: S4x7.7 | E9: 18
B10: OH I35E-238 (R) | C10: 2 | D10: S4x7.7 | E10: 12
B12: SPECIFIC NOTES:
B13: (1) SEE SHEET XX FOR DETAIL.
B14: (2) INCLUDED IN SIGN PANEL OVERLAY TYPE OH.
C21: * Panel Mounting Post SIZES (FROM NOTE 3 ON ST-10)
C22: PANEL HEIGHT DETERMINES PMP SIZE.
C23: SIZE | D23: S4x7.7 | E23: IF PANEL HEIGHT IS 11'-0" OR LESS
C24: SIZE | D24: W6x12 | E24: IF PANEL HEIGHT IS 11'-6" OR GREATER

Sheet BMST
B2: STRUCT. STEEL TRUSSES TYPE OH BR. MTD (1) | D2: AA
B3: SIGN NO | C3: BRIDGE NO | D3: POUND
B4: OH MN22-014 | C4: 52007 | D4: 0
B9: TOTAL | D9: =SUM(D4:D8) -> 0
B12: SPECIFIC NOTES:
B13: (1) INCLUDES F & I OH SIGN IDENTIFICATION PLATE (X5-1)

Sheet SIGN PANELS TYPE OH (EXT PAN )
B1: OHEXTFI
B2: SIGN PANELS TYPE OH (EXTRUDED PANEL SECTIONS) | H2: AA
B3: SIGN NO | C3: LOCATION | D3: EXTRUDED PANEL SECTIONS | H3: REQUIRED PANEL SIZE (INCH)
D5: SIZE (INCH) | G5: AREA (SQ FT) | J5: used for adding extruded panel sections to an OH sign panel.
B7: OH I94-100 (L) | C7: EB TH 94 STA 228+40 | D7: 0 | E7: x | F7: 6 | G7: =D7*F7/144 -> 0 | H7: 144 x 102
B8: TOTAL | G8: =SUM(G7:G7) -> 0
B15: * THIS QUANTITY GETS COMBINED WITH "SIGN PANEL TYPE OH" QUANTITY ON THE SEQ(STATEMENT OF EST. QUANTITIES)

Sheet REMOVE EXT PANEL SECT
B1: OHEXTFI
B2: REMOVE (EXTRUDED PANEL SECTIONS)(1) | H2: TAA
B3: SIGN NO | C3: LOCATION | D3: EXTRUDED PANEL SECTIONS | H3: REQUIRED PANEL SIZE (INCH)
D5: SIZE (INCH) | G5: AREA (SQ FT)
B7: OH I94-468(R) | C7: EB TH 94 STA 95+00 | D7: 0 | E7: x | F7: 12 | G7: =D7*F7/144 -> 0 | H7: 150 x 96
B8: TOTAL | G8: =SUM(G7) -> 0
B10: (1) INCLUDED IN SIGN PANEL OVERLAY TYPE OH

Sheet OH REM FOOT
B1: OHREMFTG
B2: REMOVE SIGN FOOTING - TYPE OH | D2: AA
B3: SIGN NO | C3: LOCATION | D3: FOOTING DEPTH (FT)
B5: OH MN100-053
B15: TOTAL | C15: =COUNTA(B5:B10) -> 1

Sheet OH SGN SUP CANT
B3: CANTILEVER SIGN SUPPORT | F3: STZ
B4: SIGN NO | C4: LOCATION | D4: SPAN | E4: PANEL | F4: POST
E5: ELEV. A | F5: ELEV. B
B6: OH MN65-024 | C6: 208+85 NB | D6: 30'-0" | E6: 117.46 | F6: 101.55
C7: 208+85 NB | D7: 13'-0" | E7: 117.11 | F7: 100.39
A14: TOTAL | B14: =COUNTA(B6:B11) -> 1

Sheet OH SIGN SUP BRIDGE
B1: OHSSSB
B2: SIGN BRIDGE SIGN SUPPORT | G2: PIL
B3: SIGN NO | C3: LOCATION | D3: SPAN | E3: PANEL | F3: LEFT POST | G3: RIGHT POST
E5: Elev A | F5: Elev B | G5: Elev B
B6: OH MN47-008 | C6: 1590+00 NB | D6: 67'-0" | E6: 117.33 | F6: 98.5 | G6: 99.5
B18: TOTAL | C18: =COUNTA(B6:B13) -> 1

Sheet OH REM WKWY
B2: REMOVE SIGN WALKWAY (1)(2) | E2: AA
B3: SIGN NO | C3: LOCATION | D3: LENGTH (FT) | E3: NUMBER OF FIXTURES
B5: OHI 35E-164
C8: TOTAL | D8: =SUM(D5:D7) -> 0
B10: SPECIFIC NOTES:
B11: (1) INCLUDES SIGN LIGHTING SYSTEM
B12: (2) REMOVE FEED POINT IDENTIFICATION PLATE NUMBER.

Sheet OH REM LT SYS
B2: REMOVE SIGN LIGHTING SYSTEM | G2: AA
B3: SIGN NO | C3: OH DESIGN | D3: FIXTURES | F3: SOURCE OF POWER VOLTAGE | G3: FEED POINT ID PLATE NO
D5: 125 W | E5: 250 W
B6: OH I35W-025 | C6: BR # | E6: 4 | F6: 240/480 | G6: N2L/P
B15: TOTAL | C15: =COUNTA(B6:B12) -> 1

Sheet safety cable
B2: SAFETY CABLE | E2: ='SEQ-PSTAB'!B148 -> 0
B3: SIGN NO | C3: LOCATION | D3: DESIGN | E3: LENGTH
E4: FEET
B5: OH MN101-016 | C5: 1079+80 WB | D5: BR MTD | E5: 33
B6: OH MN101-024 | C6: 21+50 LOOP B | D6: B | E6: 33
B7: OH MN101-037 | C7: 9+00 LEG A | D7: A | E7: 30
D8: CANT
D15: TOTAL | E15: =SUM(E5:E14) -> 96

Sheet REMOVE BRIDGE MTD OH LIGHT SYST
B2: REMOVE SIGN LIGHTING SYSTEM (1) | E2: TQ
B3: SIGN NO | C3: LOCATION | D3: TYPE | E3: NUMBER OF FIXTURES
B5: OH I94-458 | C5: BR 62878 | D5: BRIDGE MOUNTED | E5: 4
B6: OH I94-459 | C6: BR 62878 | D6: BRIDGE MOUNTED | E6: 4
B7: OH I94-459 | C7: BR 62878 | D7: BRIDGE MOUNTED | E7: 3
B8: TOTAL (EACH) | C8: 3
B10: SPECIFIC NOTES:
B12: (1) REMOVE FEED POINT IDENTIFICATION NUMBER.

Sheet SIGN CODES
A1: CODE NO | B1: PANEL LEGEND | C1: NOTES
A2: D9-2AL | B2: HOSPITAL TRAILBLAZER LEFT
A3: D9-2AR | B3: HOSPITAL TRAILBLAZER RIGHT
A4: D9-2AT | B4: HOSPITAL TRAILBLAZER THRU
A5: D9-2BL | B5: HOSPITAL LEFT
A6: D9-2BR | B6: HOSPITAL RIGHT
A7: E10-10L | B7: DIESEL LEFT
A8: E10-10LR | B8: DIESEL LEFT AND RIGHT
A9: E10-10R | B9: DIESEL RIGHT
A10: E10-10T | B10: DIESEL THRU
A11: E10-11L | B11: LP-GAS LEFT
A12: E10-11LR | B12: LP-GAS LEFT AND RIGHT
A13: E10-11R | B13: LP-GAS RIGHT
A14: E10-11T | B14: LP-GAS THRU
A15: E10-12L | B15: E85 LEFT
A16: E10-12LR | B16: E85 LEFT AND RIGHT
A17: E10-12R | B17: E85 RIGHT
A18: E10-12T | B18: E85 THRU
A19: E10-4L | B19: HOSPITAL LEFT
A20: E10-4R | B20: HOSPITAL RIGHT
A21: E10-4T | B21: HOSPITAL THRU
A22: E10-5L | B22: GAS LEFT
A23: E10-5LR | B23: GAS LEFT AND RIGHT
A24: E10-5R | B24: GAS RIGHT
A25: E10-5T | B25: GAS THRU
A26: E10-6L | B26: FOOD LEFT
A27: E10-6LR | B27: FOOD LEFT AND RIGHT
A28: E10-6R | B28: FOOD RIGHT
A29: E10-6T | B29: FOOD THRU
A30: E10-7L | B30: LODGING LEFT
A31: E10-7LR | B31: LODGING LEFT AND RIGHT
A32: E10-7R | B32: LODGING RIGHT
A33: E10-7T | B33: LODGING THRU
A34: E1-6 | B34: FREEWAY ENTRANCE
A35: E3-X1 | B35: HOSPITAL
A36: M1-1 | B36: INTERSTATE XX
A37: M1-10A | B37: EISENHOWER INTERSTATE SYSTEM
A38: M1-2 | B38: INTERSTATE XX BUSINESS LOOP
A39: M1-3 | B39: INTERSTATE XX BUSINESS SPUR
A40: M1-4 | B40: US XX
A41: M1-4a | B41: OVERLAY USE ONLY
A42: M1-4AB | B42: OVERLAY USE ONLY
A43: M1-4B | B43: US XX BUSINESS
A44: M1-5a | B44: MINNESOTA HWY XX
A45: M1-5AB | B45: MINNESOTA HWY XX BUSINESS
A46: M1-5B | B46: OVERLAY USE ONLY
A47: M1-5BB | B47: OVERLAY USE ONLY
A48: M1-6 | B48: XX COUNTY XX
A49: M1-6A | B49: OVERLAY USE ONLY
A50: M1-X1 | B50: GREAT RIVER ROAD
A51: M1-X1P | B51: NATIONAL ROUTE
A52: M1-X2 | B52: HIAWATHA PIONEER TR
A53: M1-X3 | B53: TOWNSHIP XX
A54: M1-X4 | B54: XX COUNTY XX
A55: M1-X4A | B55: OVERLAY USE ONLY
A56: M2-1 | B56: JCT (WHITE)
A57: M2-1a | B57: JCT (BLUE)
A58: M2-X1 | B58: BEGIN (WHITE)
A59: M2-X1A | B59: BEGIN (BLUE)
A60: M3-1 | B60: NORTH (WHITE)
A61: M3-1a | B61: NORTH (BLUE)
A62: M3-2 | B62: EAST (WHITE)
A63: M3-2a | B63: EAST (BLUE)
A64: M3-3 | B64: SOUTH (WHITE)
A65: M3-3a | B65: SOUTH (BLUE)
A66: M3-4 | B66: WEST (WHITE)
A67: M3-4a | B67: WEST (BLUE)
A68: M4-1 | B68: ALTERNATE (WHITE)
A69: M4-1A | B69: ALT (WHITE)
A70: M4-2A | B70: BYPASS (WHITE)
A71: M4-3 | B71: BUSINESS (WHITE)
A72: M4-4 | B72: TRUCK (WHITE)
A73: M4-5 | B73: TO (WHITE)
A74: M4-5a | B74: TO (BLUE)
A75: M4-6 | B75: END (WHITE)
A76: M4-6A | B76: END (BLUE)
A77: M4-7 | B77: TEMPORARY (WHITE)
A78: M4-X1 | B78: OLD (WHITE)
A79: M4-X1A | B79: OLD (BLUE)
A80: M5-1AL | B80: ADVANCE TURN LEFT (BLUE)
A81: M5-1AR | B81: ADVANCE TURN RIGHT (BLUE)
A82: M5-1L | B82: ADVANCE TURN LEFT (WHITE)
A83: M5-1R | B83: ADVANCE TURN RIGHT (WHITE)
A84: M5-2AL | B84: ADVANCE TURN 45° LEFT (BLUE)
A85: M5-2AR | B85: ADVANCE TURN 45° RIGHT (BLUE)
A86: M5-2L | B86: ADVANCE TURN 45° LEFT (WHITE)
A87: M5-2R | B87: ADVANCE TURN 45° RIGHT (WHITE)
A88: M5-3 | B88: CURVED STEM (WHITE)
A89: M5-3A | B89: CURVED STEM (BLUE)
A90: M6-1 | B90: ARROW (WHITE)
A91: M6-1a | B91: ARROW (BLUE)
A92: M6-1aL | B92: ARROW LEFT (BLUE)
A93: M6-1aR | B93: ARROW RIGHT (BLUE)
A94: M6-1L | B94: ARROW LEFT (WHITE)
A95: M6-1R | B95: ARROW RIGHT (WHITE)
A96: M6-2AL | B96: ARROW LEFT (BLUE)
A97: M6-2AR | B97: ARROW RIGHT (BLUE)
A98: M6-2L | B98: ARROW LEFT (WHITE)
A99: M6-2R | B99: ARROW RIGHT (WHITE)
A100: M6-3 | B100: ARROW UP (WHITE)
A101: M6-3A | B101: ARROW UP (BLUE)
A102: M6-4 | B102: DOUBLE ARROW (WHITE)
A103: M6-4A | B103: DOUBLE ARROW (BLUE)
A104: M6-5AL | B104: DOUBLE ARROW 45° LEFT (BLUE)
A105: M6-5AR | B105: DOUBLE ARROW 45° RIGHT (BLUE)
A106: M6-5L | B106: DOUBLE ARROW 45° LEFT (WHITE)
A107: M6-5R | B107: DOUBLE ARROW 45° RIGHT (WHITE)
A108: M6-6AL | B108: ARROW UP LEFT (BLUE)
A109: M6-6AR | B109: ARROW UP RIGHT (BLUE)
A110: M6-6L | B110: ARROW UP LEFT (WHITE)
A111: M6-6R | B111: ARROW UP RIGHT (WHITE)
A112: M6-7AL | B112: ARROW UP 45° LEFT (BLUE)
A113: M6-7AR | B113: ARROW UP 45° RIGHT (BLUE)
A114: M6-7L | B114: ARROW UP 45° LEFT (WHITE)
A115: M6-7R | B115: ARROW UP 45° RIGHT (WHITE)
A116: M6-8AL | B116: ADVANCE ARROW UP LEFT (WHITE)
A117: M6-8AR | B117: ADVANCE ARROW UP RIGHT (WHITE)
A118: M6-8BL | B118: ADVANCE ARROW UP LEFT (BLUE)
A119: M6-8BR | B119: ADVANCE ARROW UP RIGHT (BLUE)
A120: R10-10L | B120: LEFT TURN SIGNAL
A121: R10-10R | B121: RIGHT TURN SIGNAL
A122: R10-11B | B122: NO TURN ON RED
A123: R10-12 | B123: LEFT TURN YIELD ON GREEN BALL
A124: R10-5 | B124: LEFT ON GREEN ARROW ONLY
A125: R10-6L | B125: WAIT/STOP HERE ON RED LEFT
A126: R10-6R | B126: STOP HERE ON RED
A127: R10-6R | B127: WAIT/STOP HERE ON RED RIGHT
A128: R10-7 | B128: DO NOT BLOCK INTERSECTION
A129: R10-7A | B129: DO NOT BLOCK CROSSWALK
A130: R10-X10 | B130: HOV LANE
A131: R10-X11 | B131: HOV LANE
A132: R10-X12 | B132: LEFT TURN YIELD ON FLASHING YELLOW ARROW
A133: R10-X6 | B133: 1 CAR ON GREEN
A134: R10-X7 | B134: FORM TWO LANES
A135: R1-1 | B135: STOP
A136: R11-1 | B136: KEEP OFF MEDIAN
A137: R1-2 | B137: YIELD
A138: R12-1A | B138: BRIDGE WEIGHT LIMIT XX TONS
A139: R12-2 | B139: AXLE WEIGHT LIMIT XX TONS
A140: R12-5 | B140: WEIGHT LIMIT XXT, XXT, XXT
A141: R1-2AP | B141: TO ONCOMING TRAFFIC PLAQUE
A142: R1-3P | B142: ALL WAY PLAQUE
A143: R14-1 | B143: TRUCK ROUTE
A144: R15-3P | B144: EXEMPT PLAQUE
A145: R1-5B | B145: STOP HERE FOR PED SYMBOL
A146: R1-5C | B146: STOP HERE FOR PEDESTRIANS
A147: R1-6B | B147: STATE LAW STOP FOR PED W/I X-WALK
A148: R16-X11 | B148: STATE LAW SEAT BELT
A149: R16-X12 | B149: FASTENED?
A150: R16-X13 | B150: VEHICLE NOISE LAWS ENFORCED
A151: R16-X15 | B151: STATE LAW MOVE OVER
A152: R16-X16 | B152: DO NOT CROSS DOUBLE WHITE LINE
A153: R16-X33 | B153: CHECK YOUR TURN SIGNAL
A154: R16-X4 | B154: EMERGENCY STOPPING ONLY
A155: R16-X6 | B155: SIGNAL YOUR TURN
A156: R16-X7L | B156: LEFT LANE MUST EXIT
A157: R16-X7R | B157: RIGHT LANE MUST EXIT
A158: R16-X9 | B158: STATE LAW UNLAWFUL TO PASS ON SHOULDER
A159: R1-X1 | B159: STOP FOR PED IN CROSSWALK
A160: R1-X2 | B160: CROSS TRAFFIC DOES NOT STOP
A161: R1-X3 | B161: TAKE TURNS
A162: R1-X4 | B162: LOOK BOTH WAYS
A163: R2-1 | B163: SPEED LIMIT XX
A164: R2-3P | B164: NIGHT SPEED XX
A165: R2-4 | B165: MINIMUM SPEED XX
A166: R2-4B | B166: SPEED LIMIT XX MINIMUM XX
A167: R2-X5 | B167: BRIDGE SPEED LIMIT XX
A168: R3-1 | B168: NO RIGHT TURN
A169: R3-17 | B169: BIKE LANE
A170: R3-17A | B170: AHEAD PLAQUE
A171: R3-17B | B171: END PLAQUE
A172: R3-18 | B172: NO LEFT NO U-TURN
A173: R3-2 | B173: NO LEFT TURN
A174: R3-3 | B174: NO TURNS
A175: R3-30AA | B175: L-R
A176: R3-30AB | B176: L-L
A177: R3-30ABBA | B177: L-L-R-R
A178: R3-30ABC | B178: L-L-T
A179: R3-30ABCA | B179: L-L-T-R
A180: R3-30ABD | B180: L-L-TR
A181: R3-30ABEA | B181: L-L-TR-R
A182: R3-30ABELA | B182: L-L-LT-R
A183: R3-30ABLA | B183: L-L-R
A184: R3-30ABRA | B184: L-R-R
A185: R3-30AC | B185: L-T
A186: R3-30ACA | B186: L-T-R
A187: R3-30ACCA | B187: L-T-T-R
A188: R3-30ACD | B188: L-T-TR
A189: R3-30AD | B189: L-TR
A190: R3-30AE | B190: L-LT
A191: R3-30AEBA | B191: L-LT-R-R
A192: R3-30AEBUS | B192: L-LT BUSES ONLY
A193: R3-30AEC | B193: L-LT-T
A194: R3-30AECA | B194: L-LT-T-R
A195: R3-30AED | B195: L-LT-TR
A196: R3-30AELA | B196: L-LT-R
A197: R3-30AELABUS | B197: L-LT BUSES ONLY-R
A198: R3-30AERA | B198: L-TR-R
A199: R3-30AF | B199: L-LR
A200: R3-30AG | B200: L-LTR
... 235 more rows

Sheet SEQ-4Copy
B5: =IF('SEQ-PSTAB'!F1<>"",'SEQ-PSTAB'!G1,IF('SEQ-PSTAB'!F2<>"",'SEQ-PSTAB'!G2,'SEQ-PSTAB'!G3)) -> PERMANENT SIGNING TABULATION | H5: X
C6: SHEET NO | H6: TOTAL
B7: TAB | D7: ITEM NO | F7: ITEM | G7: UNIT | H7: ESTIMATED
H8: QUANTITIES
J9: x
J10: x

Sheet OLD DELIN-retired
B2: DELINEATORS & MARKERS | E2: ='SEQ-PSTAB'!#REF! -> 
B3: CODE NO | C3: QTY | D3: LOCATION
C4: EACH
A5: (1) | B5: WHITE X4-6 | C5: 1 | D5: EXIT NOSE
A6: (1) | B6: YELLOW X4-6 | C6: 1 | D6: EXIT NOSE
A7: (1) | B7: OBJECT MARKER X4-2 | C7: 1 | D7: EXIT NOSE
A8: (1) | B8: OBJECT MARKER X4-2 | C8: 1 | D8: ISLAND
B9: OBJECT MARKER X4-2 | C9: 1 | D9: MOUNT BELOW C-8
A10: (2) | B10: X4-4 L | C10: 1 | D10: ISLAND
B11: X4-13 | C11: 1 | D11: LEFT POST BELOW C-12
A12: (1) | B12: X4-4 L | C12: 1 | D12: ISLAND
B15: SPECIFIC NOTES:
B16: (1) PLACE ON 3LB/FT POST (MNDOT 3401).
B17: (2) SIZE SHALL BE 18 INCH BY 36 INCH.
B18: GENERAL NOTES:
B19: ="1. FOR DELINEATOR AND MARKER PLACEMENT, SEE SHEET NO. " & TEXT(TOC!$B$8,"0") & "." -> 1. FOR DELINEATOR AND MARKER PLACEMENT, SEE SHEET NO. ST87.
B20: 2. SEE MNDOT STANDARD SIGNS MANUAL FOR DELINEATOR AND MARKER SIGN DESIGN.

Sheet Sheet3

Sheet Sheet1
